Workbook

Sheet DO_CLAVE (hidden)
A1: Acceso1 | B1: 1
A2: Acceso2 | B2: 2
A3: Acceso3 | B3: 3

Sheet INICIO
B1: Excel No Convencional
B2: MOS Expert - CPC Martín Cruz - 998401784
C5: Taller de Excel
C6: Buscando datos en Excel - Inicial Experto
C8: ► | D8: Argumento VALOR BUSCADO
C9: ="" ->  | D9: • | E9: Sin usar celda de apoyo | F9: Desprotegida
C10: ="" ->  | D10: • | E10: Usando celda de apoyo | F10: Desprotegida
C11: ="" ->  | D11: • | E11: Usando comodines | F11: Protegida
C12: ="" ->  | D12: • | E12: Corrigiendo el valor buscado (1) | F12: Protegida
C13: ="" ->  | D13: • | E13: Corrigiendo el valor buscado (2) | F13: Protegida
C14: ="" ->  | D14: • | E14: Valores repetidos | F14: Protegida
C15: ="" ->  | D15: • | E15: Aproximación de números | F15: Protegida
C16: ="" ->  | D16: • | E16: Aproximación de fechas | F16: Protegida
C17: ="" ->  | D17: • | E17: Aproximación de texto (1) | F17: Protegida
C18: ="" ->  | D18: • | E18: Aproximación de texto (2) avanzado | F18: Protegida
C19: ="" ->  | D19: ="" -> 
C20: ► | D20: Argumento INDICADOR DE COLUMNA / FILA
D21: • | E21: Columna o fila fija | F21: Desprotegida
D22: • | E22: Columna o fila calculada: usando celda de apoyo (1) | F22: Protegida
D23: • | E23: Columna o fila calculada: sin usar celda de apoyo (1) | F23: Protegida
D24: • | E24: Columna o fila calculada: usando celda de apoyo (2) | F24: Protegida
D25: • | E25: Columna o fila calculada: sin usar celda de apoyo (2) | F25: Protegida
D26: • | E26: Columna o fila calculada: usando celda de apoyo caso especial (1) | F26: Protegida
D27: • | E27: Columna o fila calculada: usando celda de apoyo caso especial (2) | F27: Protegida
C29: ► | D29: Argumento MATRIZ BUSCAR EN
D30: • | E30: Matriz sin celdas de apoyo | F30: Protegida
D31: • | E31: Buscando en dos matrices | F31: Protegida
D32: • | E32: Buscando en más de dos matrices | F32: Protegida
D33: • | E33: Buscando en más de dos matrices: correción manual | F33: Protegida
D34: • | E34: Buscando en más de dos matrices: correción formulada | F34: Protegida
D35: • | E35: Matriz en reversa | F35: Protegida

Sheet DO_A1_01 (hidden)
B1: Argumento valor buscado
B2: MOS Expert - CPC Martín Cruz - 998401784
I5: ="" ->  | J5: ="Columna "&TEXT(COLUMNS($J$6:J$6),"00")&CHAR(10)&" ↓" -> Columna 01 ↓ | K5: ="Columna "&TEXT(COLUMNS($J$6:K$6),"00")&CHAR(10)&" ↓" -> Columna 02 ↓ | L5: ="Columna "&TEXT(COLUMNS($J$6:L$6),"00")&CHAR(10)&" ↓" -> Columna 03 ↓ | M5: ="Columna "&TEXT(COLUMNS($J$6:M$6),"00")&CHAR(10)&" ↓" -> Columna 04 ↓ | N5: ="Columna "&TEXT(COLUMNS($J$6:N$6),"00")&CHAR(10)&" ↓" -> Columna 05 ↓
B6: ="" ->  | C6: VALOR BUSCADO | F6: =IF(ARG1_01!E6="","",IF(G6="f",IF(E6=ARG1_01!E6,"ü","û"),"")) ->  | I6: ="Fila "&TEXT(ROWS(I$6:I6),"00")&" →" -> Fila 01 → | J6: Meses | K6: Norte | L6: Sur | M6: Este | N6: Oeste
B7: ="" ->  | C7: ="" ->  | F7: =IF(ARG1_01!E7="","",IF(G7="f",IF(E7=ARG1_01!E7,"ü","û"),"")) ->  | I7: ="Fila "&TEXT(ROWS(I$6:I7),"00")&" →" -> Fila 02 → | J7: =PROPER(TEXT(DATE(YEAR(TODAY()),ROWS(J$7:J7),1),"mmmm")) -> Enero | K7: =ROUND(RANDBETWEEN(100,600)+RAND(),2) -> 298.57 | L7: 468.34 | M7: 202.08 | N7: 164.79
B8: ► | C8: SIN CELDA DE APOYO | F8: =IF(ARG1_01!E8="","",IF(G8="f",IF(E8=ARG1_01!E8,"ü","û"),"")) ->  | I8: ="Fila "&TEXT(ROWS(I$6:I8),"00")&" →" -> Fila 03 → | J8: =PROPER(TEXT(DATE(YEAR(TODAY()),ROWS(J$7:J8),1),"mmmm")) -> Febrero | K8: 347.81 | L8: 322.59 | M8: 477.71 | N8: 324.46
B9: ="" ->  | C9: ="" ->  | F9: =IF(ARG1_01!E9="","",IF(G9="f",IF(E9=ARG1_01!E9,"ü","û"),"")) ->  | I9: ="Fila "&TEXT(ROWS(I$6:I9),"00")&" →" -> Fila 04 → | J9: =PROPER(TEXT(DATE(YEAR(TODAY()),ROWS(J$7:J9),1),"mmmm")) -> Marzo | K9: 589.17 | L9: 164.00 | M9: 573.00 | N9: 492.82
B10: ="" ->  | C10: ="¿A cuánto asciende la venta del mes de mayo de la zona Este?" -> ¿A cuánto asciende la venta del mes de mayo de la zona Este? | F10: =IF(ARG1_01!E10="","",IF(G10="f",IF(E10=ARG1_01!E10,"ü","û"),"")) ->  | I10: ="Fila "&TEXT(ROWS(I$6:I10),"00")&" →" -> Fila 05 → | J10: =PROPER(TEXT(DATE(YEAR(TODAY()),ROWS(J$7:J10),1),"mmmm")) -> Abril | K10: 470.43 | L10: 317.97 | M10: 562.22 | N10: 452.91
B11: ="" ->  | C11: Opción 1: BUSCARV | E11: =VLOOKUP("Mayo",DO_A1_01!J6:N18,4,0) -> 167.44 | F11: =IF(ARG1_01!E11="","",IF(G11="f",IF(E11=ARG1_01!E11,"ü","û"),"")) -> ü | G11: f | I11: ="Fila "&TEXT(ROWS(I$6:I11),"00")&" →" -> Fila 06 → | J11: =PROPER(TEXT(DATE(YEAR(TODAY()),ROWS(J$7:J11),1),"mmmm")) -> Mayo | K11: 392.69 | L11: 424.13 | M11: 167.44 | N11: 398.17
B12: ="" ->  | C12: =IF(_xlfn.ISFORMULA(ARG1_01!E11),_xlfn.FORMULATEXT(ARG1_01!E11),"") -> =BUSCARV("mayo",J8:N20,4,0) | F12: =IF(ARG1_01!E12="","",IF(G12="f",IF(E12=ARG1_01!E12,"ü","û"),"")) ->  | I12: ="Fila "&TEXT(ROWS(I$6:I12),"00")&" →" -> Fila 07 → | J12: =PROPER(TEXT(DATE(YEAR(TODAY()),ROWS(J$7:J12),1),"mmmm")) -> Junio | K12: 408.46 | L12: 461.40 | M12: 190.00 | N12: 222.53
B13: ="" ->  | C13: ="" ->  | F13: =IF(ARG1_01!E13="","",IF(G13="f",IF(E13=ARG1_01!E13,"ü","û"),"")) ->  | I13: ="Fila "&TEXT(ROWS(I$6:I13),"00")&" →" -> Fila 08 → | J13: =PROPER(TEXT(DATE(YEAR(TODAY()),ROWS(J$7:J13),1),"mmmm")) -> Julio | K13: 404.11 | L13: 376.22 | M13: 434.93 | N13: 473.94
B14: ="" ->  | C14: Ejercicio → | F14: =IF(ARG1_01!E14="","",IF(G14="f",IF(E14=ARG1_01!E14,"ü","û"),"")) ->  | I14: ="Fila "&TEXT(ROWS(I$6:I14),"00")&" →" -> Fila 09 → | J14: =PROPER(TEXT(DATE(YEAR(TODAY()),ROWS(J$7:J14),1),"mmmm")) -> Agosto | K14: 279.69 | L14: 220.82 | M14: 408.23 | N14: 287.72
B15: ="" ->  | C15: =IF(_xlfn.ISFORMULA(ARG1_01!E11),"Ahora para Norte, evalúa que nro de columna será.","") -> Ahora para Norte, evalúa que nro de columna será. | E15: =VLOOKUP("mayo",DO_A1_01!J6:N18,2,0) -> 392.69 | F15: =IF(ARG1_01!E15="","",IF(G15="f",IF(E15=ARG1_01!E15,"ü","û"),"")) -> ü | G15: f | I15: ="Fila "&TEXT(ROWS(I$6:I15),"00")&" →" -> Fila 10 → | J15: =PROPER(TEXT(DATE(YEAR(TODAY()),ROWS(J$7:J15),1),"mmmm")) -> Setiembre | K15: 563.96 | L15: 328.72 | M15: 153.60 | N15: 148.13
B16: ="" ->  | C16: =IF(_xlfn.ISFORMULA(ARG1_01!E15),_xlfn.FORMULATEXT(ARG1_01!E15),"") -> =BUSCARV("mayo",J8:N20,2,0) | F16: =IF(ARG1_01!E16="","",IF(G16="f",IF(E16=ARG1_01!E16,"ü","û"),"")) ->  | I16: ="Fila "&TEXT(ROWS(I$6:I16),"00")&" →" -> Fila 11 → | J16: =PROPER(TEXT(DATE(YEAR(TODAY()),ROWS(J$7:J16),1),"mmmm")) -> Octubre | K16: 588.53 | L16: 510.10 | M16: 251.11 | N16: 411.21
B17: ="" ->  | C17: ="" ->  | D17: ="" ->  | F17: =IF(ARG1_01!E17="","",IF(G17="f",IF(E17=ARG1_01!E17,"ü","û"),"")) ->  | I17: ="Fila "&TEXT(ROWS(I$6:I17),"00")&" →" -> Fila 12 → | J17: =PROPER(TEXT(DATE(YEAR(TODAY()),ROWS(J$7:J17),1),"mmmm")) -> Noviembre | K17: 123.11 | L17: 280.36 | M17: 383.39 | N17: 240.27
B18: ="" ->  | C18: Opción 2: BUSCARH | F18: =IF(ARG1_01!E18="","",IF(G18="f",IF(E18=ARG1_01!E18,"ü","û"),"")) ->  | I18: ="Fila "&TEXT(ROWS(I$6:I18),"00")&" →" -> Fila 13 → | J18: =PROPER(TEXT(DATE(YEAR(TODAY()),ROWS(J$7:J18),1),"mmmm")) -> Diciembre | K18: 472.99 | L18: 462.96 | M18: 543.47 | N18: 189.54
B19: ="" ->  | C19: =IF(_xlfn.ISFORMULA(ARG1_01!E19),_xlfn.FORMULATEXT(ARG1_01!E19),"") -> =BUSCARH("este",J8:N20,6,0) | E19: =HLOOKUP("este",DO_A1_01!J6:N18,6,0) -> 167.44 | F19: =IF(ARG1_01!E19="","",IF(G19="f",IF(E19=ARG1_01!E19,"ü","û"),"")) -> ü | G19: f
B20: ="" ->  | C20: ="" ->  | D20: ="" ->  | F20: =IF(ARG1_01!E20="","",IF(G20="f",IF(E20=ARG1_01!E20,"ü","û"),"")) -> 
B21: ="" ->  | C21: Ejercicio → | F21: =IF(ARG1_01!E21="","",IF(G21="f",IF(E21=ARG1_01!E21,"ü","û"),"")) -> 
B22: ="" ->  | C22: =IF(_xlfn.ISFORMULA(ARG1_01!E19),"Ahora para Octubre, evalúa que nro de fila será.","") -> Ahora para Octubre, evalúa que nro de fila será. | E22: =HLOOKUP("este",DO_A1_01!J6:N18,11,0) -> 251.11 | F22: =IF(ARG1_01!E22="","",IF(G22="f",IF(E22=ARG1_01!E22,"ü","û"),"")) -> ü | G22: f
B23: ="" ->  | C23: =IF(_xlfn.ISFORMULA(ARG1_01!E22),_xlfn.FORMULATEXT(ARG1_01!E22),"") -> =BUSCARH("este",J8:N20,11,0) | F23: =IF(ARG1_01!E23="","",IF(G23="f",IF(E23=ARG1_01!E23,"ü","û"),"")) -> 
B24: ="" ->  | C24: ="" ->  | D24: ="" ->  | F24: =IF(ARG1_01!E24="","",IF(G24="f",IF(E24=ARG1_01!E24,"ü","û"),"")) -> 
B25: ► | C25: CON CELDA DE APOYO | F25: =IF(ARG1_01!E25="","",IF(G25="f",IF(E25=ARG1_01!E25,"ü","û"),"")) -> 
B26: ="" ->  | C26: ="" ->  | D26: ="" ->  | F26: =IF(ARG1_01!E26="","",IF(G26="f",IF(E26=ARG1_01!E26,"ü","û"),"")) -> 
B27: ="" ->  | C27: ="¿A cuánto asciende la venta del mes de "&C29&" de la zona Este?" -> ¿A cuánto asciende la venta del mes de Febrero de la zona Este? | F27: =IF(ARG1_01!E27="","",IF(G27="f",IF(E27=ARG1_01!E27,"ü","û"),"")) -> 
B28: ="" ->  | C28: Opción 1: BUSCARV | F28: =IF(ARG1_01!E28="","",IF(G28="f",IF(E28=ARG1_01!E28,"ü","û"),"")) -> 
B29: ="" ->  | C29: =INDEX($J$7:$J$18,RANDBETWEEN(1,6)*2) -> Febrero | E29: =VLOOKUP(C29,DO_A1_01!J6:N18,4,0) -> 477.71 | F29: =IF(ARG1_01!E29="","",IF(G29="f",IF(E29=ARG1_01!E29,"ü","û"),"")) -> ü | G29: f
B30: ="" ->  | C30: =IF(_xlfn.ISFORMULA(ARG1_01!E29),_xlfn.FORMULATEXT(ARG1_01!E29),"") -> =BUSCARV(C29,J8:N20,4,0) | F30: =IF(ARG1_01!E30="","",IF(G30="f",IF(E30=ARG1_01!E30,"ü","û"),"")) -> 
B31: ="" ->  | C31: ="" ->  | D31: ="" ->  | F31: =IF(ARG1_01!E31="","",IF(G31="f",IF(E31=ARG1_01!E31,"ü","û"),"")) -> 
B32: ="" ->  | C32: Ejercicio → | F32: =IF(ARG1_01!E32="","",IF(G32="f",IF(E32=ARG1_01!E32,"ü","û"),"")) -> 
B33: ="" ->  | C33: =IF(_xlfn.ISFORMULA(ARG1_01!E29),"Ahora para Sur, evalúa que nro de columna será.","") -> Ahora para Sur, evalúa que nro de columna será. | F33: =IF(ARG1_01!E33="","",IF(G33="f",IF(E33=ARG1_01!E33,"ü","û"),"")) -> 
B34: ="" ->  | C34: =INDEX($J$7:$J$18,RANDBETWEEN(1,6)*2-1) -> Setiembre | E34: =VLOOKUP(C34,DO_A1_01!J6:N18,4,0) -> 153.6 | F34: =IF(ARG1_01!E34="","",IF(G34="f",IF(E34=ARG1_01!E34,"ü","û"),"")) -> ü | G34: f
B35: ="" ->  | C35: =IF(_xlfn.ISFORMULA(ARG1_01!E34),_xlfn.FORMULATEXT(ARG1_01!E34),"") -> =BUSCARV(C34,J8:N20,4,0) | F35: =IF(ARG1_01!E35="","",IF(G35="f",IF(E35=ARG1_01!E35,"ü","û"),"")) -> 
B36: ="" ->  | C36: ="" ->  | D36: ="" ->  | F36: =IF(ARG1_01!E36="","",IF(G36="f",IF(E36=ARG1_01!E36,"ü","û"),"")) -> 
B37: ="" ->  | C37: ="¿A cuánto asciende la venta del mes de Mayo de la zona "&C39&"?" -> ¿A cuánto asciende la venta del mes de Mayo de la zona Sur? | F37: =IF(ARG1_01!E37="","",IF(G37="f",IF(E37=ARG1_01!E37,"ü","û"),"")) -> 
B38: ="" ->  | C38: Opción 2: BUSCARH | F38: =IF(ARG1_01!E38="","",IF(G38="f",IF(E38=ARG1_01!E38,"ü","û"),"")) -> 
B39: ="" ->  | C39: =INDEX($K$6:$N$6,RANDBETWEEN(1,2)*2) -> Sur | E39: =HLOOKUP(C39,DO_A1_01!J6:N18,6,0) -> 424.13 | F39: =IF(ARG1_01!E39="","",IF(G39="f",IF(E39=ARG1_01!E39,"ü","û"),"")) -> ü | G39: f
B40: ="" ->  | C40: =IF(_xlfn.ISFORMULA(ARG1_01!E39),_xlfn.FORMULATEXT(ARG1_01!E39),"") -> =BUSCARH(C39,J8:N20,6,0) | F40: =IF(ARG1_01!E40="","",IF(G40="f",IF(E40=ARG1_01!E40,"ü","û"),"")) -> 
B41: ="" ->  | C41: ="" ->  | D41: ="" ->  | F41: =IF(ARG1_01!E41="","",IF(G41="f",IF(E41=ARG1_01!E41,"ü","û"),"")) -> 
B42: ="" ->  | C42: Ejercicio → | F42: =IF(ARG1_01!E42="","",IF(G42="f",IF(E42=ARG1_01!E42,"ü","û"),"")) -> 
B43: ="" ->  | C43: =IF(_xlfn.ISFORMULA(ARG1_01!E44),"Ahora para marzo, evalúa que nro de fila será.","") -> Ahora para marzo, evalúa que nro de fila será. | F43: =IF(ARG1_01!E43="","",IF(G43="f",IF(E43=ARG1_01!E43,"ü","û"),"")) -> 
B44: ="" ->  | C44: =INDEX($K$6:$N$6,RANDBETWEEN(1,2)*2-1) -> Norte | E44: =HLOOKUP(C44,DO_A1_01!J6:N18,4,0) -> 589.17 | F44: =IF(ARG1_01!E44="","",IF(G44="f",IF(E44=ARG1_01!E44,"ü","û"),"")) -> ü | G44: f
B45: ="" ->  | C45: =IF(_xlfn.ISFORMULA(ARG1_01!E44),_xlfn.FORMULATEXT(ARG1_01!E44),"") -> =BUSCARH(C44,J8:N20,4,0) | F45: =IF(ARG1_01!E45="","",IF(G45="f",IF(E45=ARG1_01!E45,"ü","û"),"")) -> 
D46: ="" -> 

Sheet ARG1_01 (hidden)
B1: Argumento valor buscado
B2: MOS Expert - CPC Martín Cruz - 998401784
B6: =lista01.02 ->  | C6: VALOR BUSCADO | F6: =lista01.03 -> 
I7: =lista01.01 ->  | J7: Columna 01 ↓ | K7: Columna 02 ↓ | L7: Columna 03 ↓ | M7: Columna 04 ↓ | N7: Columna 05 ↓
B8: ► | C8: SIN CELDA DE APOYO | I8: Fila 01 → | J8: Meses | K8: Norte | L8: Sur | M8: Este | N8: Oeste
I9: Fila 02 → | J9: Enero | K9: 298.57 | L9: 468.34 | M9: 202.08 | N9: 164.79
C10: ¿A cuánto asciende la venta del mes de mayo de la zona Este? | I10: Fila 03 → | J10: Febrero | K10: 347.81 | L10: 322.59 | M10: 477.71 | N10: 324.46
C11: Opción 1: BUSCARV | E11: =VLOOKUP("mayo",J8:N20,4,0) -> 167.44 | F11: ü | I11: Fila 04 → | J11: Marzo | K11: 589.17 | L11: 164.00 | M11: 573.00 | N11: 492.82
C12: =BUSCARV("mayo",J8:N20,4,0) | I12: Fila 05 → | J12: Abril | K12: 470.43 | L12: 317.97 | M12: 562.22 | N12: 452.91
I13: Fila 06 → | J13: Mayo | K13: 392.69 | L13: 424.13 | M13: 167.44 | N13: 398.17
C14: Ejercicio → | I14: Fila 07 → | J14: Junio | K14: 408.46 | L14: 461.40 | M14: 190.00 | N14: 222.53
C15: Ahora para Norte, evalúa que nro de columna será. | E15: =VLOOKUP("mayo",J8:N20,2,0) -> 392.69 | F15: ü | I15: Fila 08 → | J15: Julio | K15: 404.11 | L15: 376.22 | M15: 434.93 | N15: 473.94
C16: =BUSCARV("mayo",J8:N20,2,0) | I16: Fila 09 → | J16: Agosto | K16: 279.69 | L16: 220.82 | M16: 408.23 | N16: 287.72
I17: Fila 10 → | J17: Setiembre | K17: 563.96 | L17: 328.72 | M17: 153.60 | N17: 148.13
C18: Opción 2: BUSCARH | I18: Fila 11 → | J18: Octubre | K18: 588.53 | L18: 510.10 | M18: 251.11 | N18: 411.21
C19: =BUSCARH("este",J8:N20,6,0) | E19: =HLOOKUP("este",J8:N20,6,0) -> 167.44 | F19: ü | I19: Fila 12 → | J19: Noviembre | K19: 123.11 | L19: 280.36 | M19: 383.39 | N19: 240.27
I20: Fila 13 → | J20: Diciembre | K20: 472.99 | L20: 462.96 | M20: 543.47 | N20: 189.54
C21: Ejercicio →
C22: Ahora para Octubre, evalúa que nro de fila será. | E22: =HLOOKUP("este",J8:N20,11,0) -> 251.11 | F22: ü
C23: =BUSCARH("este",J8:N20,11,0)
B25: ► | C25: CON CELDA DE APOYO
C27: ¿A cuánto asciende la venta del mes de Febrero de la zona Este?
C28: Opción 1: BUSCARV
C29: Febrero | E29: =VLOOKUP(C29,J8:N20,4,0) -> 477.71 | F29: ü
C30: =BUSCARV(C29,J8:N20,4,0)
C32: Ejercicio →
C33: Ahora para Sur, evalúa que nro de columna será.
C34: Setiembre | E34: =VLOOKUP(C34,J8:N20,4,0) -> 153.6 | F34: ü
C35: =BUSCARV(C34,J8:N20,4,0)
C37: ¿A cuánto asciende la venta del mes de Mayo de la zona Sur?
C38: Opción 2: BUSCARH
C39: Sur | E39: =HLOOKUP(C39,J8:N20,6,0) -> 424.13 | F39: ü
C40: =BUSCARH(C39,J8:N20,6,0)
C42: Ejercicio →
C43: Ahora para marzo, evalúa que nro de fila será.
C44: Norte | E44: =HLOOKUP(C44,J8:N20,4,0) -> 589.17 | F44: ü
C45: =BUSCARH(C44,J8:N20,4,0)

Sheet DO_A1_02 (hidden)
B6: ="" ->  | C6: VALOR BUSCADO | I6: =IF(ARG1_02!H6="","",IF(J6="f",IF(H6=ARG1_02!H6,"ü","û"),"")) -> 
B7: ="" ->  | C7: ="" ->  | I7: =IF(ARG1_02!H7="","",IF(J7="f",IF(H7=ARG1_02!H7,"ü","û"),"")) -> 
B8: ► | C8: USO DE COMODINES | I8: =IF(ARG1_02!H8="","",IF(J8="f",IF(H8=ARG1_02!H8,"ü","û"),"")) ->  | L8: Vendedor | M8: Clientes | N8: Ventas | O8: Margen | Q8: =RAND() -> 0.5702787717 | R8: Ochoa | S8: 0.746107715 | T8: José | U8: =VLOOKUP(LARGE($S$8:$S$20,ROWS(U$8:U8)),$S$8:$T$20,2,0) -> Oscar | V8: =VLOOKUP(LARGE($Q$8:$Q$20,ROWS(V$8:V8)),$Q$8:$R$20,2,0) -> Santos | W8: =U8&" "&V8 -> Oscar Santos
B9: ="" ->  | C9: ="" ->  | I9: =IF(ARG1_02!H9="","",IF(J9="f",IF(H9=ARG1_02!H9,"ü","û"),"")) ->  | L9: =W8 -> Oscar Santos | M9: =RANDBETWEEN(5,15) -> 10 | N9: =M9*RANDBETWEEN(80,150) -> 830 | O9: =ROUND(N9*RANDBETWEEN(25,35)%,0) -> 249 | Q9: 0.4499097289 | R9: Manco | S9: 0.1191160668 | T9: Alberto | U9: =VLOOKUP(LARGE($S$8:$S$20,ROWS(U$8:U9)),$S$8:$T$20,2,0) -> Omar | V9: =VLOOKUP(LARGE($Q$8:$Q$20,ROWS(V$8:V9)),$Q$8:$R$20,2,0) -> Baca | W9: Omar Baca
B10: ="" ->  | C10: ="¿A cuánto asciende las ventas del vendedor de apellido "&C12&"?" -> ¿A cuánto asciende las ventas del vendedor de apellido Rodriguez? | I10: =IF(ARG1_02!H10="","",IF(J10="f",IF(H10=ARG1_02!H10,"ü","û"),"")) ->  | L10: Omar Baca | M10: 9 | N10: 1,080 | O10: 270 | Q10: 0.3631415893 | R10: Rodriguez | S10: 0.04793606706 | T10: Javier | U10: =VLOOKUP(LARGE($S$8:$S$20,ROWS(U$8:U10)),$S$8:$T$20,2,0) -> Eduardo | V10: =VLOOKUP(LARGE($Q$8:$Q$20,ROWS(V$8:V10)),$Q$8:$R$20,2,0) -> Velasquez | W10: Eduardo Velasquez
B11: ="" ->  | C11: Opción 1: | I11: =IF(ARG1_02!H11="","",IF(J11="f",IF(H11=ARG1_02!H11,"ü","û"),"")) ->  | L11: Eduardo Velasquez | M11: 6 | N11: 840 | O11: 227 | Q11: 0.9445550457 | R11: Santos | S11: 0.2139330133 | T11: Jesús | U11: =VLOOKUP(LARGE($S$8:$S$20,ROWS(U$8:U11)),$S$8:$T$20,2,0) -> Fabio | V11: =VLOOKUP(LARGE($Q$8:$Q$20,ROWS(V$8:V11)),$Q$8:$R$20,2,0) -> Quispe | W11: Fabio Quispe
B12: ="" ->  | C12: =INDEX($V$8:$V$17,RANDBETWEEN(1,10)) -> Rodriguez | H12: =VLOOKUP("*"&C12,$L$8:$O$18,3,0) -> 1,243 | I12: =IF(ARG1_02!H12="","",IF(J12="f",IF(H12=ARG1_02!H12,"ü","û"),"")) ->  | J12: f | L12: Fabio Quispe | M12: 14 | N12: 1,624 | O12: 455 | Q12: 0.8467989917 | R12: Baca | S12: 0.3673665304 | T12: Jacob | U12: =VLOOKUP(LARGE($S$8:$S$20,ROWS(U$8:U12)),$S$8:$T$20,2,0) -> Francisco | V12: =VLOOKUP(LARGE($Q$8:$Q$20,ROWS(V$8:V12)),$Q$8:$R$20,2,0) -> Ochoa | W12: Francisco Ochoa
B13: ="" ->  | C13: =IF(_xlfn.ISFORMULA(ARG1_02!H12),_xlfn.FORMULATEXT(ARG1_02!H12),"") ->  | I13: =IF(ARG1_02!H13="","",IF(J13="f",IF(H13=ARG1_02!H13,"ü","û"),"")) ->  | L13: Francisco Ochoa | M13: 13 | N13: 1,378 | O13: 427 | Q13: 0.7766777133 | R13: Velasquez | S13: 0.2486015459 | T13: Roger | U13: =VLOOKUP(LARGE($S$8:$S$20,ROWS(U$8:U13)),$S$8:$T$20,2,0) -> José | V13: =VLOOKUP(LARGE($Q$8:$Q$20,ROWS(V$8:V13)),$Q$8:$R$20,2,0) -> Cespedes | W13: José Cespedes
B14: ="" ->  | C14: ="" ->  | I14: =IF(ARG1_02!H14="","",IF(J14="f",IF(H14=ARG1_02!H14,"ü","û"),"")) ->  | L14: José Cespedes | M14: 6 | N14: 600 | O14: 192 | Q14: 0.5463831675 | R14: Cespedes | S14: 0.8889701605 | T14: Eduardo | U14: =VLOOKUP(LARGE($S$8:$S$20,ROWS(U$8:U14)),$S$8:$T$20,2,0) -> Franco | V14: =VLOOKUP(LARGE($Q$8:$Q$20,ROWS(V$8:V14)),$Q$8:$R$20,2,0) -> Zegarra | W14: Franco Zegarra
B15: ="" ->  | C15: Opción 2: | I15: =IF(ARG1_02!H15="","",IF(J15="f",IF(H15=ARG1_02!H15,"ü","û"),"")) ->  | L15: Franco Zegarra | M15: 6 | N15: 534 | O15: 150 | Q15: 0.5030676328 | R15: Zegarra | S15: 0.2689656764 | T15: Miguel | U15: =VLOOKUP(LARGE($S$8:$S$20,ROWS(U$8:U15)),$S$8:$T$20,2,0) -> Jacob | V15: =VLOOKUP(LARGE($Q$8:$Q$20,ROWS(V$8:V15)),$Q$8:$R$20,2,0) -> Manco | W15: Jacob Manco
B16: ="" ->  | C16: ="¿Cuántos clientes generó el vendedor de nombre "&C17&"?" -> ¿Cuántos clientes generó el vendedor de nombre Fabio? | I16: =IF(ARG1_02!H16="","",IF(J16="f",IF(H16=ARG1_02!H16,"ü","û"),"")) ->  | L16: Jacob Manco | M16: 9 | N16: 936 | O16: 271 | Q16: 0.02563965821 | R16: Quiñones | S16: 0.7529606776 | T16: Francisco | U16: =VLOOKUP(LARGE($S$8:$S$20,ROWS(U$8:U16)),$S$8:$T$20,2,0) -> Miguel | V16: =VLOOKUP(LARGE($Q$8:$Q$20,ROWS(V$8:V16)),$Q$8:$R$20,2,0) -> Rodriguez | W16: Miguel Rodriguez
B17: ="" ->  | C17: =INDEX($U$8:$U$17,RANDBETWEEN(1,10)) -> Fabio | H17: =VLOOKUP(C17&"*",$L$8:$O$18,2,0) -> 14 | I17: =IF(ARG1_02!H17="","",IF(J17="f",IF(H17=ARG1_02!H17,"ü","û"),"")) ->  | J17: f | L17: Miguel Rodriguez | M17: 11 | N17: 1,243 | O17: 410 | Q17: 0.1882141419 | R17: Atoche | S17: 0.7534671215 | T17: Fabio | U17: =VLOOKUP(LARGE($S$8:$S$20,ROWS(U$8:U17)),$S$8:$T$20,2,0) -> Roger | V17: =VLOOKUP(LARGE($Q$8:$Q$20,ROWS(V$8:V17)),$Q$8:$R$20,2,0) -> Atoche | W17: Roger Atoche
B18: ="" ->  | C18: =IF(_xlfn.ISFORMULA(ARG1_02!H17),_xlfn.FORMULATEXT(ARG1_02!H17),"") ->  | I18: =IF(ARG1_02!H18="","",IF(J18="f",IF(H18=ARG1_02!H18,"ü","û"),"")) ->  | L18: Roger Atoche | M18: 7 | N18: 854 | O18: 231 | Q18: 0.770885341 | R18: Quispe | S18: 0.9303561709 | T18: Omar | U18: =VLOOKUP(LARGE($S$8:$S$20,ROWS(U$8:U18)),$S$8:$T$20,2,0) -> Jesús | V18: =VLOOKUP(LARGE($Q$8:$Q$20,ROWS(V$8:V18)),$Q$8:$R$20,2,0) -> Miranda | W18: Jesús Miranda
B19: ="" ->  | C19: ="" ->  | I19: =IF(ARG1_02!H19="","",IF(J19="f",IF(H19=ARG1_02!H19,"ü","û"),"")) ->  | Q19: 0.06742890876 | R19: Miranda | S19: 0.5349059889 | T19: Franco | U19: =VLOOKUP(LARGE($S$8:$S$20,ROWS(U$8:U19)),$S$8:$T$20,2,0) -> Alberto | V19: =VLOOKUP(LARGE($Q$8:$Q$20,ROWS(V$8:V19)),$Q$8:$R$20,2,0) -> Cabello | W19: Alberto Cabello
B20: ="" ->  | C20: Ejercicio → | I20: =IF(ARG1_02!H20="","",IF(J20="f",IF(H20=ARG1_02!H20,"ü","û"),"")) ->  | Q20: 0.04593975001 | R20: Cabello | S20: 0.9672938451 | T20: Oscar | U20: =VLOOKUP(LARGE($S$8:$S$20,ROWS(U$8:U20)),$S$8:$T$20,2,0) -> Javier | V20: =VLOOKUP(LARGE($Q$8:$Q$20,ROWS(V$8:V20)),$Q$8:$R$20,2,0) -> Quiñones | W20: Javier Quiñones
B21: ="" ->  | C21: ="¿A cuánto asciende el margen de ventas del vendedor de nombre " -> ¿A cuánto asciende el margen de ventas del vendedor de nombre | I21: =IF(ARG1_02!H21="","",IF(J21="f",IF(H21=ARG1_02!H21,"ü","û"),"")) -> 
B22: ="" ->  | C22: ="tenga sólo 4 letras?" -> tenga sólo 4 letras? | H22: =IFERROR(VLOOKUP("???? *",$L$8:$O$18,4,0),"No existe") -> 270 | I22: =IF(ARG1_02!H22="","",IF(J22="f",IF(H22=ARG1_02!H22,"ü","û"),"")) ->  | J22: f
B23: ="" ->  | C23: =IF(_xlfn.ISFORMULA(ARG1_02!H22),_xlfn.FORMULATEXT(ARG1_02!H22),"") ->  | I23: =IF(ARG1_02!H23="","",IF(J23="f",IF(H23=ARG1_02!H23,"ü","û"),"")) -> 
B24: ="" ->  | C24: ="" ->  | I24: =IF(ARG1_02!H24="","",IF(J24="f",IF(H24=ARG1_02!H24,"ü","û"),"")) -> 
B25: ="" ->  | C25: ="¿A cuánto asciende las ventas del vendedor de nombre " -> ¿A cuánto asciende las ventas del vendedor de nombre | I25: =IF(ARG1_02!H25="","",IF(J25="f",IF(H25=ARG1_02!H25,"ü","û"),"")) -> 
B26: ="" ->  | C26: ="tenga sólo 6 letras y que termine con la letra o?" -> tenga sólo 6 letras y que termine con la letra o? | H26: =IFERROR(VLOOKUP("?????o *",$L$8:$O$18,3,0),"No existe") -> 534 | I26: =IF(ARG1_02!H26="","",IF(J26="f",IF(H26=ARG1_02!H26,"ü","û"),"")) ->  | J26: f
B27: ="" ->  | C27: =IF(_xlfn.ISFORMULA(ARG1_02!H26),_xlfn.FORMULATEXT(ARG1_02!H26),"") ->  | I27: =IF(ARG1_02!H27="","",IF(J27="f",IF(H27=ARG1_02!H27,"ü","û"),"")) -> 

Sheet ARG1_02 (hidden)
B1: Argumento valor buscado
B2: MOS Expert - CPC Martín Cruz - 998401784
B6: =lista01.04 ->  | C6: VALOR BUSCADO | I6: =lista01.05 -> 
B8: ► | C8: USO DE COMODINES | K8: =lista01.06 -> Vendedor | L8: Clientes | M8: Ventas | N8: Margen
K9: Oscar Santos | L9: 10 | M9: 830 | N9: 249
C10: ¿A cuánto asciende las ventas del vendedor de apellido Rodriguez? | K10: Omar Baca | L10: 9 | M10: 1,080 | N10: 270
C11: Opción 1: | K11: Eduardo Velasquez | L11: 6 | M11: 840 | N11: 227
C12: Rodriguez | K12: Fabio Quispe | L12: 14 | M12: 1,624 | N12: 455
K13: Francisco Ochoa | L13: 13 | M13: 1,378 | N13: 427
K14: José Cespedes | L14: 6 | M14: 600 | N14: 192
C15: Opción 2: | K15: Franco Zegarra | L15: 6 | M15: 534 | N15: 150
C16: ¿Cuántos clientes generó el vendedor de nombre Fabio? | K16: Jacob Manco | L16: 9 | M16: 936 | N16: 271
C17: Fabio | K17: Miguel Rodriguez | L17: 11 | M17: 1,243 | N17: 410
K18: Roger Atoche | L18: 7 | M18: 854 | N18: 231
C20: Ejercicio →
C21: ¿A cuánto asciende el margen de ventas del vendedor de nombre
C22: tenga sólo 4 letras?
C25: ¿A cuánto asciende las ventas del vendedor de nombre
C26: tenga sólo 6 letras y que termine con la letra o?

Sheet DO_A1_03 (hidden)
B6: ="" ->  | C6: VALOR BUSCADO | I6: =IF(ARG1_03!H6="","",IF(J6="f",IF(H6=ARG1_03!H6,"ü","û"),"")) -> 
B7: ="" ->  | C7: ="" ->  | I7: =IF(ARG1_03!H7="","",IF(J7="f",IF(H7=ARG1_03!H7,"ü","û"),"")) -> 
B8: ► | C8: CORRECCIONES DE DATOS (1) | I8: =IF(ARG1_03!H8="","",IF(J8="f",IF(H8=ARG1_03!H8,"ü","û"),"")) ->  | L8: Código | M8: Nombre | N8: Cantidad | O8: Pedido | Q8: =RAND() -> 0.6621047507 | R8: José | S8: =VLOOKUP(LARGE($Q$8:$Q$20,ROWS(S$8:S8)),$Q$8:$R$20,2,0) -> Roger | U8: Aceite
B9: ="" ->  | C9: ="" ->  | I9: =IF(ARG1_03!H9="","",IF(J9="f",IF(H9=ARG1_03!H9,"ü","û"),"")) ->  | L9: =RANDBETWEEN(1000,9000)&IF(MOD(ROWS(L$9:L9),2)=0,""," ") -> 3305 | M9: =S8 -> Roger | N9: =RANDBETWEEN(10,25) -> 15 | O9: =INDEX($U$8:$U$11,RANDBETWEEN(1,4)) -> Harina | Q9: 0.714673948 | R9: Alberto | S9: =VLOOKUP(LARGE($Q$8:$Q$20,ROWS(S$8:S9)),$Q$8:$R$20,2,0) -> Javier | U9: Harina
B10: ="" ->  | C10: ="¿A cuánto asciende la cantidad de pedido del código "&C12&"?" -> ¿A cuánto asciende la cantidad de pedido del código 4727? | I10: =IF(ARG1_03!H10="","",IF(J10="f",IF(H10=ARG1_03!H10,"ü","û"),"")) ->  | L10: =RANDBETWEEN(1000,9000)&IF(MOD(ROWS(L$9:L10),2)=0,""," ") -> 4727 | M10: Javier | N10: 17 | O10: Galletas | Q10: 0.880465992 | R10: Javier | S10: =VLOOKUP(LARGE($Q$8:$Q$20,ROWS(S$8:S10)),$Q$8:$R$20,2,0) -> Jacob | U10: Galletas
B11: ="" ->  | C11: Opción 1: | I11: =IF(ARG1_03!H11="","",IF(J11="f",IF(H11=ARG1_03!H11,"ü","û"),"")) ->  | L11: =RANDBETWEEN(1000,9000)&IF(MOD(ROWS(L$9:L11),2)=0,""," ") -> 2702 | M11: Jacob | N11: 19 | O11: Conservas | Q11: 0.1043395922 | R11: Jesús | S11: =VLOOKUP(LARGE($Q$8:$Q$20,ROWS(S$8:S11)),$Q$8:$R$20,2,0) -> Franco | U11: Conservas
B12: ="" ->  | C12: =INDEX($L$9:$L$18,RANDBETWEEN(1,5)*2)*1 -> 4727 | H12: =VLOOKUP(C12&"",$L$8:$O$18,3,0) -> 17 | I12: =IF(ARG1_03!H12="","",IF(J12="f",IF(H12=ARG1_03!H12,"ü","û"),"")) ->  | J12: f | L12: =RANDBETWEEN(1000,9000)&IF(MOD(ROWS(L$9:L12),2)=0,""," ") -> 3791 | M12: Franco | N12: 12 | O12: Galletas | Q12: 0.8597702005 | R12: Jacob | S12: =VLOOKUP(LARGE($Q$8:$Q$20,ROWS(S$8:S12)),$Q$8:$R$20,2,0) -> Oscar
B13: ="" ->  | C13: =IF(_xlfn.ISFORMULA(ARG1_03!H12),_xlfn.FORMULATEXT(ARG1_03!H12),"") ->  | I13: =IF(ARG1_03!H13="","",IF(J13="f",IF(H13=ARG1_03!H13,"ü","û"),"")) ->  | L13: =RANDBETWEEN(1000,9000)&IF(MOD(ROWS(L$9:L13),2)=0,""," ") -> 3626 | M13: Oscar | N13: 13 | O13: Aceite | Q13: 0.9387350738 | R13: Roger | S13: =VLOOKUP(LARGE($Q$8:$Q$20,ROWS(S$8:S13)),$Q$8:$R$20,2,0) -> Alberto
B14: ="" ->  | C14: ="" ->  | I14: =IF(ARG1_03!H14="","",IF(J14="f",IF(H14=ARG1_03!H14,"ü","û"),"")) ->  | L14: =RANDBETWEEN(1000,9000)&IF(MOD(ROWS(L$9:L14),2)=0,""," ") -> 6823 | M14: Alberto | N14: 24 | O14: Harina | Q14: 0.2289238686 | R14: Eduardo | S14: =VLOOKUP(LARGE($Q$8:$Q$20,ROWS(S$8:S14)),$Q$8:$R$20,2,0) -> Francisco
B15: ="" ->  | C15: =IF(I12="ü","¿Es NUMERO?","") ->  | H15: =ISNUMBER(C12) -> TRUE | I15: =IF(ARG1_03!H15="","",IF(J15="f",IF(H15=ARG1_03!H15,"ü","û"),"")) ->  | J15: f | L15: =RANDBETWEEN(1000,9000)&IF(MOD(ROWS(L$9:L15),2)=0,""," ") -> 7261 | M15: Francisco | N15: 17 | O15: Conservas | Q15: 0.2746379974 | R15: Miguel | S15: =VLOOKUP(LARGE($Q$8:$Q$20,ROWS(S$8:S15)),$Q$8:$R$20,2,0) -> José
B16: ="" ->  | C16: =IF(_xlfn.ISFORMULA(ARG1_03!H15),IF(I12="ü",_xlfn.FORMULATEXT(ARG1_03!H15),""),"") ->  | I16: =IF(ARG1_03!H16="","",IF(J16="f",IF(H16=ARG1_03!H16,"ü","û"),"")) ->  | L16: =RANDBETWEEN(1000,9000)&IF(MOD(ROWS(L$9:L16),2)=0,""," ") -> 1882 | M16: José | N16: 11 | O16: Conservas | Q16: 0.6641642737 | R16: Francisco | S16: =VLOOKUP(LARGE($Q$8:$Q$20,ROWS(S$8:S16)),$Q$8:$R$20,2,0) -> Fabio
B17: ="" ->  | C17: =IF(I12="ü","¿Es TEXTO?","") ->  | H17: =ISTEXT(C12) -> FALSE | I17: =IF(ARG1_03!H17="","",IF(J17="f",IF(H17=ARG1_03!H17,"ü","û"),"")) ->  | J17: f | L17: =RANDBETWEEN(1000,9000)&IF(MOD(ROWS(L$9:L17),2)=0,""," ") -> 1193 | M17: Fabio | N17: 20 | O17: Galletas | Q17: 0.6336405857 | R17: Fabio | S17: =VLOOKUP(LARGE($Q$8:$Q$20,ROWS(S$8:S17)),$Q$8:$R$20,2,0) -> Omar
B18: ="" ->  | C18: =IF(_xlfn.ISFORMULA(ARG1_03!H17),IF(I12="ü",_xlfn.FORMULATEXT(ARG1_03!H17),""),"") ->  | I18: =IF(ARG1_03!H18="","",IF(J18="f",IF(H18=ARG1_03!H18,"ü","û"),"")) ->  | L18: =RANDBETWEEN(1000,9000)&IF(MOD(ROWS(L$9:L18),2)=0,""," ") -> 3783 | M18: Omar | N18: 22 | O18: Galletas | Q18: 0.3600424598 | R18: Omar | S18: =VLOOKUP(LARGE($Q$8:$Q$20,ROWS(S$8:S18)),$Q$8:$R$20,2,0) -> Miguel
B19: ="" ->  | C19: ="" ->  | I19: =IF(ARG1_03!H19="","",IF(J19="f",IF(H19=ARG1_03!H19,"ü","û"),"")) ->  | Q19: 0.8372456112 | R19: Franco | S19: =VLOOKUP(LARGE($Q$8:$Q$20,ROWS(S$8:S19)),$Q$8:$R$20,2,0) -> Eduardo
B20: ="" ->  | C20: Ejercicio → | I20: =IF(ARG1_03!H20="","",IF(J20="f",IF(H20=ARG1_03!H20,"ü","û"),"")) ->  | Q20: 0.731678377 | R20: Oscar | S20: =VLOOKUP(LARGE($Q$8:$Q$20,ROWS(S$8:S20)),$Q$8:$R$20,2,0) -> Jesús
B21: ="" ->  | C21: =INDEX($L$9:$L$18,RANDBETWEEN(1,5)*2-1)*1 -> 2702 | H21: =VLOOKUP(C21&" ",$L$8:$O$18,3,0) -> 19 | I21: =IF(ARG1_03!H21="","",IF(J21="f",IF(H21=ARG1_03!H21,"ü","û"),"")) ->  | J21: f
B22: ="" ->  | C22: =IF(_xlfn.ISFORMULA(ARG1_03!H21),_xlfn.FORMULATEXT(ARG1_03!H21),"") ->  | I22: =IF(ARG1_03!H22="","",IF(J22="f",IF(H22=ARG1_03!H22,"ü","û"),"")) -> 

Sheet ARG1_03 (hidden)
B1: Argumento valor buscado
B2: MOS Expert - CPC Martín Cruz - 998401784
B6: =lista01.07 ->  | C6: VALOR BUSCADO | I6: =lista01.08 -> 
B8: ► | C8: CORRECCIONES DE DATOS (1) | K8: =lista01.09 -> Código | L8: Nombre | M8: Cantidad | N8: Pedido
K9: 3305 | L9: Roger | M9: 15 | N9: Harina
C10: ¿A cuánto asciende la cantidad de pedido del código 4727? | K10: 4727 | L10: Javier | M10: 17 | N10: Galletas
C11: Opción 1: | K11: 2702 | L11: Jacob | M11: 19 | N11: Conservas
C12: 4727 | K12: 3791 | L12: Franco | M12: 12 | N12: Galletas
K13: 3626 | L13: Oscar | M13: 13 | N13: Aceite
K14: 6823 | L14: Alberto | M14: 24 | N14: Harina
K15: 7261 | L15: Francisco | M15: 17 | N15: Conservas
K16: 1882 | L16: José | M16: 11 | N16: Conservas
K17: 1193 | L17: Fabio | M17: 20 | N17: Galletas
K18: 3783 | L18: Omar | M18: 22 | N18: Galletas
C20: Ejercicio →
C21: 2702

Sheet DO_A1_04 (hidden)
B6: ="" ->  | C6: VALOR BUSCADO | I6: =IF(ARG1_04!H6="","",IF(J6="f",IF(H6=ARG1_04!H6,"ü","û"),"")) -> 
B7: ="" ->  | C7: ="" ->  | I7: =IF(ARG1_04!H7="","",IF(J7="f",IF(H7=ARG1_04!H7,"ü","û"),"")) -> 
B8: ► | C8: CORRECCIONES DE DATOS (2) | I8: =IF(ARG1_04!H8="","",IF(J8="f",IF(H8=ARG1_04!H8,"ü","û"),"")) ->  | L8: Código | M8: Nombre | N8: Cantidad | O8: Pedido | Q8: =RAND() -> 0.8619785089 | R8: José | S8: =VLOOKUP(LARGE($Q$8:$Q$20,ROWS(S$8:S8)),$Q$8:$R$20,2,0) -> Oscar | U8: Aceite
B9: ="" ->  | C9: ="" ->  | I9: =IF(ARG1_04!H9="","",IF(J9="f",IF(H9=ARG1_04!H9,"ü","û"),"")) ->  | L9: =RANDBETWEEN(1000,9000) -> 8131 | M9: =S8 -> Oscar | N9: =RANDBETWEEN(10,25) -> 14 | O9: =INDEX($U$8:$U$11,RANDBETWEEN(1,4)) -> Galletas | Q9: 0.8409771082 | R9: Alberto | S9: =VLOOKUP(LARGE($Q$8:$Q$20,ROWS(S$8:S9)),$Q$8:$R$20,2,0) -> Jacob | U9: Harina
B10: ="" ->  | C10: ="¿Qué producto ha pedido del código "&C12&"?" -> ¿Qué producto ha pedido del código 7035? | I10: =IF(ARG1_04!H10="","",IF(J10="f",IF(H10=ARG1_04!H10,"ü","û"),"")) ->  | L10: 2983 | M10: Jacob | N10: 10 | O10: Conservas | Q10: 0.4340834454 | R10: Javier | S10: =VLOOKUP(LARGE($Q$8:$Q$20,ROWS(S$8:S10)),$Q$8:$R$20,2,0) -> José | U10: Galletas
B11: ="" ->  | C11: Opción 1: | I11: =IF(ARG1_04!H11="","",IF(J11="f",IF(H11=ARG1_04!H11,"ü","û"),"")) ->  | L11: 3307 | M11: José | N11: 19 | O11: Aceite | Q11: 0.5331357325 | R11: Jesús | S11: =VLOOKUP(LARGE($Q$8:$Q$20,ROWS(S$8:S11)),$Q$8:$R$20,2,0) -> Roger | U11: Conservas
B12: ="" ->  | C12: =INDEX($L$9:$L$18,RANDBETWEEN(1,5)*2)&"" -> 7035 | H12: =VLOOKUP(VALUE(C12),$L$8:$O$18,3,0) -> 12 | I12: =IF(ARG1_04!H12="","",IF(J12="f",IF(H12=ARG1_04!H12,"ü","û"),"")) ->  | J12: f | L12: 1786 | M12: Roger | N12: 12 | O12: Aceite | Q12: 0.8717779599 | R12: Jacob | S12: =VLOOKUP(LARGE($Q$8:$Q$20,ROWS(S$8:S12)),$Q$8:$R$20,2,0) -> Alberto
B13: ="" ->  | C13: =IF(_xlfn.ISFORMULA(ARG1_04!H12),_xlfn.FORMULATEXT(ARG1_04!H12),"") ->  | I13: =IF(ARG1_04!H13="","",IF(J13="f",IF(H13=ARG1_04!H13,"ü","û"),"")) ->  | L13: 3853 | M13: Alberto | N13: 16 | O13: Conservas | Q13: 0.8597385115 | R13: Roger | S13: =VLOOKUP(LARGE($Q$8:$Q$20,ROWS(S$8:S13)),$Q$8:$R$20,2,0) -> Fabio
B14: ="" ->  | C14: ="" ->  | I14: =IF(ARG1_04!H14="","",IF(J14="f",IF(H14=ARG1_04!H14,"ü","û"),"")) ->  | L14: 6785 | M14: Fabio | N14: 25 | O14: Aceite | Q14: 0.6621743493 | R14: Eduardo | S14: =VLOOKUP(LARGE($Q$8:$Q$20,ROWS(S$8:S14)),$Q$8:$R$20,2,0) -> Miguel
B15: ="" ->  | C15: =IF(I12="ü","¿Es NUMERO?","") ->  | H15: =ISNUMBER(C12) -> FALSE | I15: =IF(ARG1_04!H15="","",IF(J15="f",IF(H15=ARG1_04!H15,"ü","û"),"")) ->  | J15: f | L15: 2066 | M15: Miguel | N15: 12 | O15: Conservas | Q15: 0.78151276 | R15: Miguel | S15: =VLOOKUP(LARGE($Q$8:$Q$20,ROWS(S$8:S15)),$Q$8:$R$20,2,0) -> Eduardo
B16: ="" ->  | C16: =IF(_xlfn.ISFORMULA(ARG1_04!H15),IF(I12="ü",_xlfn.FORMULATEXT(ARG1_04!H15),""),"") ->  | I16: =IF(ARG1_04!H16="","",IF(J16="f",IF(H16=ARG1_04!H16,"ü","û"),"")) ->  | L16: 7035 | M16: Eduardo | N16: 12 | O16: Conservas | Q16: 0.593160108 | R16: Francisco | S16: =VLOOKUP(LARGE($Q$8:$Q$20,ROWS(S$8:S16)),$Q$8:$R$20,2,0) -> Francisco
B17: ="" ->  | C17: =IF(I12="ü","¿Es TEXTO?","") ->  | H17: =ISTEXT(C12) -> TRUE | I17: =IF(ARG1_04!H17="","",IF(J17="f",IF(H17=ARG1_04!H17,"ü","û"),"")) ->  | J17: f | L17: 4442 | M17: Francisco | N17: 15 | O17: Galletas | Q17: 0.8344860717 | R17: Fabio | S17: =VLOOKUP(LARGE($Q$8:$Q$20,ROWS(S$8:S17)),$Q$8:$R$20,2,0) -> Franco
B18: ="" ->  | C18: =IF(_xlfn.ISFORMULA(ARG1_04!H17),IF(I12="ü",_xlfn.FORMULATEXT(ARG1_04!H17),""),"") ->  | I18: =IF(ARG1_04!H18="","",IF(J18="f",IF(H18=ARG1_04!H18,"ü","û"),"")) ->  | L18: 4270 | M18: Franco | N18: 10 | O18: Galletas | Q18: 0.443441268 | R18: Omar | S18: =VLOOKUP(LARGE($Q$8:$Q$20,ROWS(S$8:S18)),$Q$8:$R$20,2,0) -> Jesús
B19: ="" ->  | C19: ="" ->  | I19: =IF(ARG1_04!H19="","",IF(J19="f",IF(H19=ARG1_04!H19,"ü","û"),"")) ->  | Q19: 0.5923616825 | R19: Franco | S19: =VLOOKUP(LARGE($Q$8:$Q$20,ROWS(S$8:S19)),$Q$8:$R$20,2,0) -> Omar
B20: ="" ->  | C20: Ejercicio → | I20: =IF(ARG1_04!H20="","",IF(J20="f",IF(H20=ARG1_04!H20,"ü","û"),"")) ->  | Q20: 0.9962193559 | R20: Oscar | S20: =VLOOKUP(LARGE($Q$8:$Q$20,ROWS(S$8:S20)),$Q$8:$R$20,2,0) -> Javier
B21: ="" ->  | C21: =INDEX($L$9:$L$18,RANDBETWEEN(1,5)*2-1)&" " -> 2066 | H21: =VLOOKUP(VALUE(LEFT(C21,4)),$L$8:$O$18,3,0) -> 12 | I21: =IF(ARG1_04!H21="","",IF(J21="f",IF(H21=ARG1_04!H21,"ü","û"),"")) ->  | J21: f
B22: ="" ->  | C22: =IF(_xlfn.ISFORMULA(ARG1_04!H21),_xlfn.FORMULATEXT(ARG1_04!H21),"") ->  | I22: =IF(ARG1_04!H22="","",IF(J22="f",IF(H22=ARG1_04!H22,"ü","û"),"")) -> 

Sheet ARG1_04 (hidden)
B1: Argumento valor buscado
B2: MOS Expert - CPC Martín Cruz - 998401784
B6: =lista01.10 ->  | C6: VALOR BUSCADO | I6: =lista01.11 -> 
B8: ► | C8: CORRECCIONES DE DATOS (2) | K8: =lista01.12 -> Código | L8: Nombre | M8: Cantidad | N8: Pedido
K9: 8131 | L9: Oscar | M9: 14 | N9: Galletas
C10: ¿Qué producto ha pedido del código 7035? | K10: 2983 | L10: Jacob | M10: 10 | N10: Conservas
C11: Opción 1: | K11: 3307 | L11: José | M11: 19 | N11: Aceite
C12: 7035 | K12: 1786 | L12: Roger | M12: 12 | N12: Aceite
K13: 3853 | L13: Alberto | M13: 16 | N13: Conservas
K14: 6785 | L14: Fabio | M14: 25 | N14: Aceite
K15: 2066 | L15: Miguel | M15: 12 | N15: Conservas
K16: 7035 | L16: Eduardo | M16: 12 | N16: Conservas
K17: 4442 | L17: Francisco | M17: 15 | N17: Galletas
K18: 4270 | L18: Franco | M18: 10 | N18: Galletas
C20: Ejercicio →
C21: 2066

Sheet DO_A1_05 (hidden)
B6: ="" ->  | C6: VALOR BUSCADO
B7: ="" ->  | C7: ="" -> 
B8: ► | C8: VALORES REPETIDOS | M8: Unicode | N8: Código | O8: Nombre | P8: Cantidad | Q8: Pedido
B9: ="" ->  | C9: ="" ->  | M9: =N9&"-"&COUNTIF(N$9:N9,N9) -> 2732-1 | N9: =V9 -> 2732 | O9: =W9 -> Jacob | P9: =RANDBETWEEN(10,25) -> 13 | Q9: =INDEX($Y$9:$Y$12,RANDBETWEEN(1,4)) -> Aceite | S9: =RAND() -> 0.7896420904 | T9: =RANDBETWEEN(1000,9000) -> 4094 | U9: José | V9: =INDEX($T$9:$T$21,RANDBETWEEN(1,13)) -> 2732 | W9: =VLOOKUP(V9,$T$9:$U$21,2,0) -> Jacob | Y9: Aceite
B10: ="" ->  | C10: ="¿Cuáles fueron los pedidos del código "&C12&"?" -> ¿Cuáles fueron los pedidos del código 8015? | I10: f | J10: f | M10: =N10&"-"&COUNTIF(N$9:N10,N10) -> 3582-1 | N10: 3582 | O10: Roger | P10: 10 | Q10: Harina | S10: 0.1450862277 | T10: 2297 | U10: Alberto | V10: =INDEX($T$9:$T$21,RANDBETWEEN(1,13)) -> 3582 | W10: Roger | Y10: Harina
B11: ="" ->  | C11: Ejercicio → | H11: =IF(ARG1_05!H13="","",IF(H10="f",IF(H13=ARG1_05!H13,"ü","û"),"")) ->  | I11: =IF(ARG1_05!I13="","",IF(I10="f",IF(I13=ARG1_05!I13,"ü","û"),"")) ->  | J11: =IF(ARG1_05!J13="","",IF(J10="f",IF(J13=ARG1_05!J13,"ü","û"),"")) ->  | M11: =N11&"-"&COUNTIF(N$9:N11,N11) -> 2311-1 | N11: 2311 | O11: Omar | P11: 22 | Q11: Galletas | S11: 0.8181692972 | T11: 4023 | U11: Javier | V11: 2311 | W11: Omar | Y11: Galletas
B12: ="" ->  | C12: =INDEX($N$9:$N$18,RANDBETWEEN(1,5)*2) -> 8015 | H12: Nro Pedido | I12: Cantidad | J12: Pedido | M12: =N12&"-"&COUNTIF(N$9:N12,N12) -> 2297-1 | N12: 2297 | O12: Alberto | P12: 18 | Q12: Harina | S12: 0.7630242929 | T12: 1567 | U12: Jesús | V12: 2297 | W12: Alberto | Y12: Conservas
B13: ="" ->  | C13: =IF(_xlfn.ISFORMULA(ARG1_05!I17),_xlfn.FORMULATEXT(ARG1_05!I17),"") ->  | H13: 1 | I13: =IFERROR(VLOOKUP($C$12&"-"&$H13,$M$8:$Q$18,4,0),"") -> 18 | J13: =IFERROR(VLOOKUP($C$12&"-"&$H13,$M$8:$Q$18,5,0),"") -> Conservas | M13: =N13&"-"&COUNTIF(N$9:N13,N13) -> 7958-1 | N13: 7958 | O13: Eduardo | P13: 18 | Q13: Galletas | S13: 0.01031235617 | T13: 2732 | U13: Jacob | V13: 7958 | W13: Eduardo
B14: ="" ->  | C14: =IF(_xlfn.ISFORMULA(ARG1_05!J17),_xlfn.FORMULATEXT(ARG1_05!J17),"") ->  | H14: 2 | I14: =IFERROR(VLOOKUP($C$12&"-"&$H14,$M$8:$Q$18,4,0),"") ->  | J14: =IFERROR(VLOOKUP($C$12&"-"&$H14,$M$8:$Q$18,5,0),"") ->  | M14: =N14&"-"&COUNTIF(N$9:N14,N14) -> 2732-2 | N14: 2732 | O14: Jacob | P14: 18 | Q14: Aceite | S14: 0.8190114115 | T14: 3582 | U14: Roger | V14: 2732 | W14: Jacob
B15: ="" ->  | C15: ="" ->  | H15: 3 | I15: =IFERROR(VLOOKUP($C$12&"-"&$H15,$M$8:$Q$18,4,0),"") ->  | J15: =IFERROR(VLOOKUP($C$12&"-"&$H15,$M$8:$Q$18,5,0),"") ->  | M15: =N15&"-"&COUNTIF(N$9:N15,N15) -> 3582-2 | N15: 3582 | O15: Roger | P15: 15 | Q15: Conservas | S15: 0.9110926013 | T15: 7958 | U15: Eduardo | V15: 3582 | W15: Roger
B16: ="" ->  | C16: ="" ->  | H16: 4 | I16: =IFERROR(VLOOKUP($C$12&"-"&$H16,$M$8:$Q$18,4,0),"") ->  | J16: =IFERROR(VLOOKUP($C$12&"-"&$H16,$M$8:$Q$18,5,0),"") ->  | M16: =N16&"-"&COUNTIF(N$9:N16,N16) -> 8180-1 | N16: 8180 | O16: Franco | P16: 10 | Q16: Conservas | S16: 0.435167277 | T16: 1957 | U16: Miguel | V16: 8180 | W16: Franco
B17: ="" ->  | C17: ="" ->  | H17: 5 | I17: =IFERROR(VLOOKUP($C$12&"-"&$H17,$M$8:$Q$18,4,0),"") ->  | J17: =IFERROR(VLOOKUP($C$12&"-"&$H17,$M$8:$Q$18,5,0),"") ->  | M17: =N17&"-"&COUNTIF(N$9:N17,N17) -> 2311-2 | N17: 2311 | O17: Omar | P17: 21 | Q17: Conservas | S17: 0.5896155663 | T17: 3951 | U17: Francisco | V17: 2311 | W17: Omar
M18: =N18&"-"&COUNTIF(N$9:N18,N18) -> 8015-1 | N18: 8015 | O18: Oscar | P18: 18 | Q18: Conservas | S18: 0.6799944434 | T18: 8085 | U18: Fabio | V18: 8015 | W18: Oscar
S19: 0.8304119981 | T19: 2311 | U19: Omar
S20: 0.3786317042 | T20: 8180 | U20: Franco
S21: 0.2934567809 | T21: 8015 | U21: Oscar

Sheet ARG1_05 (hidden)
B1: Argumento valor buscado
B2: MOS Expert - CPC Martín Cruz - 998401784
B6: =lista01.13 ->  | C6: VALOR BUSCADO
B8: ► | C8: VALORES REPETIDOS | L8: Unicode | M8: =lista01.14 -> Código | N8: Nombre | O8: Cantidad | P8: Pedido
M9: 2732 | N9: Jacob | O9: 13 | P9: Aceite
C10: ¿Cuáles fueron los pedidos del código 8015? | M10: 3582 | N10: Roger | O10: 10 | P10: Harina
C11: Ejercicio → | H11: =lista01.15 ->  | M11: 2311 | N11: Omar | O11: 22 | P11: Galletas
C12: 8015 | H12: Nro Pedido | I12: Cantidad | J12: Pedido | M12: 2297 | N12: Alberto | O12: 18 | P12: Harina
H13: 1 | M13: 7958 | N13: Eduardo | O13: 18 | P13: Galletas
H14: 2 | M14: 2732 | N14: Jacob | O14: 18 | P14: Aceite
H15: 3 | M15: 3582 | N15: Roger | O15: 15 | P15: Conservas
H16: 4 | M16: 8180 | N16: Franco | O16: 10 | P16: Conservas
H17: 5 | M17: 2311 | N17: Omar | O17: 21 | P17: Conservas
M18: 8015 | N18: Oscar | O18: 18 | P18: Conservas

Sheet DO_A1_06 (hidden)
B6: ="" ->  | C6: VALOR BUSCADO | H6: =IF(ARG1_06!G6="","",IF(I6="f",IF(G6=ARG1_06!G6,"ü","û"),"")) -> 
B7: ="" ->  | C7: ="" ->  | H7: =IF(ARG1_06!G7="","",IF(I7="f",IF(G7=ARG1_06!G7,"ü","û"),"")) -> 
B8: ► | C8: APROXIMACION NUMERICA | H8: =IF(ARG1_06!G8="","",IF(I8="f",IF(G8=ARG1_06!G8,"ü","û"),"")) ->  | K8: Nombre | L8: Cantidad | M8: Precio | N8: Venta | P8: Ventas | Q8: Categoria | R8: Comisión
B9: ="" ->  | C9: ="" ->  | H9: =IF(ARG1_06!G9="","",IF(I9="f",IF(G9=ARG1_06!G9,"ü","û"),"")) ->  | K9: =V9 -> Alberto | L9: =RANDBETWEEN(10,100) -> 46 | M9: =ROUND(RANDBETWEEN(50,150)+RAND(),2) -> 114.42 | N9: =ROUND(L9*M9,2) -> 5,263.32 | P9: 0 | Q9: Por debajo | R9: 0 | T9: =RAND() -> 0.3310619582 | U9: José | V9: =VLOOKUP(LARGE($T$9:$T$21,ROWS(V$9:V9)),$T$9:$U$21,2,0) -> Alberto
B10: ="" ->  | C10: ="¿Ha cuanto asciende la comisión del vendedor "&C12&"?" -> ¿Ha cuanto asciende la comisión del vendedor Jacob? | H10: =IF(ARG1_06!G10="","",IF(I10="f",IF(G10=ARG1_06!G10,"ü","û"),"")) ->  | K10: Francisco | L10: 74 | M10: 52.42 | N10: 3,879.08 | P10: 1000 | Q10: Bajo | R10: 20 | T10: 0.9345961588 | U10: Alberto | V10: =VLOOKUP(LARGE($T$9:$T$21,ROWS(V$9:V10)),$T$9:$U$21,2,0) -> Francisco
B11: ="" ->  | C11: Opción 1: | G11: =VLOOKUP(C12,$K$8:$N$18,4,0) -> 1,868.48 | H11: =IF(ARG1_06!G11="","",IF(I11="f",IF(G11=ARG1_06!G11,"ü","û"),"")) ->  | I11: f | K11: Eduardo | L11: 70 | M11: 69.12 | N11: 4,838.40 | P11: 2500 | Q11: Por encima | R11: 100 | T11: 0.1310872501 | U11: Javier | V11: =VLOOKUP(LARGE($T$9:$T$21,ROWS(V$9:V11)),$T$9:$U$21,2,0) -> Eduardo
B12: ="" ->  | C12: =INDEX($V$9:$V$18,RANDBETWEEN(1,5)*2) -> Jacob | G12: =VLOOKUP(G11,$P$8:$R$13,3,1) -> 20 | H12: =IF(ARG1_06!G12="","",IF(I12="f",IF(G12=ARG1_06!G12,"ü","û"),"")) ->  | I12: f | K12: Jacob | L12: 16 | M12: 116.78 | N12: 1,868.48 | P12: 7000 | Q12: Muy bueno | R12: 250 | T12: 0.2952169709 | U12: Jesús | V12: =VLOOKUP(LARGE($T$9:$T$21,ROWS(V$9:V12)),$T$9:$U$21,2,0) -> Jacob
B13: ="" ->  | C13: =IF(_xlfn.ISFORMULA(ARG1_06!G12),_xlfn.FORMULATEXT(ARG1_06!G12),"") ->  | H13: =IF(ARG1_06!G13="","",IF(I13="f",IF(G13=ARG1_06!G13,"ü","û"),"")) ->  | K13: Fabio | L13: 69 | M13: 71.60 | N13: 4,940.40 | P13: 10000 | Q13: Excelente | R13: 700 | T13: 0.6405046284 | U13: Jacob | V13: =VLOOKUP(LARGE($T$9:$T$21,ROWS(V$9:V13)),$T$9:$U$21,2,0) -> Fabio
B14: ="" ->  | C14: ="" ->  | H14: =IF(ARG1_06!G14="","",IF(I14="f",IF(G14=ARG1_06!G14,"ü","û"),"")) ->  | K14: Omar | L14: 11 | M14: 57.85 | N14: 636.35 | T14: 0.0782141204 | U14: Roger | V14: =VLOOKUP(LARGE($T$9:$T$21,ROWS(V$9:V14)),$T$9:$U$21,2,0) -> Omar
B15: ="" ->  | C15: ="¿Qué categoria de comisión tiene el vendedor "&C17&"?" -> ¿Qué categoria de comisión tiene el vendedor Fabio? | H15: =IF(ARG1_06!G15="","",IF(I15="f",IF(G15=ARG1_06!G15,"ü","û"),"")) ->  | K15: Oscar | L15: 17 | M15: 63.30 | N15: 1,076.10 | T15: 0.7114796149 | U15: Eduardo | V15: =VLOOKUP(LARGE($T$9:$T$21,ROWS(V$9:V15)),$T$9:$U$21,2,0) -> Oscar
B16: ="" ->  | C16: Ejercicio → | G16: =VLOOKUP(C17,$K$8:$N$18,4,0) -> 4,940.40 | H16: =IF(ARG1_06!G16="","",IF(I16="f",IF(G16=ARG1_06!G16,"ü","û"),"")) ->  | I16: f | K16: José | L16: 88 | M16: 109.43 | N16: 9,629.84 | T16: 0.2028451514 | U16: Miguel | V16: =VLOOKUP(LARGE($T$9:$T$21,ROWS(V$9:V16)),$T$9:$U$21,2,0) -> José
B17: ="" ->  | C17: =INDEX($V$9:$V$18,RANDBETWEEN(1,5)*2-1) -> Fabio | G17: =VLOOKUP(G16,$P$8:$R$13,2,1) -> Por encima | H17: =IF(ARG1_06!G17="","",IF(I17="f",IF(G17=ARG1_06!G17,"ü","û"),"")) ->  | I17: f | K17: Jesús | L17: 10 | M17: 94.45 | N17: 944.50 | T17: 0.9088856234 | U17: Francisco | V17: =VLOOKUP(LARGE($T$9:$T$21,ROWS(V$9:V17)),$T$9:$U$21,2,0) -> Jesús
B18: ="" ->  | C18: =IF(_xlfn.ISFORMULA(ARG1_06!G17),_xlfn.FORMULATEXT(ARG1_06!G17),"") ->  | H18: =IF(ARG1_06!G18="","",IF(I18="f",IF(G18=ARG1_06!G18,"ü","û"),"")) ->  | K18: Franco | L18: 69 | M18: 51.07 | N18: 3,523.83 | T18: 0.5978244774 | U18: Fabio | V18: =VLOOKUP(LARGE($T$9:$T$21,ROWS(V$9:V18)),$T$9:$U$21,2,0) -> Franco
T19: 0.5796826564 | U19: Omar
T20: 0.2212976524 | U20: Franco
T21: 0.5397297785 | U21: Oscar

Sheet ARG1_06 (hidden)
B1: Argumento valor buscado
B2: MOS Expert - CPC Martín Cruz - 998401784
B6: =lista01.16 ->  | C6: VALOR BUSCADO | H6: =lista01.19 -> 
B8: ► | C8: APROXIMACION NUMERICA | J8: =lista01.17 -> Nombre | K8: Cantidad | L8: Precio | M8: Venta | O8: =lista01.18 -> Ventas | P8: Categoria | Q8: Comisión
J9: Alberto | K9: 46 | L9: 114.42 | M9: 5,263.32 | O9: 0 | P9: Por debajo | Q9: 0
C10: ¿Ha cuanto asciende la comisión del vendedor Jacob? | J10: Francisco | K10: 74 | L10: 52.42 | M10: 3,879.08 | O10: 1000 | P10: Bajo | Q10: 20
C11: Opción 1: | J11: Eduardo | K11: 70 | L11: 69.12 | M11: 4,838.40 | O11: 2500 | P11: Por encima | Q11: 100
C12: Jacob | J12: Jacob | K12: 16 | L12: 116.78 | M12: 1,868.48 | O12: 7000 | P12: Muy bueno | Q12: 250
J13: Fabio | K13: 69 | L13: 71.60 | M13: 4,940.40 | O13: 10000 | P13: Excelente | Q13: 700
J14: Omar | K14: 11 | L14: 57.85 | M14: 636.35
C15: ¿Qué categoria de comisión tiene el vendedor Fabio? | J15: Oscar | K15: 17 | L15: 63.30 | M15: 1,076.10
C16: Ejercicio → | J16: José | K16: 88 | L16: 109.43 | M16: 9,629.84
C17: Fabio | J17: Jesús | K17: 10 | L17: 94.45 | M17: 944.50
J18: Franco | K18: 69 | L18: 51.07 | M18: 3,523.83

Sheet DO_A3_01 (hidden)
B6: ="" ->  | C6: INDICADOR DE COLUMNA - INDICADOR DE FILA | I6: =IF(ARG3_01!H6="","",IF(J6="f",IF(H6=ARG3_01!H6,"ü","û"),"")) -> 
B7: ="" ->  | C7: ="" ->  | I7: =IF(ARG3_01!H7="","",IF(J7="f",IF(H7=ARG3_01!H7,"ü","û"),"")) ->  | L7: Meses | M7: Norte | N7: Sur | O7: Este | P7: Oeste
B8: ► | C8: COLUMNA O FILA FIJA | I8: =IF(ARG3_01!H8="","",IF(J8="f",IF(H8=ARG3_01!H8,"ü","û"),"")) ->  | L8: =PROPER(TEXT(DATE(YEAR(TODAY()),ROWS(L$8:L8),1),"mmmm")) -> Enero | M8: =ROUND(RANDBETWEEN(100,600)+RAND(),2) -> 210.32 | N8: 220.54 | O8: 326.91 | P8: 578.60 | R8: =RAND() -> 0.2980472111 | S8: =TRANSPOSE(M7:P7) -> Norte | T8: =VLOOKUP(LARGE($R$8:$R$11,ROWS(T$8:T8)),$R$8:$S$11,2,0) -> Este
B9: ="" ->  | C9: ="" ->  | I9: =IF(ARG3_01!H9="","",IF(J9="f",IF(H9=ARG3_01!H9,"ü","û"),"")) ->  | L9: =PROPER(TEXT(DATE(YEAR(TODAY()),ROWS(L$8:L9),1),"mmmm")) -> Febrero | M9: 128.27 | N9: 116.31 | O9: 410.67 | P9: 465.84 | R9: 0.4120063995 | S9: Sur | T9: =VLOOKUP(LARGE($R$8:$R$11,ROWS(T$8:T9)),$R$8:$S$11,2,0) -> Sur
B10: ="" ->  | C10: ="¿A cuánto asciende la venta del mes de "&C12&" de la zona Norte?" -> ¿A cuánto asciende la venta del mes de Abril de la zona Norte? | I10: =IF(ARG3_01!H10="","",IF(J10="f",IF(H10=ARG3_01!H10,"ü","û"),"")) ->  | L10: =PROPER(TEXT(DATE(YEAR(TODAY()),ROWS(L$8:L10),1),"mmmm")) -> Marzo | M10: 475.69 | N10: 119.64 | O10: 356.30 | P10: 301.94 | R10: 0.7282339049 | S10: Este | T10: =VLOOKUP(LARGE($R$8:$R$11,ROWS(T$8:T10)),$R$8:$S$11,2,0) -> Norte
B11: ="" ->  | C11: Opción 1: BUSCARV | I11: =IF(ARG3_01!H11="","",IF(J11="f",IF(H11=ARG3_01!H11,"ü","û"),"")) ->  | L11: =PROPER(TEXT(DATE(YEAR(TODAY()),ROWS(L$8:L11),1),"mmmm")) -> Abril | M11: 103.31 | N11: 372.66 | O11: 257.50 | P11: 439.48 | R11: 0.2837228111 | S11: Oeste | T11: =VLOOKUP(LARGE($R$8:$R$11,ROWS(T$8:T11)),$R$8:$S$11,2,0) -> Oeste
B12: ="" ->  | C12: =INDEX($L$8:$L$19,RANDBETWEEN(1,12)) -> Abril | H12: =VLOOKUP(C12,$L$7:$P$19,2,0) -> 103.31 | I12: =IF(ARG3_01!H12="","",IF(J12="f",IF(H12=ARG3_01!H12,"ü","û"),"")) -> ü | J12: f | L12: =PROPER(TEXT(DATE(YEAR(TODAY()),ROWS(L$8:L12),1),"mmmm")) -> Mayo | M12: 128.04 | N12: 336.61 | O12: 439.80 | P12: 144.35
B13: ="" ->  | C13: =IF(_xlfn.ISFORMULA(ARG3_01!H12),_xlfn.FORMULATEXT(ARG3_01!H12),"") -> =BUSCARV(C12,$K$8:$O$20,2,0) | I13: =IF(ARG3_01!H13="","",IF(J13="f",IF(H13=ARG3_01!H13,"ü","û"),"")) ->  | L13: =PROPER(TEXT(DATE(YEAR(TODAY()),ROWS(L$8:L13),1),"mmmm")) -> Junio | M13: 472.26 | N13: 299.55 | O13: 186.03 | P13: 350.33
B14: ="" ->  | C14: ="" ->  | I14: =IF(ARG3_01!H14="","",IF(J14="f",IF(H14=ARG3_01!H14,"ü","û"),"")) ->  | L14: =PROPER(TEXT(DATE(YEAR(TODAY()),ROWS(L$8:L14),1),"mmmm")) -> Julio | M14: 554.29 | N14: 413.30 | O14: 229.49 | P14: 333.28
B15: ="" ->  | C15: ="¿A cuánto asciende la venta del mes de Mayo de la zona "&C17&"?" -> ¿A cuánto asciende la venta del mes de Mayo de la zona Oeste? | I15: =IF(ARG3_01!H15="","",IF(J15="f",IF(H15=ARG3_01!H15,"ü","û"),"")) ->  | L15: =PROPER(TEXT(DATE(YEAR(TODAY()),ROWS(L$8:L15),1),"mmmm")) -> Agosto | M15: 416.17 | N15: 246.85 | O15: 522.31 | P15: 173.40
B16: ="" ->  | C16: Opción 2: BUSCARH | I16: =IF(ARG3_01!H16="","",IF(J16="f",IF(H16=ARG3_01!H16,"ü","û"),"")) ->  | L16: =PROPER(TEXT(DATE(YEAR(TODAY()),ROWS(L$8:L16),1),"mmmm")) -> Setiembre | M16: 329.30 | N16: 531.87 | O16: 516.83 | P16: 427.04
B17: ="" ->  | C17: =INDEX($M$7:$P$7,RANDBETWEEN(1,4)) -> Oeste | H17: =HLOOKUP(C17,$L$7:$P$19,6,0) -> 144.35 | I17: =IF(ARG3_01!H17="","",IF(J17="f",IF(H17=ARG3_01!H17,"ü","û"),"")) -> ü | J17: f | L17: =PROPER(TEXT(DATE(YEAR(TODAY()),ROWS(L$8:L17),1),"mmmm")) -> Octubre | M17: 160.43 | N17: 268.61 | O17: 534.10 | P17: 409.35
B18: ="" ->  | C18: =IF(_xlfn.ISFORMULA(ARG3_01!H17),_xlfn.FORMULATEXT(ARG3_01!H17),"") -> =BUSCARH(C17,$K$8:$O$20,6,0) | I18: =IF(ARG3_01!H18="","",IF(J18="f",IF(H18=ARG3_01!H18,"ü","û"),"")) ->  | L18: =PROPER(TEXT(DATE(YEAR(TODAY()),ROWS(L$8:L18),1),"mmmm")) -> Noviembre | M18: 432.32 | N18: 435.01 | O18: 183.47 | P18: 120.47
B19: ="" ->  | C19: ="" ->  | I19: =IF(ARG3_01!H19="","",IF(J19="f",IF(H19=ARG3_01!H19,"ü","û"),"")) ->  | L19: =PROPER(TEXT(DATE(YEAR(TODAY()),ROWS(L$8:L19),1),"mmmm")) -> Diciembre | M19: 122.43 | N19: 346.33 | O19: 414.56 | P19: 155.76
B20: ► | C20: COLUMNA O FILA CALCULADA - CON CELDA DE APOYO (1) | I20: =IF(ARG3_01!H20="","",IF(J20="f",IF(H20=ARG3_01!H20,"ü","û"),"")) -> 
B21: ="" ->  | C21: ="" ->  | I21: =IF(ARG3_01!H21="","",IF(J21="f",IF(H21=ARG3_01!H21,"ü","û"),"")) -> 
B22: ="" ->  | C22: ="¿A cuánto asciende la venta del mes de "&C24&" de la zona "&C25&"?" -> ¿A cuánto asciende la venta del mes de Diciembre de la zona Oeste? | I22: =IF(ARG3_01!H22="","",IF(J22="f",IF(H22=ARG3_01!H22,"ü","û"),"")) -> 
B23: ="" ->  | C23: Opción 1: BUSCARV | I23: =IF(ARG3_01!H23="","",IF(J23="f",IF(H23=ARG3_01!H23,"ü","û"),"")) -> 
B24: ="" ->  | C24: =INDEX($L$8:$L$19,RANDBETWEEN(1,6)*2) -> Diciembre | H24: =VLOOKUP(C24,$L$7:$P$19,MATCH(C25,$L$7:$P$7,0),0) -> 155.76 | I24: =IF(ARG3_01!H24="","",IF(J24="f",IF(H24=ARG3_01!H24,"ü","û"),"")) ->  | J24: f
B25: ="" ->  | C25: =INDEX($M$7:$P$7,RANDBETWEEN(1,2)*2) -> Oeste | I25: =IF(ARG3_01!H25="","",IF(J25="f",IF(H25=ARG3_01!H25,"ü","û"),"")) -> 
B26: ="" ->  | C26: =IF(_xlfn.ISFORMULA(ARG3_01!H24),_xlfn.FORMULATEXT(ARG3_01!H24),"") ->  | I26: =IF(ARG3_01!H26="","",IF(J26="f",IF(H26=ARG3_01!H26,"ü","û"),"")) -> 
B27: ="" ->  | C27: ="" ->  | I27: =IF(ARG3_01!H27="","",IF(J27="f",IF(H27=ARG3_01!H27,"ü","û"),"")) -> 
B28: ="" ->  | C28: Ejercicio → | I28: =IF(ARG3_01!H28="","",IF(J28="f",IF(H28=ARG3_01!H28,"ü","û"),"")) -> 
B29: ="" ->  | C29: =INDEX($L$8:$L$19,RANDBETWEEN(1,6)*2-1) -> Marzo | H29: =VLOOKUP(C29,$L$7:$P$19,MATCH(C30,$L$7:$P$7,0),0) -> 475.69 | I29: =IF(ARG3_01!H29="","",IF(J29="f",IF(H29=ARG3_01!H29,"ü","û"),"")) ->  | J29: f
B30: ="" ->  | C30: =INDEX($M$7:$P$7,RANDBETWEEN(1,2)*2-1) -> Norte | I30: =IF(ARG3_01!H30="","",IF(J30="f",IF(H30=ARG3_01!H30,"ü","û"),"")) -> 
B31: ="" ->  | C31: =IF(_xlfn.ISFORMULA(ARG3_01!H29),_xlfn.FORMULATEXT(ARG3_01!H29),"") ->  | I31: =IF(ARG3_01!H31="","",IF(J31="f",IF(H31=ARG3_01!H31,"ü","û"),"")) -> 
B32: ="" ->  | C32: ="" ->  | I32: =IF(ARG3_01!H32="","",IF(J32="f",IF(H32=ARG3_01!H32,"ü","û"),"")) -> 
B33: ="" ->  | C33: ="¿A cuánto asciende la venta de la zona "&C35&" del mes de "&C36&"?" -> ¿A cuánto asciende la venta de la zona Sur del mes de Abril? | I33: =IF(ARG3_01!H33="","",IF(J33="f",IF(H33=ARG3_01!H33,"ü","û"),"")) -> 
B34: ="" ->  | C34: Opción 2: BUSCARH | I34: =IF(ARG3_01!H34="","",IF(J34="f",IF(H34=ARG3_01!H34,"ü","û"),"")) -> 
B35: ="" ->  | C35: =INDEX($M$7:$P$7,RANDBETWEEN(1,2)*2) -> Sur | H35: =HLOOKUP(C35,$L$7:$P$19,MATCH(C36,$L$7:$L$19,0),0) -> 372.66 | I35: =IF(ARG3_01!H35="","",IF(J35="f",IF(H35=ARG3_01!H35,"ü","û"),"")) ->  | J35: f
B36: ="" ->  | C36: =INDEX($L$8:$L$19,RANDBETWEEN(1,6)*2) -> Abril | I36: =IF(ARG3_01!H36="","",IF(J36="f",IF(H36=ARG3_01!H36,"ü","û"),"")) -> 
B37: ="" ->  | C37: =IF(_xlfn.ISFORMULA(ARG3_01!H35),_xlfn.FORMULATEXT(ARG3_01!H35),"") ->  | I37: =IF(ARG3_01!H37="","",IF(J37="f",IF(H37=ARG3_01!H37,"ü","û"),"")) -> 
B38: ="" ->  | C38: ="" ->  | I38: =IF(ARG3_01!H38="","",IF(J38="f",IF(H38=ARG3_01!H38,"ü","û"),"")) -> 
B39: ="" ->  | C39: Ejercicio → | I39: =IF(ARG3_01!H39="","",IF(J39="f",IF(H39=ARG3_01!H39,"ü","û"),"")) -> 
B40: ="" ->  | C40: =INDEX($M$7:$P$7,RANDBETWEEN(1,2)*2-1) -> Norte | H40: =HLOOKUP(C40,$L$7:$P$19,MATCH(C41,$L$7:$L$19,0),0) -> 128.04 | I40: =IF(ARG3_01!H40="","",IF(J40="f",IF(H40=ARG3_01!H40,"ü","û"),"")) ->  | J40: f
B41: ="" ->  | C41: =INDEX($L$8:$L$19,RANDBETWEEN(1,6)*2-1) -> Mayo | I41: =IF(ARG3_01!H41="","",IF(J41="f",IF(H41=ARG3_01!H41,"ü","û"),"")) -> 
B42: ="" ->  | C42: =IF(_xlfn.ISFORMULA(ARG3_01!H40),_xlfn.FORMULATEXT(ARG3_01!H40),"") ->  | I42: =IF(ARG3_01!H42="","",IF(J42="f",IF(H42=ARG3_01!H42,"ü","û"),"")) -> 
B43: ="" ->  | C43: ="" ->  | I43: =IF(ARG3_01!H43="","",IF(J43="f",IF(H43=ARG3_01!H43,"ü","û"),"")) -> 
B44: ► | C44: COLUMNA O FILA CALCULADA - SIN CELDA DE APOYO | I44: =IF(ARG3_01!H44="","",IF(J44="f",IF(H44=ARG3_01!H44,"ü","û"),"")) -> 
B45: ="" ->  | C45: ="" ->  | I45: =IF(ARG3_01!H45="","",IF(J45="f",IF(H45=ARG3_01!H45,"ü","û"),"")) -> 
B46: ="" ->  | C46: ="¿A cuánto asciende la venta del mes de "&C48&" de todas las zonas?" -> ¿A cuánto asciende la venta del mes de Agosto de todas las zonas? | I46: =IF(ARG3_01!H46="","",IF(J46="f",IF(H46=ARG3_01!H46,"ü","û"),"")) -> 
B47: ="" ->  | C47: Opción 1: BUSCARV | I47: =IF(ARG3_01!H47="","",IF(J47="f",IF(H47=ARG3_01!H47,"ü","û"),"")) -> 
B48: ="" ->  | C48: =INDEX($L$8:$L$19,RANDBETWEEN(1,6)*2) -> Agosto | I48: =IF(ARG3_01!H48="","",IF(J48="f",IF(H48=ARG3_01!H48,"ü","û"),"")) -> 
B49: ="" ->  | C49: ="Zona "&TRANSPOSE(M7:N7) -> Zona Norte | H49: =VLOOKUP($C$48,$L$7:$P$19,ROWS(H$48:H49),0) -> 416.17 | I49: =IF(ARG3_01!H49="","",IF(J49="f",IF(H49=ARG3_01!H49,"ü","û"),"")) ->  | J49: f
B50: ="" ->  | C50: Zona Sur | H50: =VLOOKUP($C$48,$L$7:$P$19,ROWS(H$48:H50),0) -> 246.85 | I50: =IF(ARG3_01!H50="","",IF(J50="f",IF(H50=ARG3_01!H50,"ü","û"),"")) ->  | J50: f
B51: ="" ->  | C51: =IF(_xlfn.ISFORMULA(ARG3_01!H49),_xlfn.FORMULATEXT(ARG3_01!H49),"") ->  | I51: =IF(ARG3_01!H51="","",IF(J51="f",IF(H51=ARG3_01!H51,"ü","û"),"")) -> 
B52: ="" ->  | C52: ="" ->  | I52: =IF(ARG3_01!H52="","",IF(J52="f",IF(H52=ARG3_01!H52,"ü","û"),"")) -> 
B53: ="" ->  | C53: Opción 2: BUSCARV | I53: =IF(ARG3_01!H53="","",IF(J53="f",IF(H53=ARG3_01!H53,"ü","û"),"")) -> 
B54: ="" ->  | C54: =C48 -> Agosto | D54: ="" ->  | I54: =IF(ARG3_01!H54="","",IF(J54="f",IF(H54=ARG3_01!H54,"ü","û"),"")) -> 
B55: ="" ->  | C55: =TRANSPOSE(C49:C50) -> Zona Norte | D55: Zona Sur | G55: =VLOOKUP($C54,$L$7:$P$19,COLUMNS($F$55:G$55),0) -> 416.17 | H55: =VLOOKUP($C54,$L$7:$P$19,COLUMNS($F$55:H$55),0) -> 246.85 | I55: =IF(ARG3_01!H55="","",IF(J55="f",IF(H55=ARG3_01!H55,"ü","û"),"")) ->  | J55: f
B56: ="" ->  | C56: =IF(_xlfn.ISFORMULA(ARG3_01!H55),_xlfn.FORMULATEXT(ARG3_01!H55),"") ->  | I56: =IF(ARG3_01!H56="","",IF(J56="f",IF(H56=ARG3_01!H56,"ü","û"),"")) -> 
B57: ="" ->  | C57: ="" ->  | I57: =IF(ARG3_01!H57="","",IF(J57="f",IF(H57=ARG3_01!H57,"ü","û"),"")) -> 
B58: ="" ->  | C58: Ejercicio → | I58: =IF(ARG3_01!H58="","",IF(J58="f",IF(H58=ARG3_01!H58,"ü","û"),"")) -> 
B59: ="" ->  | C59: =INDEX($L$8:$L$19,RANDBETWEEN(1,6)*2-1) -> Julio | I59: =IF(ARG3_01!H59="","",IF(J59="f",IF(H59=ARG3_01!H59,"ü","û"),"")) -> 
B60: ="" ->  | C60: ="Zona "&TRANSPOSE(O7:P7) -> Zona Este | H60: =VLOOKUP($C$59,$L$7:$P$19,ROWS(H$59:H60)+2,0) -> 229.49 | I60: =IF(ARG3_01!H60="","",IF(J60="f",IF(H60=ARG3_01!H60,"ü","û"),"")) ->  | J60: f
B61: ="" ->  | C61: Zona Oeste | H61: =VLOOKUP($C$59,$L$7:$P$19,ROWS(H$59:H61)+2,0) -> 333.28 | I61: =IF(ARG3_01!H61="","",IF(J61="f",IF(H61=ARG3_01!H61,"ü","û"),"")) ->  | J61: f
B62: ="" ->  | C62: =IF(_xlfn.ISFORMULA(ARG3_01!H60),_xlfn.FORMULATEXT(ARG3_01!H60),"") ->  | I62: =IF(ARG3_01!H62="","",IF(J62="f",IF(H62=ARG3_01!H62,"ü","û"),"")) -> 
B63: ="" ->  | C63: ="" ->  | I63: =IF(ARG3_01!H63="","",IF(J63="f",IF(H63=ARG3_01!H63,"ü","û"),"")) -> 
B64: ="" ->  | C64: Ejercicio → | I64: =IF(ARG3_01!H64="","",IF(J64="f",IF(H64=ARG3_01!H64,"ü","û"),"")) -> 
B65: ="" ->  | C65: =C59 -> Julio | D65: ="" ->  | I65: =IF(ARG3_01!H65="","",IF(J65="f",IF(H65=ARG3_01!H65,"ü","û"),"")) -> 
B66: ="" ->  | C66: =TRANSPOSE(C60:C61) -> Zona Este | D66: Zona Oeste | G66: =VLOOKUP($C65,$L$7:$P$19,COLUMNS($F$66:G$66)+2,0) -> 229.49 | H66: =VLOOKUP($C65,$L$7:$P$19,COLUMNS($F$66:H$66)+2,0) -> 333.28 | I66: =IF(ARG3_01!H66="","",IF(J66="f",IF(H66=ARG3_01!H66,"ü","û"),"")) ->  | J66: f
B67: ="" ->  | C67: =IF(_xlfn.ISFORMULA(ARG3_01!H66),_xlfn.FORMULATEXT(ARG3_01!H66),"") ->  | I67: =IF(ARG3_01!H67="","",IF(J67="f",IF(H67=ARG3_01!H67,"ü","û"),"")) -> 
B68: ="" ->  | C68: ="" ->  | I68: =IF(ARG3_01!H68="","",IF(J68="f",IF(H68=ARG3_01!H68,"ü","û"),"")) -> 
B69: ► | C69: COLUMNA O FILA CALCULADA - CON CELDA DE APOYO (2) | I69: =IF(ARG3_01!H69="","",IF(J69="f",IF(H69=ARG3_01!H69,"ü","û"),"")) -> 
B70: ="" ->  | C70: ="¿A cuánto asciende la venta del mes de "&C72&" de todas las zonas?" -> ¿A cuánto asciende la venta del mes de Noviembre de todas las zonas? | I70: =IF(ARG3_01!H70="","",IF(J70="f",IF(H70=ARG3_01!H70,"ü","û"),"")) -> 
B71: ="" ->  | C71: Opción 1: BUSCARV | I71: =IF(ARG3_01!H71="","",IF(J71="f",IF(H71=ARG3_01!H71,"ü","û"),"")) -> 
B72: ="" ->  | C72: =INDEX($L$8:$L$19,RANDBETWEEN(1,6)*2-1) -> Noviembre | I72: =IF(ARG3_01!H72="","",IF(J72="f",IF(H72=ARG3_01!H72,"ü","û"),"")) -> 
B73: ="" ->  | C73: =$T$8:$T$11 -> Este | H73: =VLOOKUP(C$72,$L$7:$P$19,MATCH(C73,$L$7:$P$7,0),0) -> 183.47 | I73: =IF(ARG3_01!H73="","",IF(J73="f",IF(H73=ARG3_01!H73,"ü","û"),"")) ->  | J73: f
B74: ="" ->  | C74: Sur | H74: =VLOOKUP(C$72,$L$7:$P$19,MATCH(C74,$L$7:$P$7,0),0) -> 435.01 | I74: =IF(ARG3_01!H74="","",IF(J74="f",IF(H74=ARG3_01!H74,"ü","û"),"")) ->  | J74: f
B75: ="" ->  | C75: Norte | H75: =VLOOKUP(C$72,$L$7:$P$19,MATCH(C75,$L$7:$P$7,0),0) -> 432.32 | I75: =IF(ARG3_01!H75="","",IF(J75="f",IF(H75=ARG3_01!H75,"ü","û"),"")) ->  | J75: f
B76: ="" ->  | C76: Oeste | H76: =VLOOKUP(C$72,$L$7:$P$19,MATCH(C76,$L$7:$P$7,0),0) -> 120.47 | I76: =IF(ARG3_01!H76="","",IF(J76="f",IF(H76=ARG3_01!H76,"ü","û"),"")) ->  | J76: f
B77: ="" ->  | C77: =IF(_xlfn.ISFORMULA(ARG3_01!H73),_xlfn.FORMULATEXT(ARG3_01!H73),"") ->  | I77: =IF(ARG3_01!H77="","",IF(J77="f",IF(H77=ARG3_01!H77,"ü","û"),"")) -> 
B78: ="" ->  | C78: ="" ->  | I78: =IF(ARG3_01!H78="","",IF(J78="f",IF(H78=ARG3_01!H78,"ü","û"),"")) -> 
B79: ="" ->  | C79: Opción 2: BUSCARH | I79: =IF(ARG3_01!H79="","",IF(J79="f",IF(H79=ARG3_01!H79,"ü","û"),"")) -> 
B80: ="" ->  | C80: =C72 -> Noviembre | I80: =IF(ARG3_01!H80="","",IF(J80="f",IF(H80=ARG3_01!H80,"ü","û"),"")) -> 
B81: ="" ->  | C81: =$T$8:$T$11 -> Este | H81: =HLOOKUP(C81,$L$7:$P$19,MATCH($C$80,$L$7:$L$19,0),0) -> 183.47 | I81: =IF(ARG3_01!H81="","",IF(J81="f",IF(H81=ARG3_01!H81,"ü","û"),"")) ->  | J81: f
B82: ="" ->  | C82: Sur | H82: =HLOOKUP(C82,$L$7:$P$19,MATCH($C$80,$L$7:$L$19,0),0) -> 435.01 | I82: =IF(ARG3_01!H82="","",IF(J82="f",IF(H82=ARG3_01!H82,"ü","û"),"")) ->  | J82: f
B83: ="" ->  | C83: Norte | H83: =HLOOKUP(C83,$L$7:$P$19,MATCH($C$80,$L$7:$L$19,0),0) -> 432.32 | I83: =IF(ARG3_01!H83="","",IF(J83="f",IF(H83=ARG3_01!H83,"ü","û"),"")) ->  | J83: f
B84: ="" ->  | C84: Oeste | H84: =HLOOKUP(C84,$L$7:$P$19,MATCH($C$80,$L$7:$L$19,0),0) -> 120.47 | I84: =IF(ARG3_01!H84="","",IF(J84="f",IF(H84=ARG3_01!H84,"ü","û"),"")) ->  | J84: f
B85: ="" ->  | C85: =IF(_xlfn.ISFORMULA(ARG3_01!H81),_xlfn.FORMULATEXT(ARG3_01!H81),"") ->  | I85: =IF(ARG3_01!H85="","",IF(J85="f",IF(H85=ARG3_01!H85,"ü","û"),"")) -> 
B86: ="" ->  | C86: ="" ->  | I86: =IF(ARG3_01!H86="","",IF(J86="f",IF(H86=ARG3_01!H86,"ü","û"),"")) -> 
B87: ="" ->  | C87: ="¿A cuánto asciende la venta de los últimos meses de los 4 trimestres de la zona "&C89&"?" -> ¿A cuánto asciende la venta de los últimos meses de los 4 trimestres de la zona Este? | I87: =IF(ARG3_01!H87="","",IF(J87="f",IF(H87=ARG3_01!H87,"ü","û"),"")) -> 
B88: ="" ->  | C88: Ejercicio → | I88: =IF(ARG3_01!H88="","",IF(J88="f",IF(H88=ARG3_01!H88,"ü","û"),"")) -> 
B89: ="" ->  | C89: =INDEX($M$7:$P$7,RANDBETWEEN(1,4)) -> Este | I89: =IF(ARG3_01!H89="","",IF(J89="f",IF(H89=ARG3_01!H89,"ü","û"),"")) -> 
B90: ="" ->  | C90: =TEXT(DATE(YEAR(TODAY()),3*(ROW()-ROW($C$90)+1),1),"mmmm") -> Marzo | H90: =VLOOKUP(C90,$L$7:$P$19,MATCH($C$89,$L$7:$P$7,0),0) -> 356.30 | I90: =IF(ARG3_01!H90="","",IF(J90="f",IF(H90=ARG3_01!H90,"ü","û"),"")) ->  | J90: f
B91: ="" ->  | C91: =TEXT(DATE(YEAR(TODAY()),3*(ROW()-ROW($C$90)+1),1),"mmmm") -> Junio | H91: =VLOOKUP(C91,$L$7:$P$19,MATCH($C$89,$L$7:$P$7,0),0) -> 186.03 | I91: =IF(ARG3_01!H91="","",IF(J91="f",IF(H91=ARG3_01!H91,"ü","û"),"")) ->  | J91: f
B92: ="" ->  | C92: Setiembre | H92: =VLOOKUP(C92,$L$7:$P$19,MATCH($C$89,$L$7:$P$7,0),0) -> 516.83 | I92: =IF(ARG3_01!H92="","",IF(J92="f",IF(H92=ARG3_01!H92,"ü","û"),"")) ->  | J92: f
B93: ="" ->  | C93: Diciembre | H93: =VLOOKUP(C93,$L$7:$P$19,MATCH($C$89,$L$7:$P$7,0),0) -> 414.56 | I93: =IF(ARG3_01!H93="","",IF(J93="f",IF(H93=ARG3_01!H93,"ü","û"),"")) ->  | J93: f
B94: ="" ->  | C94: =IF(_xlfn.ISFORMULA(ARG3_01!H90),_xlfn.FORMULATEXT(ARG3_01!H90),"") ->  | I94: =IF(ARG3_01!H94="","",IF(J94="f",IF(H94=ARG3_01!H94,"ü","û"),"")) -> 
B95: ="" ->  | C95: ="" ->  | I95: =IF(ARG3_01!H95="","",IF(J95="f",IF(H95=ARG3_01!H95,"ü","û"),"")) -> 
B96: ="" ->  | C96: Ejercicio → | I96: =IF(ARG3_01!H96="","",IF(J96="f",IF(H96=ARG3_01!H96,"ü","û"),"")) -> 
B97: ="" ->  | C97: =C89 -> Este | I97: =IF(ARG3_01!H97="","",IF(J97="f",IF(H97=ARG3_01!H97,"ü","û"),"")) -> 
B98: ="" ->  | C98: =TEXT(DATE(YEAR(TODAY()),3*ROW(D1),1),"mmmm") -> Marzo | H98: =HLOOKUP($C$97,$L$7:$P$19,MATCH(C98,$L$7:$L$19,0),0) -> 356.30 | I98: =IF(ARG3_01!H98="","",IF(J98="f",IF(H98=ARG3_01!H98,"ü","û"),"")) ->  | J98: f
B99: ="" ->  | C99: =TEXT(DATE(YEAR(TODAY()),3*ROW(D2),1),"mmmm") -> Junio | H99: =HLOOKUP($C$97,$L$7:$P$19,MATCH(C99,$L$7:$L$19,0),0) -> 186.03 | I99: =IF(ARG3_01!H99="","",IF(J99="f",IF(H99=ARG3_01!H99,"ü","û"),"")) ->  | J99: f
B100: ="" ->  | C100: =TEXT(DATE(YEAR(TODAY()),3*ROW(D3),1),"mmmm") -> Setiembre | H100: =HLOOKUP($C$97,$L$7:$P$19,MATCH(C100,$L$7:$L$19,0),0) -> 516.83 | I100: =IF(ARG3_01!H100="","",IF(J100="f",IF(H100=ARG3_01!H100,"ü","û"),"")) ->  | J100: f
B101: ="" ->  | C101: =TEXT(DATE(YEAR(TODAY()),3*ROW(D4),1),"mmmm") -> Diciembre | H101: =HLOOKUP($C$97,$L$7:$P$19,MATCH(C101,$L$7:$L$19,0),0) -> 414.56 | I101: =IF(ARG3_01!H101="","",IF(J101="f",IF(H101=ARG3_01!H101,"ü","û"),"")) ->  | J101: f
B102: ="" ->  | C102: =IF(_xlfn.ISFORMULA(ARG3_01!H98),_xlfn.FORMULATEXT(ARG3_01!H98),"") ->  | I102: =IF(ARG3_01!H102="","",IF(J102="f",IF(H102=ARG3_01!H102,"ü","û"),"")) -> 
B103: ="" ->  | C103: ="" ->  | I103: =IF(ARG3_01!H103="","",IF(J103="f",IF(H103=ARG3_01!H103,"ü","û"),"")) -> 
B104: ► | C104: COLUMNA O FILA CALCULADA - SIN CELDA DE APOYO (2) | I104: =IF(ARG3_01!H104="","",IF(J104="f",IF(H104=ARG3_01!H104,"ü","û"),"")) -> 
B105: ="" ->  | C105: ="¿A cuánto asciende la venta de los últimos meses de los 4 trimestres de la zona "&C107&"?" -> ¿A cuánto asciende la venta de los últimos meses de los 4 trimestres de la zona Sur? | I105: =IF(ARG3_01!H105="","",IF(J105="f",IF(H105=ARG3_01!H105,"ü","û"),"")) -> 
B106: ="" ->  | C106: Opción 1: BUSCARH | I106: =IF(ARG3_01!H106="","",IF(J106="f",IF(H106=ARG3_01!H106,"ü","û"),"")) -> 
B107: ="" ->  | C107: =INDEX($M$7:$P$7,RANDBETWEEN(1,4)) -> Sur | I107: =IF(ARG3_01!H107="","",IF(J107="f",IF(H107=ARG3_01!H107,"ü","û"),"")) -> 
B108: ="" ->  | C108: =C90 -> Marzo | H108: =HLOOKUP($C$107,$L$7:$P$19,3*(ROW()-ROW($H$108)+1)+1,0) -> 119.64 | I108: =IF(ARG3_01!H108="","",IF(J108="f",IF(H108=ARG3_01!H108,"ü","û"),"")) ->  | J108: f
B109: ="" ->  | C109: Junio | H109: =HLOOKUP($C$107,$L$7:$P$19,3*(ROW()-ROW($H$108)+1)+1,0) -> 299.55 | I109: =IF(ARG3_01!H109="","",IF(J109="f",IF(H109=ARG3_01!H109,"ü","û"),"")) ->  | J109: f
B110: ="" ->  | C110: Setiembre | H110: =HLOOKUP($C$107,$L$7:$P$19,3*(ROW()-ROW($H$108)+1)+1,0) -> 531.87 | I110: =IF(ARG3_01!H110="","",IF(J110="f",IF(H110=ARG3_01!H110,"ü","û"),"")) ->  | J110: f
B111: ="" ->  | C111: Diciembre | H111: =HLOOKUP($C$107,$L$7:$P$19,3*(ROW()-ROW($H$108)+1)+1,0) -> 346.33 | I111: =IF(ARG3_01!H111="","",IF(J111="f",IF(H111=ARG3_01!H111,"ü","û"),"")) ->  | J111: f
B112: ="" ->  | C112: =IF(_xlfn.ISFORMULA(ARG3_01!H108),_xlfn.FORMULATEXT(ARG3_01!H108),"") ->  | I112: =IF(ARG3_01!H112="","",IF(J112="f",IF(H112=ARG3_01!H112,"ü","û"),"")) -> 
B113: ="" ->  | C113: ="" ->  | I113: =IF(ARG3_01!H113="","",IF(J113="f",IF(H113=ARG3_01!H113,"ü","û"),"")) -> 
B114: ="" ->  | C114: Ejercicio → | I114: =IF(ARG3_01!H114="","",IF(J114="f",IF(H114=ARG3_01!H114,"ü","û"),"")) -> 
B115: ="" ->  | C115: =C107 -> Sur | I115: =IF(ARG3_01!H115="","",IF(J115="f",IF(H115=ARG3_01!H115,"ü","û"),"")) -> 
B116: ="" ->  | C116: =TEXT(DATE(YEAR(TODAY()),4*ROWS(C$116:C116),1),"mmmm") -> Abril | H116: =HLOOKUP(C$115,$L$7:$P$19,(ROW()-ROW($H$116)+1)*4+1,0) -> 372.66 | I116: =IF(ARG3_01!H116="","",IF(J116="f",IF(H116=ARG3_01!H116,"ü","û"),"")) ->  | J116: f
B117: ="" ->  | C117: =TEXT(DATE(YEAR(TODAY()),4*ROWS(C$116:C117),1),"mmmm") -> Agosto | H117: =HLOOKUP(C$115,$L$7:$P$19,(ROW()-ROW($H$116)+1)*4+1,0) -> 246.85 | I117: =IF(ARG3_01!H117="","",IF(J117="f",IF(H117=ARG3_01!H117,"ü","û"),"")) ->  | J117: f
B118: ="" ->  | C118: =TEXT(DATE(YEAR(TODAY()),4*ROWS(C$116:C118),1),"mmmm") -> Diciembre | H118: =HLOOKUP(C$115,$L$7:$P$19,(ROW()-ROW($H$116)+1)*4+1,0) -> 346.33 | I118: =IF(ARG3_01!H118="","",IF(J118="f",IF(H118=ARG3_01!H118,"ü","û"),"")) ->  | J118: f
B119: ="" ->  | C119: =IF(_xlfn.ISFORMULA(ARG3_01!H116),_xlfn.FORMULATEXT(ARG3_01!H116),"") ->  | I119: =IF(ARG3_01!H119="","",IF(J119="f",IF(H119=ARG3_01!H119,"ü","û"),"")) -> 

Sheet DO_A1_07 (hidden)
B6: ="" ->  | C6: VALOR BUSCADO | H6: =IF(ARG1_07!G6="","",IF(I6="f",IF(G6=ARG1_07!G6,"ü","û"),"")) -> 
B7: ="" ->  | C7: ="" ->  | H7: =IF(ARG1_07!G7="","",IF(I7="f",IF(G7=ARG1_07!G7,"ü","û"),"")) -> 
B8: ► | C8: APROXIMACION DE FECHAS | H8: =IF(ARG1_07!G8="","",IF(I8="f",IF(G8=ARG1_07!G8,"ü","û"),"")) ->  | K8: Fecha | L8: Nro Semana | M8: Nro Turnos
B9: ="" ->  | C9: ="" ->  | H9: =IF(ARG1_07!G9="","",IF(I9="f",IF(G9=ARG1_07!G9,"ü","û"),"")) ->  | K9: =SUM(EOMONTH(TODAY(),-1),-WEEKDAY(EOMONTH(TODAY(),-1),2),1,(ROWS(K$9:K9)-1)*7) -> 2020-03-30 | L9: ="Semana "&WEEKNUM(K9,13) -> Semana 13 | M9: =RANDBETWEEN(1,3) -> 3
B10: ="" ->  | C10: ="¿A qué número de semana pertenece la fecha del "&TEXT(C12,"dd/mm/")&YEAR(C12)&"?" -> ¿A qué número de semana pertenece la fecha del 06/04/2020? | H10: =IF(ARG1_07!G10="","",IF(I10="f",IF(G10=ARG1_07!G10,"ü","û"),"")) ->  | K10: =SUM(EOMONTH(TODAY(),-1),-WEEKDAY(EOMONTH(TODAY(),-1),2),1,(ROWS(K$9:K10)-1)*7) -> 2020-04-06 | L10: ="Semana "&WEEKNUM(K10,13) -> Semana 14 | M10: 3
B11: ="" ->  | C11: Opción 1: | H11: =IF(ARG1_07!G11="","",IF(I11="f",IF(G11=ARG1_07!G11,"ü","û"),"")) ->  | K11: =SUM(EOMONTH(TODAY(),-1),-WEEKDAY(EOMONTH(TODAY(),-1),2),1,(ROWS(K$9:K11)-1)*7) -> 2020-04-13 | L11: ="Semana "&WEEKNUM(K11,13) -> Semana 15 | M11: 3
B12: ="" ->  | C12: =RANDBETWEEN(K9,K13) -> 2020-04-06 | G12: =VLOOKUP(C12,$K$9:$M$13,2,1) -> Semana 14 | H12: =IF(ARG1_07!G12="","",IF(I12="f",IF(G12=ARG1_07!G12,"ü","û"),"")) ->  | I12: f | K12: =SUM(EOMONTH(TODAY(),-1),-WEEKDAY(EOMONTH(TODAY(),-1),2),1,(ROWS(K$9:K12)-1)*7) -> 2020-04-20 | L12: ="Semana "&WEEKNUM(K12,13) -> Semana 16 | M12: 1
B13: ="" ->  | C13: =IF(_xlfn.ISFORMULA(ARG1_07!G12),_xlfn.FORMULATEXT(ARG1_07!G12),"") ->  | H13: =IF(ARG1_07!G13="","",IF(I13="f",IF(G13=ARG1_07!G13,"ü","û"),"")) ->  | K13: =SUM(EOMONTH(TODAY(),-1),-WEEKDAY(EOMONTH(TODAY(),-1),2),1,(ROWS(K$9:K13)-1)*7) -> 2020-04-27 | L13: ="Semana "&WEEKNUM(K13,13) -> Semana 17 | M13: 1
B14: ="" ->  | C14: ="" ->  | H14: =IF(ARG1_07!G14="","",IF(I14="f",IF(G14=ARG1_07!G14,"ü","û"),"")) -> 
B15: ="" ->  | C15: ="¿Cuántos turnos de trabajo tuvo la semana "&C17&"?" -> ¿Cuántos turnos de trabajo tuvo la semana 16? | H15: =IF(ARG1_07!G15="","",IF(I15="f",IF(G15=ARG1_07!G15,"ü","û"),"")) -> 
B16: ="" ->  | C16: Ejercicio → | H16: =IF(ARG1_07!G16="","",IF(I16="f",IF(G16=ARG1_07!G16,"ü","û"),"")) -> 
B17: ="" ->  | C17: =SUBSTITUTE(INDEX($L$9:$L$13,RANDBETWEEN(1,5)),"Semana ","") -> 16 | G17: =VLOOKUP("Semana "&C17,$L$8:$M$13,2,0) -> 1 | H17: =IF(ARG1_07!G17="","",IF(I17="f",IF(G17=ARG1_07!G17,"ü","û"),"")) ->  | I17: f
B18: ="" ->  | C18: =IF(_xlfn.ISFORMULA(ARG1_07!G17),_xlfn.FORMULATEXT(ARG1_07!G17),"") ->  | H18: =IF(ARG1_07!G18="","",IF(I18="f",IF(G18=ARG1_07!G18,"ü","û"),"")) -> 

Sheet ARG1_07 (hidden)
B1: Argumento valor buscado
B2: MOS Expert - CPC Martín Cruz - 998401784
B6: =lista01.20 ->  | C6: VALOR BUSCADO | H6: =lista01.22 -> 
B8: ► | C8: APROXIMACION DE FECHAS | J8: =lista01.21 -> Fecha | K8: Nro Semana | L8: Nro Turnos
J9: 2020-03-30 | K9: Semana 13 | L9: 3
C10: ¿A qué número de semana pertenece la fecha del 06/04/2020? | J10: 2020-04-06 | K10: Semana 14 | L10: 3
C11: Opción 1: | J11: 2020-04-13 | K11: Semana 15 | L11: 3
C12: 2020-04-06 | J12: 2020-04-20 | K12: Semana 16 | L12: 1
J13: 2020-04-27 | K13: Semana 17 | L13: 1
C15: ¿Cuántos turnos de trabajo tuvo la semana 16?
C16: Ejercicio →
C17: 16

Sheet DO_A1_08 (hidden)
B6: ="" ->  | C6: VALOR BUSCADO | H6: =IF(ARG1_08!G6="","",IF(I6="f",IF(G6=ARG1_08!G6,"ü","û"),"")) -> 
B7: ="" ->  | C7: ="" ->  | H7: =IF(ARG1_08!G7="","",IF(I7="f",IF(G7=ARG1_08!G7,"ü","û"),"")) -> 
B8: ► | C8: APROXIMACION DE TEXTO | H8: =IF(ARG1_08!G8="","",IF(I8="f",IF(G8=ARG1_08!G8,"ü","û"),"")) ->  | K8: Razón Social | L8: R.U.C.
B9: ="" ->  | C9: ="" ->  | H9: =IF(ARG1_08!G9="","",IF(I9="f",IF(G9=ARG1_08!G9,"ü","û"),"")) ->  | K9: Agricola Alaska EIRL | L9: 20449241887 | N9: =RAND() -> 0.4550292738 | O9: =K9 -> Agricola Alaska EIRL | P9: =SUBSTITUTE(SUBSTITUTE(SUBSTITUTE(K9," EIRL","")," SAC","")," SRL","") -> Agricola Alaska
B10: ="" ->  | C10: ="¿Indique el RUC de "&UPPER(C12)&"?" -> ¿Indique el RUC de AGRICOLA ALTO VALLE SAC? | H10: =IF(ARG1_08!G10="","",IF(I10="f",IF(G10=ARG1_08!G10,"ü","û"),"")) ->  | K10: Agricola Alto Valle SAC | L10: 20407876661 | N10: 0.7039015287 | O10: Agricola Alto Valle SAC | P10: Agricola Alto Valle
B11: ="" ->  | C11: Opción 1: | H11: =IF(ARG1_08!G11="","",IF(I11="f",IF(G11=ARG1_08!G11,"ü","û"),"")) ->  | K11: Botica Maranatha SRL | L11: 20481440395 | N11: 0.8104569876 | O11: Botica Maranatha SRL | P11: Botica Maranatha
B12: ="" ->  | C12: =INDEX($K$9:$K$18,RANDBETWEEN(1,5)*2) -> Agricola Alto Valle SAC | G12: =VLOOKUP(C12,$K$9:$L$18,2,1) -> 20407876661 | H12: =IF(ARG1_08!G12="","",IF(I12="f",IF(G12=ARG1_08!G12,"ü","û"),"")) ->  | I12: f | K12: Botica Municipal EIRL | L12: 20105149914 | N12: 0.6869882429 | O12: Botica Municipal EIRL | P12: Botica Municipal
B13: ="" ->  | C13: =IF(_xlfn.ISFORMULA(ARG1_08!G12),_xlfn.FORMULATEXT(ARG1_08!G12),"") ->  | H13: =IF(ARG1_08!G13="","",IF(I13="f",IF(G13=ARG1_08!G13,"ü","û"),"")) ->  | K13: Casapan Perú SAC | L13: 20515633449 | N13: 0.6464556459 | O13: Casapan Perú SAC | P13: Casapan Perú
B14: ="" ->  | C14: ="" ->  | H14: =IF(ARG1_08!G14="","",IF(I14="f",IF(G14=ARG1_08!G14,"ü","û"),"")) ->  | K14: Casinos América SAC | L14: 20481357901 | N14: 0.8267431093 | O14: Casinos América SAC | P14: Casinos América
B15: ="" ->  | C15: ="¿Cuántos turnos de trabajo tuvo la semana "&C17&"?" -> ¿Cuántos turnos de trabajo tuvo la semana Agricola Alto Valle? | H15: =IF(ARG1_08!G15="","",IF(I15="f",IF(G15=ARG1_08!G15,"ü","û"),"")) ->  | K15: Chifa Casa Oriental SAC | L15: 20517054675 | N15: 0.1428275789 | O15: Chifa Casa Oriental SAC | P15: Chifa Casa Oriental
B16: ="" ->  | C16: Ejercicio → | H16: =IF(ARG1_08!G16="","",IF(I16="f",IF(G16=ARG1_08!G16,"ü","û"),"")) ->  | K16: Chifa Continental SRL | L16: 20452306515 | N16: 0.4402713787 | O16: Chifa Continental SRL | P16: Chifa Continental
B17: ="" ->  | C17: =VLOOKUP(C12,$O$9:$P$18,2,0) -> Agricola Alto Valle | G17: =VLOOKUP(C17,$K$9:$L$18,2,1) -> 20449241887 | H17: =IF(ARG1_08!G17="","",IF(I17="f",IF(G17=ARG1_08!G17,"ü","û"),"")) ->  | I17: f | K17: Distribuciones CMP EIRL | L17: 20455312877 | N17: 0.1053108888 | O17: Distribuciones CMP EIRL | P17: Distribuciones CMP
B18: ="" ->  | C18: =IF(_xlfn.ISFORMULA(ARG1_08!G17),_xlfn.FORMULATEXT(ARG1_08!G17),"") ->  | H18: =IF(ARG1_08!G18="","",IF(I18="f",IF(G18=ARG1_08!G18,"ü","û"),"")) ->  | K18: Distribuciones DAN SRL | L18: 20482213279 | N18: 0.952874617 | O18: Distribuciones DAN SRL | P18: Distribuciones DAN

Sheet ARG1_08 (hidden)
B1: Argumento valor buscado
B2: MOS Expert - CPC Martín Cruz - 998401784
B6: =lista01.23 ->  | C6: VALOR BUSCADO | H6: =lista01.25 -> 
B8: ► | C8: APROXIMACION DE TEXTO | J8: =lista01.24 -> Razón Social | K8: R.U.C.
J9: Agricola Alaska EIRL | K9: 20449241887
C10: ¿Indique el RUC de AGRICOLA ALTO VALLE SAC? | J10: Agricola Alto Valle SAC | K10: 20407876661
C11: Opción 1: | J11: Botica Maranatha SRL | K11: 20481440395
C12: Agricola Alto Valle SAC | J12: Botica Municipal EIRL | K12: 20105149914
J13: Casapan Perú SAC | K13: 20515633449
J14: Casinos América SAC | K14: 20481357901
C15: ¿Cuántos turnos de trabajo tuvo la semana Agricola Alto Valle? | J15: Chifa Casa Oriental SAC | K15: 20517054675
C16: Ejercicio → | J16: Chifa Continental SRL | K16: 20452306515
C17: Agricola Alto Valle | J17: Distribuciones CMP EIRL | K17: 20455312877
J18: Distribuciones DAN SRL | K18: 20482213279

Sheet DO_A1_09 (hidden)
C6: ="" ->  | D6: VALOR BUSCADO
C7: ="" ->  | D7: ="" -> 
C8: ► | D8: APROXIMACION TEXTO (2)
D10: Razón Social | G10: Razón Social | H10: Razón Social | I10: R.U.C. | J10: Similarity
D11: Botica Maranatha | E11: 6 | G11: Botica Maranatha | H11: Botica Maranatha SRL | I11: 20481440395 | J11: 0.9600
D12: Botica Municipal | E12: 6 | G12: Botica Municipal | H12: Botica Municipal EIRL | I12: 20105149914 | J12: 0.9600
D13: Casapan Perú | E13: 6 | G13: Casapan Perú | H13: Casapan Perú SAC | I13: 20515633449 | J13: 0.9600
D14: Chifa Casa Oriental | E14: 6 | G14: Chifa Casa Oriental | H14: Chifa Casa Oriental SAC | I14: 20517054675 | J14: 0.9714
D15: Agricola Alto Valle | E15: 6
D17: Razón Social | E17: R.U.C. | G17: Razón Social | H17: Razón Social | I17: R.U.C. | J17: Similarity
D18: Agricola Alaska EIRL | E18: 20449241887 | G18: Botica Maranatha | H18: Botica Maranatha SRL | I18: 20481440395 | J18: 0.9600
D19: Agricola Alto Valle SAC | E19: 20407876661 | G19: Botica Municipal | H19: Botica Municipal EIRL | I19: 20105149914 | J19: 0.9600
D20: Agricola Alto Valle SRL | E20: 20407876662 | G20: Casapan Perú | H20: Casapan Perú SAC | I20: 20515633449 | J20: 0.9600
D21: Botica Maranatha SRL | E21: 20481440395 | G21: Chifa Casa Oriental | H21: Chifa Casa Oriental SAC | I21: 20517054675 | J21: 0.9714
D22: Botica Municipal EIRL | E22: 20105149914 | G22: Agricola Alto Valle | H22: Agricola Alto Valle SAC | I22: 20407876661 | J22: 0.9667
D23: Casapan Perú SAC | E23: 20515633449
D24: Casinos América SAC | E24: 20481357901 | G24: Razón Social | H24: Razón Social | I24: R.U.C. | J24: Similarity
D25: Chifa Casa Oriental SAC | E25: 20517054675 | G25: Botica Maranatha | H25: Botica Maranatha SRL | I25: 20481440395 | J25: 0.9600
D26: Chifa Continental SRL | E26: 20452306515 | G26: Botica Municipal | H26: Botica Municipal EIRL | I26: 20105149914 | J26: 0.9600
D27: Distribuciones CMP EIRL | E27: 20455312877 | G27: Casapan Perú | H27: Casapan Perú SAC | I27: 20515633449 | J27: 0.9600
D28: Distribuciones DAN SRL | E28: 20482213279 | G28: Chifa Casa Oriental | H28: Chifa Casa Oriental SAC | I28: 20517054675 | J28: 0.9714
G29: Agricola Alto Valle | H29: Agricola Alto Valle SAC | I29: 20407876661 | J29: 0.9667
G30: Agricola Alto Valle | H30: Agricola Alto Valle SRL | I30: 20407876662 | J30: 0.9667
D31: Agricola Alaska
D32: Agricola Alto Valle
D33: Botica Maranatha
D34: Botica Municipal
D35: Casapan Perú
D36: Casinos América
D37: Chifa Casa Oriental
D38: Chifa Continental
D39: Distribuciones CMP
D40: Distribuciones DAN

Sheet ARG1_09 (hidden)
B1: Argumento valor buscado
B2: MOS Expert - CPC Martín Cruz - 998401784
C6: ="" ->  | D6: VALOR BUSCADO
C7: ="" ->  | D7: ="" -> 
C8: ► | D8: APROXIMACION DE TEXTO (2)
D10: Razón Social
D11: Botica Maranatha | E11: 6
D12: Botica Municipal | E12: 6
D13: Casapan Perú | E13: 6
D14: Chifa Casa Oriental | E14: 6
D15: Agricola Alto Valle | E15: 6
D17: Razón Social | E17: R.U.C.
D18: Agricola Alaska EIRL | E18: 20449241887
D19: Agricola Alto Valle SAC | E19: 20407876661
D20: Agricola Alto Valle SRL | E20: 20407876662
D21: Botica Maranatha SRL | E21: 20481440395
D22: Botica Municipal EIRL | E22: 20105149914
D23: Casapan Perú SAC | E23: 20515633449
D24: Casinos América SAC | E24: 20481357901
D25: Chifa Casa Oriental SAC | E25: 20517054675
D26: Chifa Continental SRL | E26: 20452306515
D27: Distribuciones CMP EIRL | E27: 20455312877
D28: Distribuciones DAN SRL | E28: 20482213279
D31: Agricola Alaska
D32: Agricola Alto Valle
D33: Botica Maranatha
D34: Botica Municipal
D35: Casapan Perú
D36: Casinos América
D37: Chifa Casa Oriental
D38: Chifa Continental
D39: Distribuciones CMP
D40: Distribuciones DAN

Sheet ARG3_01 (hidden)
B1: Argumento indicador de columna - fila
B2: MOS Expert - CPC Martín Cruz - 998401784
B6: =lista03.02 ->  | C6: INDICADOR DE COLUMNA - INDICADOR DE FILA | I6: =lista03.05 -> 
B8: ► | C8: COLUMNA O FILA FIJA | K8: =lista03.01 -> Meses | L8: Norte | M8: Sur | N8: Este | O8: Oeste
K9: Enero | L9: 210.32 | M9: 220.54 | N9: 326.91 | O9: 578.60
C10: ¿A cuánto asciende la venta del mes de Abril de la zona Norte? | K10: Febrero | L10: 128.27 | M10: 116.31 | N10: 410.67 | O10: 465.84
C11: Opción 1: BUSCARV | K11: Marzo | L11: 475.69 | M11: 119.64 | N11: 356.30 | O11: 301.94
C12: Abril | H12: =VLOOKUP(C12,$K$8:$O$20,2,0) -> 103.31 | I12: ü | K12: Abril | L12: 103.31 | M12: 372.66 | N12: 257.50 | O12: 439.48
C13: =BUSCARV(C12,$K$8:$O$20,2,0) | K13: Mayo | L13: 128.04 | M13: 336.61 | N13: 439.80 | O13: 144.35
K14: Junio | L14: 472.26 | M14: 299.55 | N14: 186.03 | O14: 350.33
C15: ¿A cuánto asciende la venta del mes de Mayo de la zona Oeste? | K15: Julio | L15: 554.29 | M15: 413.30 | N15: 229.49 | O15: 333.28
C16: Opción 2: BUSCARH | K16: Agosto | L16: 416.17 | M16: 246.85 | N16: 522.31 | O16: 173.40
C17: Oeste | H17: =HLOOKUP(C17,$K$8:$O$20,6,0) -> 144.35 | I17: ü | K17: Setiembre | L17: 329.30 | M17: 531.87 | N17: 516.83 | O17: 427.04
C18: =BUSCARH(C17,$K$8:$O$20,6,0) | K18: Octubre | L18: 160.43 | M18: 268.61 | N18: 534.10 | O18: 409.35
K19: Noviembre | L19: 432.32 | M19: 435.01 | N19: 183.47 | O19: 120.47
B20: ► | C20: COLUMNA O FILA CALCULADA - CON CELDA DE APOYO (1) | K20: Diciembre | L20: 122.43 | M20: 346.33 | N20: 414.56 | O20: 155.76
C22: ¿A cuánto asciende la venta del mes de Diciembre de la zona Oeste?
C23: Opción 1: BUSCARV
C24: Diciembre
C25: Oeste
C28: Ejercicio →
C29: Marzo
C30: Norte
C33: ¿A cuánto asciende la venta de la zona Sur del mes de Abril?
C34: Opción 2: BUSCARH
C35: Sur
C36: Abril
C39: Ejercicio →
C40: Norte
C41: Mayo
B44: ► | C44: COLUMNA O FILA CALCULADA - SIN CELDA DE APOYO
C46: ¿A cuánto asciende la venta del mes de Agosto de todas las zonas?
C47: Opción 1: BUSCARV
C48: Agosto
C49: Zona Norte
C50: Zona Sur
C53: Opción 2: BUSCARV
C54: Agosto | D54: =lista03.03 -> 
C55: Zona Norte | D55: Zona Sur
C58: Ejercicio →
C59: Julio
C60: Zona Este
C61: Zona Oeste
C64: Ejercicio →
C65: Julio | D65: =lista03.04 -> 
C66: Zona Este | D66: Zona Oeste
B69: ► | C69: COLUMNA O FILA CALCULADA - CON CELDA DE APOYO (2)
C70: ¿A cuánto asciende la venta del mes de Noviembre de todas las zonas?
C71: Opción 1: BUSCARV
C72: Noviembre
C73: Este
C74: Sur
C75: Norte
C76: Oeste
C79: Opción 2: BUSCARH
C80: Noviembre
C81: Este
C82: Sur
C83: Norte
C84: Oeste
C87: ¿A cuánto asciende la venta de los últimos meses de los 4 trimestres de la zona Este?
C88: Ejercicio →
C89: Este
C90: Marzo
C91: Junio
C92: Setiembre
C93: Diciembre
C96: Ejercicio →
C97: Este
C98: Marzo
C99: Junio
C100: Setiembre
C101: Diciembre
B104: ► | C104: COLUMNA O FILA CALCULADA - SIN CELDA DE APOYO (2)
C105: ¿A cuánto asciende la venta de los últimos meses de los 4 trimestres de la zona Sur?
C106: Opción 1: BUSCARH
C107: Sur
C108: Marzo
C109: Junio
C110: Setiembre
C111: Diciembre
C114: Ejercicio →
C115: Sur
C116: Abril
C117: Agosto
C118: Diciembre

Sheet DO_A3_02 (hidden)
B6: ="" ->  | C6: INDICADOR DE COLUMNA - INDICADOR DE FILA | I6: =IF(ARG3_02!H6="","",IF(J6="f",IF(H6=ARG3_02!H6,"ü","û"),"")) -> 
B7: ="" ->  | C7: ="" ->  | I7: =IF(ARG3_02!H7="","",IF(J7="f",IF(H7=ARG3_02!H7,"ü","û"),"")) ->  | L7: Meses | M7: Norte | N7: Sur | O7: Este | P7: Oeste
B8: ► | C8: COLUMNA O FILA CALCULADA - CON CELDA DE APOYO CASO ESPECIAL (1) | I8: =IF(ARG3_02!H8="","",IF(J8="f",IF(H8=ARG3_02!H8,"ü","û"),"")) ->  | L8: =PROPER(TEXT(DATE(YEAR(TODAY()),ROWS(L$8:L8),1),"mmmm")) -> Enero | M8: =ROUND(RANDBETWEEN(100,600)+RAND(),2) -> 287.59 | N8: 498.30 | O8: 136.59 | P8: 455.44 | S8: =RAND() -> 0.8286906554 | T8: =LEFT(L8,3) -> Ene | U8: =VLOOKUP(LARGE($S$8:$S$19,ROWS(U$8:U8)),$S$8:$T$19,2,0) -> Ene
B9: ="" ->  | C9: ="¿A cuánto asciende la venta de los meses indicados de la zona "&C11&"?" -> ¿A cuánto asciende la venta de los meses indicados de la zona Norte? | I9: =IF(ARG3_02!H9="","",IF(J9="f",IF(H9=ARG3_02!H9,"ü","û"),"")) ->  | L9: =PROPER(TEXT(DATE(YEAR(TODAY()),ROWS(L$8:L9),1),"mmmm")) -> Febrero | M9: 224.65 | N9: 208.58 | O9: 423.87 | P9: 182.99 | S9: 0.8209010518 | T9: Feb | U9: =VLOOKUP(LARGE($S$8:$S$19,ROWS(U$8:U9)),$S$8:$T$19,2,0) -> Feb
B10: ="" ->  | C10: Ejercicio → | I10: =IF(ARG3_02!H10="","",IF(J10="f",IF(H10=ARG3_02!H10,"ü","û"),"")) ->  | L10: =PROPER(TEXT(DATE(YEAR(TODAY()),ROWS(L$8:L10),1),"mmmm")) -> Marzo | M10: 292.28 | N10: 478.66 | O10: 371.10 | P10: 466.37 | S10: 0.1951460942 | T10: Mar | U10: =VLOOKUP(LARGE($S$8:$S$19,ROWS(U$8:U10)),$S$8:$T$19,2,0) -> May
B11: ="" ->  | C11: =INDEX($M$7:$P$7,RANDBETWEEN(1,4)) -> Norte | I11: =IF(ARG3_02!H11="","",IF(J11="f",IF(H11=ARG3_02!H11,"ü","û"),"")) ->  | L11: =PROPER(TEXT(DATE(YEAR(TODAY()),ROWS(L$8:L11),1),"mmmm")) -> Abril | M11: 304.83 | N11: 279.09 | O11: 491.11 | P11: 551.13 | S11: 0.2502274432 | T11: Abr | U11: =VLOOKUP(LARGE($S$8:$S$19,ROWS(U$8:U11)),$S$8:$T$19,2,0) -> Jul
B12: ="" ->  | C12: =TEXT(DATE(YEAR(TODAY()),(ROWS(C$12:C12)-1)*2+1,1),"mmm") -> Ene | H12: =HLOOKUP($C$11,$L$7:$P$19,ROWS(H$12:H12)*2,0) -> 287.59 | I12: =IF(ARG3_02!H12="","",IF(J12="f",IF(H12=ARG3_02!H12,"ü","û"),"")) ->  | J12: f | L12: =PROPER(TEXT(DATE(YEAR(TODAY()),ROWS(L$8:L12),1),"mmmm")) -> Mayo | M12: 383.05 | N12: 529.74 | O12: 138.29 | P12: 511.20 | S12: 0.660637792 | T12: May | U12: =VLOOKUP(LARGE($S$8:$S$19,ROWS(U$8:U12)),$S$8:$T$19,2,0) -> Nov
B13: ="" ->  | C13: =TEXT(DATE(YEAR(TODAY()),(ROWS(C$12:C13)-1)*2+1,1),"mmm") -> Mar | H13: =HLOOKUP($C$11,$L$7:$P$19,ROWS(H$12:H13)*2,0) -> 292.28 | I13: =IF(ARG3_02!H13="","",IF(J13="f",IF(H13=ARG3_02!H13,"ü","û"),"")) ->  | J13: f | L13: =PROPER(TEXT(DATE(YEAR(TODAY()),ROWS(L$8:L13),1),"mmmm")) -> Junio | M13: 146.02 | N13: 477.27 | O13: 190.68 | P13: 506.04 | S13: 0.3309372802 | T13: Jun | U13: =VLOOKUP(LARGE($S$8:$S$19,ROWS(U$8:U13)),$S$8:$T$19,2,0) -> Ago
B14: ="" ->  | C14: =TEXT(DATE(YEAR(TODAY()),(ROWS(C$12:C14)-1)*2+1,1),"mmm") -> May | H14: =HLOOKUP($C$11,$L$7:$P$19,ROWS(H$12:H14)*2,0) -> 383.05 | I14: =IF(ARG3_02!H14="","",IF(J14="f",IF(H14=ARG3_02!H14,"ü","û"),"")) ->  | J14: f | L14: =PROPER(TEXT(DATE(YEAR(TODAY()),ROWS(L$8:L14),1),"mmmm")) -> Julio | M14: 140.42 | N14: 558.67 | O14: 148.05 | P14: 502.13 | S14: 0.6301477503 | T14: Jul | U14: =VLOOKUP(LARGE($S$8:$S$19,ROWS(U$8:U14)),$S$8:$T$19,2,0) -> Jun
B15: ="" ->  | C15: =TEXT(DATE(YEAR(TODAY()),(ROWS(C$12:C15)-1)*2+1,1),"mmm") -> Jul | H15: =HLOOKUP($C$11,$L$7:$P$19,ROWS(H$12:H15)*2,0) -> 140.42 | I15: =IF(ARG3_02!H15="","",IF(J15="f",IF(H15=ARG3_02!H15,"ü","û"),"")) ->  | J15: f | L15: =PROPER(TEXT(DATE(YEAR(TODAY()),ROWS(L$8:L15),1),"mmmm")) -> Agosto | M15: 484.79 | N15: 555.69 | O15: 398.44 | P15: 395.24 | S15: 0.4141197929 | T15: Ago | U15: =VLOOKUP(LARGE($S$8:$S$19,ROWS(U$8:U15)),$S$8:$T$19,2,0) -> Abr
B16: ="" ->  | C16: =TEXT(DATE(YEAR(TODAY()),(ROWS(C$12:C16)-1)*2+1,1),"mmm") -> Set | H16: =HLOOKUP($C$11,$L$7:$P$19,ROWS(H$12:H16)*2,0) -> 237.06 | I16: =IF(ARG3_02!H16="","",IF(J16="f",IF(H16=ARG3_02!H16,"ü","û"),"")) ->  | J16: f | L16: =PROPER(TEXT(DATE(YEAR(TODAY()),ROWS(L$8:L16),1),"mmmm")) -> Setiembre | M16: 237.06 | N16: 262.36 | O16: 189.75 | P16: 141.62 | S16: 0.04041923129 | T16: Set | U16: =VLOOKUP(LARGE($S$8:$S$19,ROWS(U$8:U16)),$S$8:$T$19,2,0) -> Mar
B17: ="" ->  | C17: =TEXT(DATE(YEAR(TODAY()),(ROWS(C$12:C17)-1)*2+1,1),"mmm") -> Nov | H17: =HLOOKUP($C$11,$L$7:$P$19,ROWS(H$12:H17)*2,0) -> 241.46 | I17: =IF(ARG3_02!H17="","",IF(J17="f",IF(H17=ARG3_02!H17,"ü","û"),"")) ->  | J17: f | L17: =PROPER(TEXT(DATE(YEAR(TODAY()),ROWS(L$8:L17),1),"mmmm")) -> Octubre | M17: 497.70 | N17: 370.88 | O17: 381.99 | P17: 437.81 | S17: 0.02946802442 | T17: Oct | U17: =VLOOKUP(LARGE($S$8:$S$19,ROWS(U$8:U17)),$S$8:$T$19,2,0) -> Dic
B18: ="" ->  | C18: =IF(_xlfn.ISFORMULA(ARG3_02!H17),_xlfn.FORMULATEXT(ARG3_02!H17),"") ->  | I18: =IF(ARG3_02!H18="","",IF(J18="f",IF(H18=ARG3_02!H18,"ü","û"),"")) ->  | L18: =PROPER(TEXT(DATE(YEAR(TODAY()),ROWS(L$8:L18),1),"mmmm")) -> Noviembre | M18: 241.46 | N18: 528.90 | O18: 224.50 | P18: 433.41 | S18: 0.5208228631 | T18: Nov | U18: =VLOOKUP(LARGE($S$8:$S$19,ROWS(U$8:U18)),$S$8:$T$19,2,0) -> Set
B19: ="" ->  | C19: ="" ->  | I19: =IF(ARG3_02!H19="","",IF(J19="f",IF(H19=ARG3_02!H19,"ü","û"),"")) ->  | L19: =PROPER(TEXT(DATE(YEAR(TODAY()),ROWS(L$8:L19),1),"mmmm")) -> Diciembre | M19: 485.80 | N19: 549.56 | O19: 211.07 | P19: 554.85 | S19: 0.06036265531 | T19: Dic | U19: =VLOOKUP(LARGE($S$8:$S$19,ROWS(U$8:U19)),$S$8:$T$19,2,0) -> Oct
B20: ="" ->  | C20: Opción 1: BUSCARH | I20: =IF(ARG3_02!H20="","",IF(J20="f",IF(H20=ARG3_02!H20,"ü","û"),"")) -> 
B21: ="" ->  | C21: =C11 -> Norte | I21: =IF(ARG3_02!H21="","",IF(J21="f",IF(H21=ARG3_02!H21,"ü","û"),"")) -> 
B22: ="" ->  | C22: =U8 -> Ene | H22: =HLOOKUP(C$21,$L$7:$P$19,MATCH(C22&"*",$L$7:$L$19,0),0) -> 287.59 | I22: =IF(ARG3_02!H22="","",IF(J22="f",IF(H22=ARG3_02!H22,"ü","û"),"")) ->  | J22: f
B23: ="" ->  | C23: Feb | H23: =HLOOKUP(C$21,$L$7:$P$19,MATCH(C23&"*",$L$7:$L$19,0),0) -> 224.65 | I23: =IF(ARG3_02!H23="","",IF(J23="f",IF(H23=ARG3_02!H23,"ü","û"),"")) ->  | J23: f
B24: ="" ->  | C24: May | H24: 383.05 | I24: =IF(ARG3_02!H24="","",IF(J24="f",IF(H24=ARG3_02!H24,"ü","û"),"")) ->  | J24: f
B25: ="" ->  | C25: Jul | H25: 140.42 | I25: =IF(ARG3_02!H25="","",IF(J25="f",IF(H25=ARG3_02!H25,"ü","û"),"")) ->  | J25: f
B26: ="" ->  | C26: Nov | H26: 241.46 | I26: =IF(ARG3_02!H26="","",IF(J26="f",IF(H26=ARG3_02!H26,"ü","û"),"")) ->  | J26: f
B27: ="" ->  | C27: Ago | H27: 484.79 | I27: =IF(ARG3_02!H27="","",IF(J27="f",IF(H27=ARG3_02!H27,"ü","û"),"")) ->  | J27: f
B28: ="" ->  | C28: =IF(_xlfn.ISFORMULA(ARG3_02!H27),_xlfn.FORMULATEXT(ARG3_02!H27),"") ->  | I28: =IF(ARG3_02!H28="","",IF(J28="f",IF(H28=ARG3_02!H28,"ü","û"),"")) -> 

Sheet ARG3_02 (hidden)
B1: Argumento indicador de columna - fila
B2: MOS Expert - CPC Martín Cruz - 998401784
B6: =lista03.06 ->  | C6: INDICADOR DE COLUMNA - INDICADOR DE FILA | I6: =lista03.07 -> 
B8: ► | C8: COLUMNA O FILA CALCULADA - CON CELDA DE APOYO CASO ESPECIAL (1) | K8: =lista03.08 -> Meses | L8: Norte | M8: Sur | N8: Este | O8: Oeste
C9: ¿A cuánto asciende la venta de los meses indicados de la zona Norte? | K9: Enero | L9: 287.59 | M9: 498.30 | N9: 136.59 | O9: 455.44
C10: Ejercicio → | K10: Febrero | L10: 224.65 | M10: 208.58 | N10: 423.87 | O10: 182.99
C11: Norte | K11: Marzo | L11: 292.28 | M11: 478.66 | N11: 371.10 | O11: 466.37
C12: Ene | K12: Abril | L12: 304.83 | M12: 279.09 | N12: 491.11 | O12: 551.13
C13: Mar | K13: Mayo | L13: 383.05 | M13: 529.74 | N13: 138.29 | O13: 511.20
C14: May | K14: Junio | L14: 146.02 | M14: 477.27 | N14: 190.68 | O14: 506.04
C15: Jul | K15: Julio | L15: 140.42 | M15: 558.67 | N15: 148.05 | O15: 502.13
C16: Set | K16: Agosto | L16: 484.79 | M16: 555.69 | N16: 398.44 | O16: 395.24
C17: Nov | K17: Setiembre | L17: 237.06 | M17: 262.36 | N17: 189.75 | O17: 141.62
K18: Octubre | L18: 497.70 | M18: 370.88 | N18: 381.99 | O18: 437.81
K19: Noviembre | L19: 241.46 | M19: 528.90 | N19: 224.50 | O19: 433.41
C20: Opción 1: BUSCARH | K20: Diciembre | L20: 485.80 | M20: 549.56 | N20: 211.07 | O20: 554.85
C21: Norte
C22: Ene
C23: Feb
C24: May
C25: Jul
C26: Nov
C27: Ago

Sheet DO_A3_03 (hidden)
B6: ="" ->  | C6: INDICADOR DE COLUMNA - INDICADOR DE FILA | J6: =IF(ARG3_03!I6="","",IF(K6="f",IF(I6=ARG3_03!I6,"ü","û"),"")) ->  | M6: Meses | N6: Norte | O6: Sur | P6: Este | Q6: Oeste
B7: ="" ->  | C7: ="" ->  | J7: =IF(ARG3_03!I7="","",IF(K7="f",IF(I7=ARG3_03!I7,"ü","û"),"")) ->  | M7: =PROPER(TEXT(DATE(YEAR(TODAY()),ROWS(M$7:M7),1),"mmm")) -> Ene | N7: =ROUND(RANDBETWEEN(100,600)+RAND(),2) -> 313.15 | O7: 176.50 | P7: 529.11 | Q7: 155.63 | S7: =RAND() -> 0.03068432737 | T7: =PROPER(TEXT(DATE(YEAR(TODAY()),ROWS(M$7:M7),1),"mmmm")) -> Enero | U7: =VLOOKUP(LARGE($S$7:$S$18,ROWS(U$7:U7)),$S$7:$T$18,2,0) -> Octubre
B8: ► | C8: COLUMNA O FILA CALCULADA - CON CELDA DE APOYO CASO ESPECIAL (2) | J8: =IF(ARG3_03!I8="","",IF(K8="f",IF(I8=ARG3_03!I8,"ü","û"),"")) ->  | M8: =PROPER(TEXT(DATE(YEAR(TODAY()),ROWS(M$7:M8),1),"mmm")) -> Feb | N8: 282.39 | O8: 126.34 | P8: 434.55 | Q8: 528.49 | S8: 0.402904171 | T8: =PROPER(TEXT(DATE(YEAR(TODAY()),ROWS(M$7:M8),1),"mmmm")) -> Febrero | U8: =VLOOKUP(LARGE($S$7:$S$18,ROWS(U$7:U8)),$S$7:$T$18,2,0) -> Abril
B9: ="" ->  | C9: ="¿A cuánto asciende la venta de los meses indicados de la zona "&C11&"?" -> ¿A cuánto asciende la venta de los meses indicados de la zona Norte? | J9: =IF(ARG3_03!I9="","",IF(K9="f",IF(I9=ARG3_03!I9,"ü","û"),"")) ->  | M9: =PROPER(TEXT(DATE(YEAR(TODAY()),ROWS(M$7:M9),1),"mmm")) -> Mar | N9: 533.03 | O9: 170.76 | P9: 295.75 | Q9: 243.29 | S9: 0.0794953983 | T9: =PROPER(TEXT(DATE(YEAR(TODAY()),ROWS(M$7:M9),1),"mmmm")) -> Marzo | U9: =VLOOKUP(LARGE($S$7:$S$18,ROWS(U$7:U9)),$S$7:$T$18,2,0) -> Noviembre
B10: ="" ->  | C10: Ejercicio → | J10: =IF(ARG3_03!I10="","",IF(K10="f",IF(I10=ARG3_03!I10,"ü","û"),"")) ->  | M10: =PROPER(TEXT(DATE(YEAR(TODAY()),ROWS(M$7:M10),1),"mmm")) -> Abr | N10: 515.57 | O10: 556.29 | P10: 430.30 | Q10: 518.90 | S10: 0.7527351948 | T10: =PROPER(TEXT(DATE(YEAR(TODAY()),ROWS(M$7:M10),1),"mmmm")) -> Abril | U10: =VLOOKUP(LARGE($S$7:$S$18,ROWS(U$7:U10)),$S$7:$T$18,2,0) -> Diciembre
B11: ="" ->  | C11: =INDEX($N$6:$Q$6,RANDBETWEEN(1,4)) -> Norte | D11: =TEXT(DATE(YEAR(TODAY()),(COLUMNS($D$11:D$11)-1)*2+1,1),"mmmm") -> Enero | E11: =TEXT(DATE(YEAR(TODAY()),(COLUMNS($D$11:E$11)-1)*2+1,1),"mmmm") -> Marzo | F11: =TEXT(DATE(YEAR(TODAY()),(COLUMNS($D$11:F$11)-1)*2+1,1),"mmmm") -> Mayo | G11: =TEXT(DATE(YEAR(TODAY()),(COLUMNS($D$11:G$11)-1)*2+1,1),"mmmm") -> Julio | H11: =TEXT(DATE(YEAR(TODAY()),(COLUMNS($D$11:H$11)-1)*2+1,1),"mmmm") -> Setiembre | I11: =TEXT(DATE(YEAR(TODAY()),(COLUMNS($D$11:I$11)-1)*2+1,1),"mmmm") -> Noviembre | J11: =IF(ARG3_03!I11="","",IF(K11="f",IF(I11=ARG3_03!I11,"ü","û"),"")) ->  | M11: =PROPER(TEXT(DATE(YEAR(TODAY()),ROWS(M$7:M11),1),"mmm")) -> May | N11: 152.35 | O11: 111.26 | P11: 425.44 | Q11: 564.07 | S11: 0.4035184527 | T11: =PROPER(TEXT(DATE(YEAR(TODAY()),ROWS(M$7:M11),1),"mmmm")) -> Mayo | U11: =VLOOKUP(LARGE($S$7:$S$18,ROWS(U$7:U11)),$S$7:$T$18,2,0) -> Julio
B12: ="" ->  | C12: ="" ->  | D12: =HLOOKUP($C$11,$M$6:$Q$18,COLUMNS($D12:D12)*2,0) -> 313.15 | E12: =HLOOKUP($C$11,$M$6:$Q$18,COLUMNS($D12:E12)*2,0) -> 533.03 | F12: =HLOOKUP($C$11,$M$6:$Q$18,COLUMNS($D12:F12)*2,0) -> 152.35 | G12: =HLOOKUP($C$11,$M$6:$Q$18,COLUMNS($D12:G12)*2,0) -> 511.98 | H12: =HLOOKUP($C$11,$M$6:$Q$18,COLUMNS($D12:H12)*2,0) -> 501.46 | I12: =HLOOKUP($C$11,$M$6:$Q$18,COLUMNS($D12:I12)*2,0) -> 457.25 | J12: =IF(ARG3_03!I12="","",IF(K12="f",IF(I12=ARG3_03!I12,"ü","û"),"")) ->  | K12: f | M12: =PROPER(TEXT(DATE(YEAR(TODAY()),ROWS(M$7:M12),1),"mmm")) -> Jun | N12: 460.88 | O12: 451.84 | P12: 433.78 | Q12: 370.97 | S12: 0.3130088658 | T12: =PROPER(TEXT(DATE(YEAR(TODAY()),ROWS(M$7:M12),1),"mmmm")) -> Junio | U12: =VLOOKUP(LARGE($S$7:$S$18,ROWS(U$7:U12)),$S$7:$T$18,2,0) -> Mayo
B13: ="" ->  | C13: =IF(_xlfn.ISFORMULA(ARG3_03!I12),_xlfn.FORMULATEXT(ARG3_03!I12),"") ->  | J13: =IF(ARG3_03!I13="","",IF(K13="f",IF(I13=ARG3_03!I13,"ü","û"),"")) ->  | M13: =PROPER(TEXT(DATE(YEAR(TODAY()),ROWS(M$7:M13),1),"mmm")) -> Jul | N13: 511.98 | O13: 177.83 | P13: 513.68 | Q13: 471.61 | S13: 0.5043062241 | T13: =PROPER(TEXT(DATE(YEAR(TODAY()),ROWS(M$7:M13),1),"mmmm")) -> Julio | U13: =VLOOKUP(LARGE($S$7:$S$18,ROWS(U$7:U13)),$S$7:$T$18,2,0) -> Febrero
B14: ="" ->  | C14: ="" ->  | J14: =IF(ARG3_03!I14="","",IF(K14="f",IF(I14=ARG3_03!I14,"ü","û"),"")) ->  | M14: =PROPER(TEXT(DATE(YEAR(TODAY()),ROWS(M$7:M14),1),"mmm")) -> Ago | N14: 464.95 | O14: 179.83 | P14: 299.14 | Q14: 346.06 | S14: 0.2357165853 | T14: =PROPER(TEXT(DATE(YEAR(TODAY()),ROWS(M$7:M14),1),"mmmm")) -> Agosto | U14: =VLOOKUP(LARGE($S$7:$S$18,ROWS(U$7:U14)),$S$7:$T$18,2,0) -> Junio
B15: ="" ->  | C15: Opción 1: BUSCARH | J15: =IF(ARG3_03!I15="","",IF(K15="f",IF(I15=ARG3_03!I15,"ü","û"),"")) ->  | M15: =PROPER(TEXT(DATE(YEAR(TODAY()),ROWS(M$7:M15),1),"mmm")) -> Set | N15: 501.46 | O15: 562.83 | P15: 143.54 | Q15: 504.69 | S15: 0.3079939811 | T15: =PROPER(TEXT(DATE(YEAR(TODAY()),ROWS(M$7:M15),1),"mmmm")) -> Setiembre | U15: =VLOOKUP(LARGE($S$7:$S$18,ROWS(U$7:U15)),$S$7:$T$18,2,0) -> Setiembre
B16: ="" ->  | C16: =C11 -> Norte | D16: =TRANSPOSE(lista03.09) -> Octubre | E16: Abril | F16: Noviembre | G16: Diciembre | H16: Julio | I16: Mayo | J16: =IF(ARG3_03!I16="","",IF(K16="f",IF(I16=ARG3_03!I16,"ü","û"),"")) ->  | M16: =PROPER(TEXT(DATE(YEAR(TODAY()),ROWS(M$7:M16),1),"mmm")) -> Oct | N16: 481.51 | O16: 573.38 | P16: 205.11 | Q16: 459.58 | S16: 0.910853336 | T16: =PROPER(TEXT(DATE(YEAR(TODAY()),ROWS(M$7:M16),1),"mmmm")) -> Octubre | U16: =VLOOKUP(LARGE($S$7:$S$18,ROWS(U$7:U16)),$S$7:$T$18,2,0) -> Agosto
B17: ="" ->  | C17: ="" ->  | D17: =HLOOKUP($C16,$M$6:$Q$18,MATCH(LEFT(D16,3),$M$6:$M$18,0),0) -> 481.51 | E17: 515.57 | F17: 457.25 | G17: 427.66 | H17: 511.98 | I17: 152.35 | J17: =IF(ARG3_03!I17="","",IF(K17="f",IF(I17=ARG3_03!I17,"ü","û"),"")) ->  | K17: f | M17: =PROPER(TEXT(DATE(YEAR(TODAY()),ROWS(M$7:M17),1),"mmm")) -> Nov | N17: 457.25 | O17: 581.02 | P17: 576.13 | Q17: 210.72 | S17: 0.6007781301 | T17: =PROPER(TEXT(DATE(YEAR(TODAY()),ROWS(M$7:M17),1),"mmmm")) -> Noviembre | U17: =VLOOKUP(LARGE($S$7:$S$18,ROWS(U$7:U17)),$S$7:$T$18,2,0) -> Marzo
B18: ="" ->  | C18: =IF(_xlfn.ISFORMULA(ARG3_03!I17),_xlfn.FORMULATEXT(ARG3_03!I17),"") ->  | J18: =IF(ARG3_03!I18="","",IF(K18="f",IF(I18=ARG3_03!I18,"ü","û"),"")) ->  | M18: =PROPER(TEXT(DATE(YEAR(TODAY()),ROWS(M$7:M18),1),"mmm")) -> Dic | N18: 427.66 | O18: 368.94 | P18: 273.82 | Q18: 270.41 | S18: 0.5740012462 | T18: =PROPER(TEXT(DATE(YEAR(TODAY()),ROWS(M$7:M18),1),"mmmm")) -> Diciembre | U18: =VLOOKUP(LARGE($S$7:$S$18,ROWS(U$7:U18)),$S$7:$T$18,2,0) -> Enero

Sheet ARG3_03 (hidden)
B1: Argumento indicador de columna - fila
B2: MOS Expert - CPC Martín Cruz - 998401784
B6: =lista03.10 ->  | C6: INDICADOR DE COLUMNA - INDICADOR DE FILA | J6: =lista03.13 -> 
B8: ► | C8: COLUMNA O FILA CALCULADA - CON CELDA DE APOYO CASO ESPECIAL (2) | L8: Meses | M8: Norte | N8: Sur | O8: Este | P8: Oeste
C9: ¿A cuánto asciende la venta de los meses indicados de la zona Norte? | L9: =PROPER(TEXT(DATE(YEAR(TODAY()),ROWS(L$9:L9),1),"mmm")) -> Ene | M9: =ROUND(RANDBETWEEN(100,600)+RAND(),2) -> 260.75 | N9: 225.72 | O9: 263.49 | P9: 529.33
C10: Ejercicio → | L10: =PROPER(TEXT(DATE(YEAR(TODAY()),ROWS(L$9:L10),1),"mmm")) -> Feb | M10: 547.02 | N10: 525.37 | O10: 507.33 | P10: 551.82
C11: Norte | D11: =lista03.11 -> Enero | E11: Marzo | F11: Mayo | G11: Julio | H11: Setiembre | I11: Noviembre | L11: =PROPER(TEXT(DATE(YEAR(TODAY()),ROWS(L$9:L11),1),"mmm")) -> Mar | M11: 472.71 | N11: 225.96 | O11: 478.55 | P11: 340.70
L12: =PROPER(TEXT(DATE(YEAR(TODAY()),ROWS(L$9:L12),1),"mmm")) -> Abr | M12: 517.65 | N12: 210.01 | O12: 385.85 | P12: 127.87
L13: =PROPER(TEXT(DATE(YEAR(TODAY()),ROWS(L$9:L13),1),"mmm")) -> May | M13: 481.91 | N13: 564.08 | O13: 197.72 | P13: 326.66
L14: =PROPER(TEXT(DATE(YEAR(TODAY()),ROWS(L$9:L14),1),"mmm")) -> Jun | M14: 290.52 | N14: 508.09 | O14: 411.07 | P14: 516.14
C15: Opción 1: BUSCARH | L15: =PROPER(TEXT(DATE(YEAR(TODAY()),ROWS(L$9:L15),1),"mmm")) -> Jul | M15: 371.22 | N15: 131.89 | O15: 522.03 | P15: 219.58
C16: Norte | D16: =lista03.12 -> Octubre | E16: Abril | F16: Noviembre | G16: Diciembre | H16: Julio | I16: Mayo | L16: =PROPER(TEXT(DATE(YEAR(TODAY()),ROWS(L$9:L16),1),"mmm")) -> Ago | M16: 493.10 | N16: 183.54 | O16: 118.68 | P16: 175.85
L17: =PROPER(TEXT(DATE(YEAR(TODAY()),ROWS(L$9:L17),1),"mmm")) -> Set | M17: 236.06 | N17: 209.52 | O17: 381.81 | P17: 172.45
L18: =PROPER(TEXT(DATE(YEAR(TODAY()),ROWS(L$9:L18),1),"mmm")) -> Oct | M18: 298.98 | N18: 180.51 | O18: 510.79 | P18: 301.17
L19: =PROPER(TEXT(DATE(YEAR(TODAY()),ROWS(L$9:L19),1),"mmm")) -> Nov | M19: 221.23 | N19: 538.34 | O19: 483.55 | P19: 570.78
L20: =PROPER(TEXT(DATE(YEAR(TODAY()),ROWS(L$9:L20),1),"mmm")) -> Dic | M20: 167.98 | N20: 487.81 | O20: 288.80 | P20: 535.25

Sheet DO_A2_01 (hidden)
B6: ="" ->  | C6: MATRIZ BUSCAR EN | H6: =IF(ARG2_01!G6="","",IF(I6="f",IF(G6=ARG2_01!G6,"ü","û"),"")) -> 
B7: ="" ->  | C7: ="" ->  | H7: =IF(ARG2_01!G7="","",IF(I7="f",IF(G7=ARG2_01!G7,"ü","û"),"")) ->  | K7: Meses | L7: Norte | M7: Sur
B8: ► | C8: MATRIZ SIN CELDAS DE APOYO | H8: =IF(ARG2_01!G8="","",IF(I8="f",IF(G8=ARG2_01!G8,"ü","û"),"")) ->  | K8: Enero | L8: 490 | M8: 230
B9: ="" ->  | C9: ="¿A cuánto asciende la venta del mes de mayo de la zona Sur?" -> ¿A cuánto asciende la venta del mes de mayo de la zona Sur? | H9: =IF(ARG2_01!G9="","",IF(I9="f",IF(G9=ARG2_01!G9,"ü","û"),"")) ->  | K9: Febrero | L9: 226 | M9: 564
B10: ="" ->  | C10: Opción 1: BUSCARV | G10: =VLOOKUP("mayo", {"Meses","Norte","Sur";"Enero",490,230;"Febrero",226,564;"Marzo",175,598;"Abril",152,487;"Mayo",228,513;"Junio",526,407;"Julio",183,338;"Agosto",540,105;"Setiembre",112,140;"Octubre",288,507;"Noviembre",462,161;"Diciembre",142,122},3,0) -> 513 | H10: =IF(ARG2_01!G10="","",IF(I10="f",IF(G10=ARG2_01!G10,"ü","û"),"")) ->  | I10: f | K10: Marzo | L10: 175 | M10: 598
B11: ="" ->  | C11: =IF(_xlfn.ISFORMULA(ARG2_01!$G$10),MID(_xlfn.FORMULATEXT(ARG2_01!$G$10),1+60*(ROWS(C$11:C11)-1),60),"") ->  | H11: =IF(ARG2_01!G11="","",IF(I11="f",IF(G11=ARG2_01!G11,"ü","û"),"")) ->  | K11: Abril | L11: 152 | M11: 487
B12: ="" ->  | C12: =IF(_xlfn.ISFORMULA(ARG2_01!$G$10),MID(_xlfn.FORMULATEXT(ARG2_01!$G$10),1+60*(ROWS(C$11:C12)-1),60),"") ->  | H12: =IF(ARG2_01!G12="","",IF(I12="f",IF(G12=ARG2_01!G12,"ü","û"),"")) ->  | K12: Mayo | L12: 228 | M12: 513
B13: ="" ->  | C13: =IF(_xlfn.ISFORMULA(ARG2_01!$G$10),MID(_xlfn.FORMULATEXT(ARG2_01!$G$10),1+60*(ROWS(C$11:C13)-1),60),"") ->  | H13: =IF(ARG2_01!G13="","",IF(I13="f",IF(G13=ARG2_01!G13,"ü","û"),"")) ->  | K13: Junio | L13: 526 | M13: 407
B14: ="" ->  | C14: =IF(_xlfn.ISFORMULA(ARG2_01!$G$10),MID(_xlfn.FORMULATEXT(ARG2_01!$G$10),1+60*(ROWS(C$11:C14)-1),60),"") ->  | H14: =IF(ARG2_01!G14="","",IF(I14="f",IF(G14=ARG2_01!G14,"ü","û"),"")) ->  | K14: Julio | L14: 183 | M14: 338
B15: ="" ->  | C15: =IF(_xlfn.ISFORMULA(ARG2_01!$G$10),MID(_xlfn.FORMULATEXT(ARG2_01!$G$10),1+60*(ROWS(C$11:C15)-1),60),"") ->  | H15: =IF(ARG2_01!G15="","",IF(I15="f",IF(G15=ARG2_01!G15,"ü","û"),"")) ->  | K15: Agosto | L15: 540 | M15: 105
B16: ="" ->  | C16: ="" ->  | H16: =IF(ARG2_01!G16="","",IF(I16="f",IF(G16=ARG2_01!G16,"ü","û"),"")) ->  | K16: Setiembre | L16: 112 | M16: 140
B17: ="" ->  | C17: =IF(_xlfn.ISFORMULA(ARG2_01!G10),"Ahora para Norte, evalúa que nro de columna será.","") ->  | H17: =IF(ARG2_01!G17="","",IF(I17="f",IF(G17=ARG2_01!G17,"ü","û"),"")) ->  | K17: Octubre | L17: 288 | M17: 507
B18: ="" ->  | C18: Ejercicio → | G18: =VLOOKUP("mayo", {"Meses","Norte","Sur";"Enero",490,230;"Febrero",226,564;"Marzo",175,598;"Abril",152,487;"Mayo",228,513;"Junio",526,407;"Julio",183,338;"Agosto",540,105;"Setiembre",112,140;"Octubre",288,507;"Noviembre",462,161;"Diciembre",142,122},2,0) -> 228 | H18: =IF(ARG2_01!G18="","",IF(I18="f",IF(G18=ARG2_01!G18,"ü","û"),"")) ->  | I18: f | K18: Noviembre | L18: 462 | M18: 161
B19: ="" ->  | C19: =IF(_xlfn.ISFORMULA(ARG2_01!$G$18),MID(_xlfn.FORMULATEXT(ARG2_01!$G$18),1+60*(ROWS(C$19:C19)-1),60),"") ->  | H19: =IF(ARG2_01!G19="","",IF(I19="f",IF(G19=ARG2_01!G19,"ü","û"),"")) ->  | K19: Diciembre | L19: 142 | M19: 122
B20: ="" ->  | C20: =IF(_xlfn.ISFORMULA(ARG2_01!$G$18),MID(_xlfn.FORMULATEXT(ARG2_01!$G$18),1+60*(ROWS(C$19:C20)-1),60),"") ->  | H20: =IF(ARG2_01!G20="","",IF(I20="f",IF(G20=ARG2_01!G20,"ü","û"),"")) -> 
B21: ="" ->  | C21: =IF(_xlfn.ISFORMULA(ARG2_01!$G$18),MID(_xlfn.FORMULATEXT(ARG2_01!$G$18),1+60*(ROWS(C$19:C21)-1),60),"") ->  | H21: =IF(ARG2_01!G21="","",IF(I21="f",IF(G21=ARG2_01!G21,"ü","û"),"")) -> 
B22: ="" ->  | C22: =IF(_xlfn.ISFORMULA(ARG2_01!$G$18),MID(_xlfn.FORMULATEXT(ARG2_01!$G$18),1+60*(ROWS(C$19:C22)-1),60),"") ->  | H22: =IF(ARG2_01!G22="","",IF(I22="f",IF(G22=ARG2_01!G22,"ü","û"),"")) -> 
B23: ="" ->  | C23: =IF(_xlfn.ISFORMULA(ARG2_01!$G$18),MID(_xlfn.FORMULATEXT(ARG2_01!$G$18),1+60*(ROWS(C$19:C23)-1),60),"") ->  | H23: =IF(ARG2_01!G23="","",IF(I23="f",IF(G23=ARG2_01!G23,"ü","û"),"")) -> 
B24: ="" ->  | C24: ="" ->  | H24: =IF(ARG2_01!G24="","",IF(I24="f",IF(G24=ARG2_01!G24,"ü","û"),"")) -> 
B25: ="" ->  | C25: Opción 2: BUSCARH | G25: =HLOOKUP("sur", {"Meses","Norte","Sur";"Enero",490,230;"Febrero",226,564;"Marzo",175,598;"Abril",152,487;"Mayo",228,513;"Junio",526,407;"Julio",183,338;"Agosto",540,105;"Setiembre",112,140;"Octubre",288,507;"Noviembre",462,161;"Diciembre",142,122},6,0) -> 513 | H25: =IF(ARG2_01!G25="","",IF(I25="f",IF(G25=ARG2_01!G25,"ü","û"),"")) ->  | I25: f
B26: ="" ->  | C26: =IF(_xlfn.ISFORMULA(ARG2_01!$G$25),MID(_xlfn.FORMULATEXT(ARG2_01!$G$25),1+60*(ROWS(C$26:C26)-1),60),"") ->  | H26: =IF(ARG2_01!G26="","",IF(I26="f",IF(G26=ARG2_01!G26,"ü","û"),"")) -> 
B27: ="" ->  | C27: =IF(_xlfn.ISFORMULA(ARG2_01!$G$25),MID(_xlfn.FORMULATEXT(ARG2_01!$G$25),1+60*(ROWS(C$26:C27)-1),60),"") ->  | H27: =IF(ARG2_01!G27="","",IF(I27="f",IF(G27=ARG2_01!G27,"ü","û"),"")) -> 
B28: ="" ->  | C28: =IF(_xlfn.ISFORMULA(ARG2_01!$G$25),MID(_xlfn.FORMULATEXT(ARG2_01!$G$25),1+60*(ROWS(C$26:C28)-1),60),"") ->  | H28: =IF(ARG2_01!G28="","",IF(I28="f",IF(G28=ARG2_01!G28,"ü","û"),"")) -> 
B29: ="" ->  | C29: =IF(_xlfn.ISFORMULA(ARG2_01!$G$25),MID(_xlfn.FORMULATEXT(ARG2_01!$G$25),1+60*(ROWS(C$26:C29)-1),60),"") ->  | H29: =IF(ARG2_01!G29="","",IF(I29="f",IF(G29=ARG2_01!G29,"ü","û"),"")) -> 
B30: ="" ->  | C30: =IF(_xlfn.ISFORMULA(ARG2_01!$G$25),MID(_xlfn.FORMULATEXT(ARG2_01!$G$25),1+60*(ROWS(C$26:C30)-1),60),"") ->  | H30: =IF(ARG2_01!G30="","",IF(I30="f",IF(G30=ARG2_01!G30,"ü","û"),"")) -> 
B31: ="" ->  | C31: ="" ->  | D31: =IF(_xlfn.ISFORMULA(D27),"Ahora para Octubre, evalúa que nro de fila será","") ->  | H31: =IF(ARG2_01!G31="","",IF(I31="f",IF(G31=ARG2_01!G31,"ü","û"),"")) -> 
B32: ="" ->  | C32: Ejercicio → | G32: =HLOOKUP("norte", {"Meses","Norte","Sur";"Enero",490,230;"Febrero",226,564;"Marzo",175,598;"Abril",152,487;"Mayo",228,513;"Junio",526,407;"Julio",183,338;"Agosto",540,105;"Setiembre",112,140;"Octubre",288,507;"Noviembre",462,161;"Diciembre",142,122},11,0) -> 288 | H32: =IF(ARG2_01!G32="","",IF(I32="f",IF(G32=ARG2_01!G32,"ü","û"),"")) ->  | I32: f
B33: ="" ->  | C33: =IF(_xlfn.ISFORMULA(ARG2_01!$G$32),MID(_xlfn.FORMULATEXT(ARG2_01!$G$32),1+60*(ROWS(C$33:C33)-1),60),"") ->  | H33: =IF(ARG2_01!G33="","",IF(I33="f",IF(G33=ARG2_01!G33,"ü","û"),"")) -> 
B34: ="" ->  | C34: =IF(_xlfn.ISFORMULA(ARG2_01!$G$32),MID(_xlfn.FORMULATEXT(ARG2_01!$G$32),1+60*(ROWS(C$33:C34)-1),60),"") ->  | H34: =IF(ARG2_01!G34="","",IF(I34="f",IF(G34=ARG2_01!G34,"ü","û"),"")) -> 
B35: ="" ->  | C35: =IF(_xlfn.ISFORMULA(ARG2_01!$G$32),MID(_xlfn.FORMULATEXT(ARG2_01!$G$32),1+60*(ROWS(C$33:C35)-1),60),"") ->  | H35: =IF(ARG2_01!G35="","",IF(I35="f",IF(G35=ARG2_01!G35,"ü","û"),"")) -> 
B36: ="" ->  | C36: =IF(_xlfn.ISFORMULA(ARG2_01!$G$32),MID(_xlfn.FORMULATEXT(ARG2_01!$G$32),1+60*(ROWS(C$33:C36)-1),60),"") ->  | H36: =IF(ARG2_01!G36="","",IF(I36="f",IF(G36=ARG2_01!G36,"ü","û"),"")) -> 
B37: ="" ->  | C37: =IF(_xlfn.ISFORMULA(ARG2_01!$G$32),MID(_xlfn.FORMULATEXT(ARG2_01!$G$32),1+60*(ROWS(C$33:C37)-1),60),"") ->  | H37: =IF(ARG2_01!G37="","",IF(I37="f",IF(G37=ARG2_01!G37,"ü","û"),"")) -> 

Sheet ARG2_01 (hidden)
B1: Argumento matriz buscar en
B2: MOS Expert - CPC Martín Cruz - 998401784
B6: =lista02.01 ->  | C6: MATRIZ BUSCAR EN | H6: =lista02.02 -> 
B8: ► | C8: MATRIZ SIN CELDAS DE APOYO | J8: Meses | K8: Norte | L8: Sur
C9: ¿A cuánto asciende la venta del mes de mayo de la zona Sur? | J9: Enero | K9: 490 | L9: 230
C10: Opción 1: BUSCARV | J10: Febrero | K10: 226 | L10: 564
J11: Marzo | K11: 175 | L11: 598
J12: Abril | K12: 152 | L12: 487
J13: Mayo | K13: 228 | L13: 513
J14: Junio | K14: 526 | L14: 407
J15: Julio | K15: 183 | L15: 338
J16: Agosto | K16: 540 | L16: 105
J17: Setiembre | K17: 112 | L17: 140
C18: Ejercicio → | J18: Octubre | K18: 288 | L18: 507
J19: Noviembre | K19: 462 | L19: 161
J20: Diciembre | K20: 142 | L20: 122
C25: Opción 2: BUSCARH
D31: =IF(_xlfn.ISFORMULA(D27),"Ahora para Octubre, evalúa que nro de fila será","") -> 
C32: Ejercicio →

Sheet DO_A2_02 (hidden)
B6: ="" ->  | C6: ="" ->  | D6: MATRIZ BUSCAR EN | I6: =IF(ARG2_02!H6="","",IF(J6="f",IF(H6=ARG2_02!H6,"ü","û"),"")) ->  | L6: Carlos | M6: Norte | N6: Sur | O6: Este | P6: Oeste | R6: Patricia | S6: Norte | T6: Sur | U6: Este | V6: Oeste
B7: ="" ->  | C7: ="" ->  | D7: ="" ->  | I7: =IF(ARG2_02!H7="","",IF(J7="f",IF(H7=ARG2_02!H7,"ü","û"),"")) ->  | L7: =PROPER(TEXT(DATE(YEAR(TODAY()),ROWS(L$7:L7),1),"mmmm")) -> Enero | M7: =ROUND(RANDBETWEEN(200,700)+RAND(),2) -> 397.70 | N7: 238.83 | O7: 244.92 | P7: 622.70 | R7: =PROPER(TEXT(DATE(YEAR(TODAY()),ROWS(R$7:R7),1),"mmmm")) -> Enero | S7: =ROUND(RANDBETWEEN(300,500)+RAND(),2) -> 474.37 | T7: 372.56 | U7: 479.08 | V7: 353.15
B8: ► | C8: ="" ->  | D8: BUSCANDO EN DOS MATRICES | I8: =IF(ARG2_02!H8="","",IF(J8="f",IF(H8=ARG2_02!H8,"ü","û"),"")) ->  | L8: =PROPER(TEXT(DATE(YEAR(TODAY()),ROWS(L$7:L8),1),"mmmm")) -> Febrero | M8: 566.26 | N8: 275.37 | O8: 253.21 | P8: 522.66 | R8: =PROPER(TEXT(DATE(YEAR(TODAY()),ROWS(R$7:R8),1),"mmmm")) -> Febrero | S8: 356.20 | T8: 333.92 | U8: 405.28 | V8: 350.24
B9: ="" ->  | C9: ="" ->  | D9: ="" ->  | I9: =IF(ARG2_02!H9="","",IF(J9="f",IF(H9=ARG2_02!H9,"ü","û"),"")) ->  | L9: =PROPER(TEXT(DATE(YEAR(TODAY()),ROWS(L$7:L9),1),"mmmm")) -> Marzo | M9: 364.92 | N9: 261.29 | O9: 209.85 | P9: 599.61 | R9: =PROPER(TEXT(DATE(YEAR(TODAY()),ROWS(R$7:R9),1),"mmmm")) -> Marzo | S9: 378.59 | T9: 471.91 | U9: 466.63 | V9: 301.89
B10: ="" ->  | C10: ="" ->  | D10: Opción 1: BUSCARV | I10: =IF(ARG2_02!H10="","",IF(J10="f",IF(H10=ARG2_02!H10,"ü","û"),"")) ->  | L10: =PROPER(TEXT(DATE(YEAR(TODAY()),ROWS(L$7:L10),1),"mmmm")) -> Abril | M10: 328.31 | N10: 357.38 | O10: 589.29 | P10: 584.92 | R10: =PROPER(TEXT(DATE(YEAR(TODAY()),ROWS(R$7:R10),1),"mmmm")) -> Abril | S10: 426.36 | T10: 433.43 | U10: 399.73 | V10: 478.79
B11: ="" ->  | C11: Responsable | D11: =CHOOSE(RANDBETWEEN(1,2),"Carlos","Patricia") -> Patricia | I11: =IF(ARG2_02!H11="","",IF(J11="f",IF(H11=ARG2_02!H11,"ü","û"),"")) ->  | L11: =PROPER(TEXT(DATE(YEAR(TODAY()),ROWS(L$7:L11),1),"mmmm")) -> Mayo | M11: 304.41 | N11: 588.18 | O11: 538.53 | P11: 219.93 | R11: =PROPER(TEXT(DATE(YEAR(TODAY()),ROWS(R$7:R11),1),"mmmm")) -> Mayo | S11: 457.43 | T11: 346.68 | U11: 375.99 | V11: 428.46
B12: ="" ->  | C12: Zona | D12: =INDEX($M$6:$P$6,RANDBETWEEN(1,2)*2) -> Oeste | I12: =IF(ARG2_02!H12="","",IF(J12="f",IF(H12=ARG2_02!H12,"ü","û"),"")) ->  | L12: =PROPER(TEXT(DATE(YEAR(TODAY()),ROWS(L$7:L12),1),"mmmm")) -> Junio | M12: 418.46 | N12: 548.87 | O12: 500.33 | P12: 304.73 | R12: =PROPER(TEXT(DATE(YEAR(TODAY()),ROWS(R$7:R12),1),"mmmm")) -> Junio | S12: 303.48 | T12: 430.92 | U12: 314.76 | V12: 429.71
B13: ="" ->  | C13: Mes | D13: =INDEX($L$7:$L$18,RANDBETWEEN(1,6)*2) -> Abril | H13: =VLOOKUP(D13,IF(D11="Carlos",$L$6:$P$18,$R$6:$V$18),MATCH(D12,L$6:$P$6,0),0) -> 478.79 | I13: =IF(ARG2_02!H13="","",IF(J13="f",IF(H13=ARG2_02!H13,"ü","û"),"")) ->  | J13: f | L13: =PROPER(TEXT(DATE(YEAR(TODAY()),ROWS(L$7:L13),1),"mmmm")) -> Julio | M13: 421.22 | N13: 637.87 | O13: 379.28 | P13: 539.19 | R13: =PROPER(TEXT(DATE(YEAR(TODAY()),ROWS(R$7:R13),1),"mmmm")) -> Julio | S13: 323.74 | T13: 408.47 | U13: 370.22 | V13: 361.11
B14: ="" ->  | C14: ="" ->  | D14: =IF(_xlfn.ISFORMULA(ARG2_02!H13),MID(_xlfn.FORMULATEXT(ARG2_02!H13),1,52),"") ->  | I14: =IF(ARG2_02!H14="","",IF(J14="f",IF(H14=ARG2_02!H14,"ü","û"),"")) ->  | L14: =PROPER(TEXT(DATE(YEAR(TODAY()),ROWS(L$7:L14),1),"mmmm")) -> Agosto | M14: 390.68 | N14: 301.44 | O14: 388.99 | P14: 269.90 | R14: =PROPER(TEXT(DATE(YEAR(TODAY()),ROWS(R$7:R14),1),"mmmm")) -> Agosto | S14: 443.33 | T14: 374.15 | U14: 376.23 | V14: 397.21
B15: ="" ->  | C15: ="" ->  | D15: =IF(_xlfn.ISFORMULA(ARG2_02!H13),MID(_xlfn.FORMULATEXT(ARG2_02!H13),53,100),"") ->  | I15: =IF(ARG2_02!H15="","",IF(J15="f",IF(H15=ARG2_02!H15,"ü","û"),"")) ->  | L15: =PROPER(TEXT(DATE(YEAR(TODAY()),ROWS(L$7:L15),1),"mmmm")) -> Setiembre | M15: 495.49 | N15: 432.10 | O15: 509.54 | P15: 285.91 | R15: =PROPER(TEXT(DATE(YEAR(TODAY()),ROWS(R$7:R15),1),"mmmm")) -> Setiembre | S15: 439.00 | T15: 500.17 | U15: 442.22 | V15: 446.58
B16: ="" ->  | C16: ="" ->  | D16: ="" ->  | I16: =IF(ARG2_02!H16="","",IF(J16="f",IF(H16=ARG2_02!H16,"ü","û"),"")) ->  | L16: =PROPER(TEXT(DATE(YEAR(TODAY()),ROWS(L$7:L16),1),"mmmm")) -> Octubre | M16: 375.41 | N16: 295.48 | O16: 329.45 | P16: 244.31 | R16: =PROPER(TEXT(DATE(YEAR(TODAY()),ROWS(R$7:R16),1),"mmmm")) -> Octubre | S16: 328.41 | T16: 437.96 | U16: 415.67 | V16: 440.54
B17: ="" ->  | C17: ="" ->  | D17: Ejercicio → | I17: =IF(ARG2_02!H17="","",IF(J17="f",IF(H17=ARG2_02!H17,"ü","û"),"")) ->  | L17: =PROPER(TEXT(DATE(YEAR(TODAY()),ROWS(L$7:L17),1),"mmmm")) -> Noviembre | M17: 695.15 | N17: 616.67 | O17: 626.75 | P17: 520.13 | R17: =PROPER(TEXT(DATE(YEAR(TODAY()),ROWS(R$7:R17),1),"mmmm")) -> Noviembre | S17: 427.97 | T17: 333.62 | U17: 352.43 | V17: 356.39
B18: ="" ->  | C18: Responsable | D18: =CHOOSE(RANDBETWEEN(1,2),"Carlos","Patricia") -> Carlos | I18: =IF(ARG2_02!H18="","",IF(J18="f",IF(H18=ARG2_02!H18,"ü","û"),"")) ->  | L18: =PROPER(TEXT(DATE(YEAR(TODAY()),ROWS(L$7:L18),1),"mmmm")) -> Diciembre | M18: 466.94 | N18: 450.98 | O18: 431.75 | P18: 685.72 | R18: =PROPER(TEXT(DATE(YEAR(TODAY()),ROWS(R$7:R18),1),"mmmm")) -> Diciembre | S18: 358.24 | T18: 358.62 | U18: 432.97 | V18: 409.10
B19: ="" ->  | C19: Zona | D19: =INDEX($M$6:$P$6,RANDBETWEEN(1,2)*2-1) -> Norte | I19: =IF(ARG2_02!H19="","",IF(J19="f",IF(H19=ARG2_02!H19,"ü","û"),"")) -> 
B20: ="" ->  | C20: Mes | D20: =INDEX($L$7:$L$18,RANDBETWEEN(1,6)*2-1) -> Enero | H20: =HLOOKUP(D19,IF(D18="Carlos",$L$6:$P$18,$R$6:$V$18),MATCH(D20,L$6:$L$18,0),0) -> 397.70 | I20: =IF(ARG2_02!H20="","",IF(J20="f",IF(H20=ARG2_02!H20,"ü","û"),"")) ->  | J20: f
B21: ="" ->  | C21: ="" ->  | D21: =IF(_xlfn.ISFORMULA(ARG2_02!H20),MID(_xlfn.FORMULATEXT(ARG2_02!H20),1,52),"") ->  | I21: =IF(ARG2_02!H21="","",IF(J21="f",IF(H21=ARG2_02!H21,"ü","û"),"")) -> 
B22: ="" ->  | C22: ="" ->  | D22: =IF(_xlfn.ISFORMULA(ARG2_02!H20),MID(_xlfn.FORMULATEXT(ARG2_02!H20),53,100),"") ->  | I22: =IF(ARG2_02!H22="","",IF(J22="f",IF(H22=ARG2_02!H22,"ü","û"),"")) -> 

Sheet ARG2_02 (hidden)
B1: Argumento matriz buscar en
B2: MOS Expert - CPC Martín Cruz - 998401784
B6: =lista02.03 ->  | D6: MATRIZ BUSCAR EN | I6: =lista02.06 -> 
B8: ► | D8: BUSCANDO EN DOS MATRICES | K8: =lista02.04 -> Carlos | L8: Norte | M8: Sur | N8: Este | O8: Oeste | Q8: =lista02.05 -> Patricia | R8: Norte | S8: Sur | T8: Este | U8: Oeste
K9: Enero | L9: 397.70 | M9: 238.83 | N9: 244.92 | O9: 622.70 | Q9: Enero | R9: 474.37 | S9: 372.56 | T9: 479.08 | U9: 353.15
D10: Opción 1: BUSCARV | K10: Febrero | L10: 566.26 | M10: 275.37 | N10: 253.21 | O10: 522.66 | Q10: Febrero | R10: 356.20 | S10: 333.92 | T10: 405.28 | U10: 350.24
C11: Responsable | D11: Patricia | K11: Marzo | L11: 364.92 | M11: 261.29 | N11: 209.85 | O11: 599.61 | Q11: Marzo | R11: 378.59 | S11: 471.91 | T11: 466.63 | U11: 301.89
C12: Zona | D12: Oeste | K12: Abril | L12: 328.31 | M12: 357.38 | N12: 589.29 | O12: 584.92 | Q12: Abril | R12: 426.36 | S12: 433.43 | T12: 399.73 | U12: 478.79
C13: Mes | D13: Abril | K13: Mayo | L13: 304.41 | M13: 588.18 | N13: 538.53 | O13: 219.93 | Q13: Mayo | R13: 457.43 | S13: 346.68 | T13: 375.99 | U13: 428.46
K14: Junio | L14: 418.46 | M14: 548.87 | N14: 500.33 | O14: 304.73 | Q14: Junio | R14: 303.48 | S14: 430.92 | T14: 314.76 | U14: 429.71
K15: Julio | L15: 421.22 | M15: 637.87 | N15: 379.28 | O15: 539.19 | Q15: Julio | R15: 323.74 | S15: 408.47 | T15: 370.22 | U15: 361.11
K16: Agosto | L16: 390.68 | M16: 301.44 | N16: 388.99 | O16: 269.90 | Q16: Agosto | R16: 443.33 | S16: 374.15 | T16: 376.23 | U16: 397.21
D17: Ejercicio → | K17: Setiembre | L17: 495.49 | M17: 432.10 | N17: 509.54 | O17: 285.91 | Q17: Setiembre | R17: 439.00 | S17: 500.17 | T17: 442.22 | U17: 446.58
C18: Responsable | D18: Carlos | K18: Octubre | L18: 375.41 | M18: 295.48 | N18: 329.45 | O18: 244.31 | Q18: Octubre | R18: 328.41 | S18: 437.96 | T18: 415.67 | U18: 440.54
C19: Zona | D19: Norte | K19: Noviembre | L19: 695.15 | M19: 616.67 | N19: 626.75 | O19: 520.13 | Q19: Noviembre | R19: 427.97 | S19: 333.62 | T19: 352.43 | U19: 356.39
C20: Mes | D20: Enero | K20: Diciembre | L20: 466.94 | M20: 450.98 | N20: 431.75 | O20: 685.72 | Q20: Diciembre | R20: 358.24 | S20: 358.62 | T20: 432.97 | U20: 409.10

Sheet DO_A2_03 (hidden)
B6: ="" ->  | C6: ="" ->  | D6: MATRIZ BUSCAR EN | I6: =IF(ARG2_03!H6="","",IF(J6="f",IF(H6=ARG2_03!H6,"ü","û"),"")) ->  | L6: Norte | M6: Fideos | N6: Harina | O6: Aceite | P6: Algodón | R6: Sur | S6: Fideos | T6: Harina | U6: Aceite | V6: Algodón
B7: ="" ->  | C7: ="" ->  | D7: ="" ->  | I7: =IF(ARG2_03!H7="","",IF(J7="f",IF(H7=ARG2_03!H7,"ü","û"),"")) ->  | L7: =PROPER(TEXT(DATE(YEAR(TODAY()),ROWS(L$7:L7),1),"mmmm")) -> Enero | M7: =ROUND(RANDBETWEEN(200,700)+RAND(),2) -> 519.71 | N7: 200.90 | O7: 206.91 | P7: 675.36 | R7: =PROPER(TEXT(DATE(YEAR(TODAY()),ROWS(R$7:R7),1),"mmmm")) -> Enero | S7: =ROUND(RANDBETWEEN(300,900)+RAND(),2) -> 388.15 | T7: 860.62 | U7: 461.61 | V7: 732.98 | X7: Norte | Y7: lista02.07
B8: ► | C8: ="" ->  | D8: BUSCANDO EN MAS DE DOS MATRICES | I8: =IF(ARG2_03!H8="","",IF(J8="f",IF(H8=ARG2_03!H8,"ü","û"),"")) ->  | L8: =PROPER(TEXT(DATE(YEAR(TODAY()),ROWS(L$7:L8),1),"mmmm")) -> Febrero | M8: 210.36 | N8: 210.05 | O8: 274.27 | P8: 569.36 | R8: =PROPER(TEXT(DATE(YEAR(TODAY()),ROWS(R$7:R8),1),"mmmm")) -> Febrero | S8: 744.16 | T8: 659.99 | U8: 872.65 | V8: 395.60 | X8: Sur | Y8: lista02.08
B9: ="" ->  | C9: ="" ->  | D9: ="" ->  | I9: =IF(ARG2_03!H9="","",IF(J9="f",IF(H9=ARG2_03!H9,"ü","û"),"")) ->  | L9: =PROPER(TEXT(DATE(YEAR(TODAY()),ROWS(L$7:L9),1),"mmmm")) -> Marzo | M9: 297.29 | N9: 331.61 | O9: 586.12 | P9: 582.79 | R9: =PROPER(TEXT(DATE(YEAR(TODAY()),ROWS(R$7:R9),1),"mmmm")) -> Marzo | S9: 657.48 | T9: 870.79 | U9: 881.21 | V9: 518.25 | X9: Este | Y9: lista02.09
B10: ="" ->  | C10: ="" ->  | D10: Opción 1: BUSCARH | I10: =IF(ARG2_03!H10="","",IF(J10="f",IF(H10=ARG2_03!H10,"ü","û"),"")) ->  | L10: =PROPER(TEXT(DATE(YEAR(TODAY()),ROWS(L$7:L10),1),"mmmm")) -> Abril | M10: 592.36 | N10: 632.02 | O10: 249.01 | P10: 275.21 | R10: =PROPER(TEXT(DATE(YEAR(TODAY()),ROWS(R$7:R10),1),"mmmm")) -> Abril | S10: 537.99 | T10: 344.50 | U10: 648.45 | V10: 364.89 | X10: Oeste | Y10: lista02.10
B11: ="" ->  | C11: Zona | D11: =INDEX($X$7:$X$10,RANDBETWEEN(1,4)) -> Este | I11: =IF(ARG2_03!H11="","",IF(J11="f",IF(H11=ARG2_03!H11,"ü","û"),"")) ->  | L11: =PROPER(TEXT(DATE(YEAR(TODAY()),ROWS(L$7:L11),1),"mmmm")) -> Mayo | M11: 295.14 | N11: 487.86 | O11: 523.46 | P11: 266.05 | R11: =PROPER(TEXT(DATE(YEAR(TODAY()),ROWS(R$7:R11),1),"mmmm")) -> Mayo | S11: 405.04 | T11: 763.82 | U11: 830.19 | V11: 857.19
B12: ="" ->  | C12: Producto | D12: =INDEX($M$6:$P$6,RANDBETWEEN(1,2)*2) -> Algodón | I12: =IF(ARG2_03!H12="","",IF(J12="f",IF(H12=ARG2_03!H12,"ü","û"),"")) ->  | L12: =PROPER(TEXT(DATE(YEAR(TODAY()),ROWS(L$7:L12),1),"mmmm")) -> Junio | M12: 449.83 | N12: 253.99 | O12: 434.82 | P12: 308.08 | R12: =PROPER(TEXT(DATE(YEAR(TODAY()),ROWS(R$7:R12),1),"mmmm")) -> Junio | S12: 547.45 | T12: 497.18 | U12: 844.93 | V12: 534.41
B13: ="" ->  | C13: Mes | D13: =INDEX($L$7:$L$18,RANDBETWEEN(1,6)*2) -> Diciembre | H13: =HLOOKUP(D12,INDIRECT(VLOOKUP(D11,$X$7:$Y$10,2,0)), MATCH(D13,$L$6:$L$18,0),0) -> 119.10 | I13: =IF(ARG2_03!H13="","",IF(J13="f",IF(H13=ARG2_03!H13,"ü","û"),"")) ->  | J13: f | L13: =PROPER(TEXT(DATE(YEAR(TODAY()),ROWS(L$7:L13),1),"mmmm")) -> Julio | M13: 252.02 | N13: 362.26 | O13: 393.20 | P13: 614.89 | R13: =PROPER(TEXT(DATE(YEAR(TODAY()),ROWS(R$7:R13),1),"mmmm")) -> Julio | S13: 646.73 | T13: 692.34 | U13: 633.43 | V13: 662.07
B14: ="" ->  | C14: ="" ->  | D14: =IF(_xlfn.ISFORMULA(ARG2_03!H13),_xlfn.FORMULATEXT(ARG2_03!H13),"") ->  | I14: =IF(ARG2_03!H14="","",IF(J14="f",IF(H14=ARG2_03!H14,"ü","û"),"")) ->  | L14: =PROPER(TEXT(DATE(YEAR(TODAY()),ROWS(L$7:L14),1),"mmmm")) -> Agosto | M14: 455.97 | N14: 686.40 | O14: 562.11 | P14: 240.96 | R14: =PROPER(TEXT(DATE(YEAR(TODAY()),ROWS(R$7:R14),1),"mmmm")) -> Agosto | S14: 845.02 | T14: 628.87 | U14: 674.83 | V14: 599.53
B15: ="" ->  | C15: ="" ->  | D15: ="" ->  | I15: =IF(ARG2_03!H15="","",IF(J15="f",IF(H15=ARG2_03!H15,"ü","û"),"")) ->  | L15: =PROPER(TEXT(DATE(YEAR(TODAY()),ROWS(L$7:L15),1),"mmmm")) -> Setiembre | M15: 511.57 | N15: 476.66 | O15: 578.21 | P15: 313.82 | R15: =PROPER(TEXT(DATE(YEAR(TODAY()),ROWS(R$7:R15),1),"mmmm")) -> Setiembre | S15: 321.38 | T15: 766.69 | U15: 854.96 | V15: 642.57
B16: ="" ->  | C16: ="" ->  | D16: Ejercicio → | I16: =IF(ARG2_03!H16="","",IF(J16="f",IF(H16=ARG2_03!H16,"ü","û"),"")) ->  | L16: =PROPER(TEXT(DATE(YEAR(TODAY()),ROWS(L$7:L16),1),"mmmm")) -> Octubre | M16: 450.13 | N16: 626.75 | O16: 531.29 | P16: 254.50 | R16: =PROPER(TEXT(DATE(YEAR(TODAY()),ROWS(R$7:R16),1),"mmmm")) -> Octubre | S16: 693.04 | T16: 524.89 | U16: 346.44 | V16: 594.51
B17: ="" ->  | C17: Zona | D17: =INDEX($X$7:$X$10,RANDBETWEEN(1,4)) -> Este | I17: =IF(ARG2_03!H17="","",IF(J17="f",IF(H17=ARG2_03!H17,"ü","û"),"")) ->  | L17: =PROPER(TEXT(DATE(YEAR(TODAY()),ROWS(L$7:L17),1),"mmmm")) -> Noviembre | M17: 565.31 | N17: 287.01 | O17: 650.10 | P17: 533.35 | R17: =PROPER(TEXT(DATE(YEAR(TODAY()),ROWS(R$7:R17),1),"mmmm")) -> Noviembre | S17: 623.33 | T17: 533.65 | U17: 521.46 | V17: 354.96
B18: ="" ->  | C18: Producto | D18: =INDEX($M$6:$P$6,RANDBETWEEN(1,2)*2-1) -> Fideos | I18: =IF(ARG2_03!H18="","",IF(J18="f",IF(H18=ARG2_03!H18,"ü","û"),"")) ->  | L18: =PROPER(TEXT(DATE(YEAR(TODAY()),ROWS(L$7:L18),1),"mmmm")) -> Diciembre | M18: 603.89 | N18: 441.86 | O18: 644.28 | P18: 431.22 | R18: =PROPER(TEXT(DATE(YEAR(TODAY()),ROWS(R$7:R18),1),"mmmm")) -> Diciembre | S18: 830.03 | T18: 686.02 | U18: 472.10 | V18: 333.18
B19: ="" ->  | C19: Mes | D19: =INDEX($L$7:$L$18,RANDBETWEEN(1,6)*2-1) -> Noviembre | H19: =VLOOKUP(D19,INDIRECT(VLOOKUP(D17,$X$7:$Y$10,2,0)), MATCH(D18,$L$6:$P$6,0),0) -> 325.10 | I19: =IF(ARG2_03!H19="","",IF(J19="f",IF(H19=ARG2_03!H19,"ü","û"),"")) ->  | J19: f
B20: ="" ->  | C20: ="" ->  | D20: =IF(_xlfn.ISFORMULA(ARG2_03!H19),_xlfn.FORMULATEXT(ARG2_03!H19),"") ->  | I20: =IF(ARG2_03!H20="","",IF(J20="f",IF(H20=ARG2_03!H20,"ü","û"),"")) ->  | L20: Este | M20: Fideos | N20: Harina | O20: Aceite | P20: Algodón | R20: Oeste | S20: Fideos | T20: Harina | U20: Aceite | V20: Algodón
L21: =PROPER(TEXT(DATE(YEAR(TODAY()),ROWS(L$21:L21),1),"mmmm")) -> Enero | M21: =ROUND(RANDBETWEEN(100,400)+RAND(),2) -> 374.48 | N21: 274.66 | O21: 141.61 | P21: 347.86 | R21: =PROPER(TEXT(DATE(YEAR(TODAY()),ROWS(R$21:R21),1),"mmmm")) -> Enero | S21: =ROUND(RANDBETWEEN(500,998)+RAND(),2) -> 589.52 | T21: 516.26 | U21: 537.10 | V21: 770.88
L22: =PROPER(TEXT(DATE(YEAR(TODAY()),ROWS(L$21:L22),1),"mmmm")) -> Febrero | M22: 125.21 | N22: 327.85 | O22: 178.12 | P22: 258.05 | R22: =PROPER(TEXT(DATE(YEAR(TODAY()),ROWS(R$21:R22),1),"mmmm")) -> Febrero | S22: 565.70 | T22: 525.63 | U22: 771.06 | V22: 513.75
L23: =PROPER(TEXT(DATE(YEAR(TODAY()),ROWS(L$21:L23),1),"mmmm")) -> Marzo | M23: 269.10 | N23: 360.33 | O23: 166.23 | P23: 114.67 | R23: =PROPER(TEXT(DATE(YEAR(TODAY()),ROWS(R$21:R23),1),"mmmm")) -> Marzo | S23: 869.62 | T23: 719.73 | U23: 889.31 | V23: 910.86
L24: =PROPER(TEXT(DATE(YEAR(TODAY()),ROWS(L$21:L24),1),"mmmm")) -> Abril | M24: 111.87 | N24: 350.77 | O24: 238.80 | P24: 219.11 | R24: =PROPER(TEXT(DATE(YEAR(TODAY()),ROWS(R$21:R24),1),"mmmm")) -> Abril | S24: 683.73 | T24: 571.03 | U24: 851.18 | V24: 801.84
L25: =PROPER(TEXT(DATE(YEAR(TODAY()),ROWS(L$21:L25),1),"mmmm")) -> Mayo | M25: 386.29 | N25: 278.24 | O25: 106.15 | P25: 312.23 | R25: =PROPER(TEXT(DATE(YEAR(TODAY()),ROWS(R$21:R25),1),"mmmm")) -> Mayo | S25: 755.92 | T25: 536.37 | U25: 756.07 | V25: 993.64
L26: =PROPER(TEXT(DATE(YEAR(TODAY()),ROWS(L$21:L26),1),"mmmm")) -> Junio | M26: 138.62 | N26: 278.71 | O26: 348.95 | P26: 134.99 | R26: =PROPER(TEXT(DATE(YEAR(TODAY()),ROWS(R$21:R26),1),"mmmm")) -> Junio | S26: 947.28 | T26: 674.00 | U26: 532.37 | V26: 633.66
L27: =PROPER(TEXT(DATE(YEAR(TODAY()),ROWS(L$21:L27),1),"mmmm")) -> Julio | M27: 265.87 | N27: 246.67 | O27: 387.67 | P27: 217.46 | R27: =PROPER(TEXT(DATE(YEAR(TODAY()),ROWS(R$21:R27),1),"mmmm")) -> Julio | S27: 687.63 | T27: 553.73 | U27: 764.03 | V27: 616.08
L28: =PROPER(TEXT(DATE(YEAR(TODAY()),ROWS(L$21:L28),1),"mmmm")) -> Agosto | M28: 391.88 | N28: 240.72 | O28: 157.53 | P28: 260.17 | R28: =PROPER(TEXT(DATE(YEAR(TODAY()),ROWS(R$21:R28),1),"mmmm")) -> Agosto | S28: 869.46 | T28: 740.48 | U28: 525.48 | V28: 614.24
L29: =PROPER(TEXT(DATE(YEAR(TODAY()),ROWS(L$21:L29),1),"mmmm")) -> Setiembre | M29: 124.83 | N29: 170.78 | O29: 231.00 | P29: 259.90 | R29: =PROPER(TEXT(DATE(YEAR(TODAY()),ROWS(R$21:R29),1),"mmmm")) -> Setiembre | S29: 929.98 | T29: 596.11 | U29: 896.75 | V29: 886.63
L30: =PROPER(TEXT(DATE(YEAR(TODAY()),ROWS(L$21:L30),1),"mmmm")) -> Octubre | M30: 377.79 | N30: 154.99 | O30: 156.91 | P30: 168.48 | R30: =PROPER(TEXT(DATE(YEAR(TODAY()),ROWS(R$21:R30),1),"mmmm")) -> Octubre | S30: 649.34 | T30: 625.22 | U30: 750.64 | V30: 952.44
L31: =PROPER(TEXT(DATE(YEAR(TODAY()),ROWS(L$21:L31),1),"mmmm")) -> Noviembre | M31: 325.10 | N31: 119.15 | O31: 178.35 | P31: 233.50 | R31: =PROPER(TEXT(DATE(YEAR(TODAY()),ROWS(R$21:R31),1),"mmmm")) -> Noviembre | S31: 968.66 | T31: 504.76 | U31: 922.23 | V31: 753.95
L32: =PROPER(TEXT(DATE(YEAR(TODAY()),ROWS(L$21:L32),1),"mmmm")) -> Diciembre | M32: 328.58 | N32: 241.89 | O32: 318.92 | P32: 119.10 | R32: =PROPER(TEXT(DATE(YEAR(TODAY()),ROWS(R$21:R32),1),"mmmm")) -> Diciembre | S32: 922.84 | T32: 762.06 | U32: 683.12 | V32: 647.95

Sheet ARG2_03 (hidden)
B1: Argumento matriz buscar en
B2: MOS Expert - CPC Martín Cruz - 998401784
B6: =lista02.11 ->  | D6: MATRIZ BUSCAR EN | I6: =lista02.12 -> 
B8: ► | D8: BUSCANDO EN MAS DE DOS MATRICES | K8: =lista02.07 -> Norte | L8: Fideos | M8: Harina | N8: Aceite | O8: Algodón | Q8: =lista02.08 -> Sur | R8: Fideos | S8: Harina | T8: Aceite | U8: Algodón
K9: Enero | L9: 519.71 | M9: 200.90 | N9: 206.91 | O9: 675.36 | Q9: Enero | R9: 388.15 | S9: 860.62 | T9: 461.61 | U9: 732.98
D10: Opción 1: BUSCARH | K10: Febrero | L10: 210.36 | M10: 210.05 | N10: 274.27 | O10: 569.36 | Q10: Febrero | R10: 744.16 | S10: 659.99 | T10: 872.65 | U10: 395.60
C11: Zona | D11: Este | K11: Marzo | L11: 297.29 | M11: 331.61 | N11: 586.12 | O11: 582.79 | Q11: Marzo | R11: 657.48 | S11: 870.79 | T11: 881.21 | U11: 518.25
C12: Producto | D12: Algodón | K12: Abril | L12: 592.36 | M12: 632.02 | N12: 249.01 | O12: 275.21 | Q12: Abril | R12: 537.99 | S12: 344.50 | T12: 648.45 | U12: 364.89
C13: Mes | D13: Diciembre | K13: Mayo | L13: 295.14 | M13: 487.86 | N13: 523.46 | O13: 266.05 | Q13: Mayo | R13: 405.04 | S13: 763.82 | T13: 830.19 | U13: 857.19
K14: Junio | L14: 449.83 | M14: 253.99 | N14: 434.82 | O14: 308.08 | Q14: Junio | R14: 547.45 | S14: 497.18 | T14: 844.93 | U14: 534.41
K15: Julio | L15: 252.02 | M15: 362.26 | N15: 393.20 | O15: 614.89 | Q15: Julio | R15: 646.73 | S15: 692.34 | T15: 633.43 | U15: 662.07
D16: Ejercicio → | K16: Agosto | L16: 455.97 | M16: 686.40 | N16: 562.11 | O16: 240.96 | Q16: Agosto | R16: 845.02 | S16: 628.87 | T16: 674.83 | U16: 599.53
C17: Zona | D17: Este | K17: Setiembre | L17: 511.57 | M17: 476.66 | N17: 578.21 | O17: 313.82 | Q17: Setiembre | R17: 321.38 | S17: 766.69 | T17: 854.96 | U17: 642.57
C18: Producto | D18: Fideos | K18: Octubre | L18: 450.13 | M18: 626.75 | N18: 531.29 | O18: 254.50 | Q18: Octubre | R18: 693.04 | S18: 524.89 | T18: 346.44 | U18: 594.51
C19: Mes | D19: Noviembre | K19: Noviembre | L19: 565.31 | M19: 287.01 | N19: 650.10 | O19: 533.35 | Q19: Noviembre | R19: 623.33 | S19: 533.65 | T19: 521.46 | U19: 354.96
K20: Diciembre | L20: 603.89 | M20: 441.86 | N20: 644.28 | O20: 431.22 | Q20: Diciembre | R20: 830.03 | S20: 686.02 | T20: 472.10 | U20: 333.18
K22: =lista02.09 -> Este | L22: Fideos | M22: Harina | N22: Aceite | O22: Algodón | Q22: =lista02.10 -> Oeste | R22: Fideos | S22: Harina | T22: Aceite | U22: Algodón
K23: Enero | L23: 374.48 | M23: 274.66 | N23: 141.61 | O23: 347.86 | Q23: Enero | R23: 589.52 | S23: 516.26 | T23: 537.10 | U23: 770.88
K24: Febrero | L24: 125.21 | M24: 327.85 | N24: 178.12 | O24: 258.05 | Q24: Febrero | R24: 565.70 | S24: 525.63 | T24: 771.06 | U24: 513.75
K25: Marzo | L25: 269.10 | M25: 360.33 | N25: 166.23 | O25: 114.67 | Q25: Marzo | R25: 869.62 | S25: 719.73 | T25: 889.31 | U25: 910.86
K26: Abril | L26: 111.87 | M26: 350.77 | N26: 238.80 | O26: 219.11 | Q26: Abril | R26: 683.73 | S26: 571.03 | T26: 851.18 | U26: 801.84
K27: Mayo | L27: 386.29 | M27: 278.24 | N27: 106.15 | O27: 312.23 | Q27: Mayo | R27: 755.92 | S27: 536.37 | T27: 756.07 | U27: 993.64
K28: Junio | L28: 138.62 | M28: 278.71 | N28: 348.95 | O28: 134.99 | Q28: Junio | R28: 947.28 | S28: 674.00 | T28: 532.37 | U28: 633.66
K29: Julio | L29: 265.87 | M29: 246.67 | N29: 387.67 | O29: 217.46 | Q29: Julio | R29: 687.63 | S29: 553.73 | T29: 764.03 | U29: 616.08
K30: Agosto | L30: 391.88 | M30: 240.72 | N30: 157.53 | O30: 260.17 | Q30: Agosto | R30: 869.46 | S30: 740.48 | T30: 525.48 | U30: 614.24
K31: Setiembre | L31: 124.83 | M31: 170.78 | N31: 231.00 | O31: 259.90 | Q31: Setiembre | R31: 929.98 | S31: 596.11 | T31: 896.75 | U31: 886.63
K32: Octubre | L32: 377.79 | M32: 154.99 | N32: 156.91 | O32: 168.48 | Q32: Octubre | R32: 649.34 | S32: 625.22 | T32: 750.64 | U32: 952.44
K33: Noviembre | L33: 325.10 | M33: 119.15 | N33: 178.35 | O33: 233.50 | Q33: Noviembre | R33: 968.66 | S33: 504.76 | T33: 922.23 | U33: 753.95
K34: Diciembre | L34: 328.58 | M34: 241.89 | N34: 318.92 | O34: 119.10 | Q34: Diciembre | R34: 922.84 | S34: 762.06 | T34: 683.12 | U34: 647.95

Sheet DO_A2_04 (hidden)
B6: ="" ->  | C6: ="" ->  | D6: MATRIZ BUSCAR EN | I6: =IF(ARG2_04!H6="","",IF(J6="f",IF(H6=ARG2_04!H6,"ü","û"),"")) ->  | L6: Zona Norte | M6: Fideos | N6: Harina | O6: Aceite | P6: Algodón | R6: Zona Sur | S6: Fideos | T6: Harina | U6: Aceite | V6: Algodón
B7: ="" ->  | C7: ="" ->  | D7: ="" ->  | I7: =IF(ARG2_04!H7="","",IF(J7="f",IF(H7=ARG2_04!H7,"ü","û"),"")) ->  | L7: =PROPER(TEXT(DATE(YEAR(TODAY()),ROWS(L$7:L7),1),"mmmm")) -> Enero | M7: =ROUND(RANDBETWEEN(200,700)+RAND(),2) -> 215.03 | N7: 280.34 | O7: 313.28 | P7: 246.64 | R7: =PROPER(TEXT(DATE(YEAR(TODAY()),ROWS(R$7:R7),1),"mmmm")) -> Enero | S7: =ROUND(RANDBETWEEN(300,900)+RAND(),2) -> 888.90 | T7: 534.33 | U7: 591.25 | V7: 323.72 | X7: Norte | Y7: lista02.14
B8: ► | C8: ="" ->  | D8: BUSCANDO EN MAS DE DOS MATRICES - CORRECCION MANUALES | I8: =IF(ARG2_04!H8="","",IF(J8="f",IF(H8=ARG2_04!H8,"ü","û"),"")) ->  | L8: =PROPER(TEXT(DATE(YEAR(TODAY()),ROWS(L$7:L8),1),"mmmm")) -> Febrero | M8: 526.12 | N8: 637.49 | O8: 444.43 | P8: 313.47 | R8: =PROPER(TEXT(DATE(YEAR(TODAY()),ROWS(R$7:R8),1),"mmmm")) -> Febrero | S8: 761.67 | T8: 738.66 | U8: 863.83 | V8: 621.58 | X8: Sur | Y8: lista02.15
B9: ="" ->  | C9: ="" ->  | D9: ="" ->  | I9: =IF(ARG2_04!H9="","",IF(J9="f",IF(H9=ARG2_04!H9,"ü","û"),"")) ->  | L9: =PROPER(TEXT(DATE(YEAR(TODAY()),ROWS(L$7:L9),1),"mmmm")) -> Marzo | M9: 515.25 | N9: 605.65 | O9: 307.88 | P9: 407.44 | R9: =PROPER(TEXT(DATE(YEAR(TODAY()),ROWS(R$7:R9),1),"mmmm")) -> Marzo | S9: 382.85 | T9: 838.66 | U9: 536.38 | V9: 764.61 | X9: Este | Y9: lista02.16
B10: ="" ->  | C10: ="" ->  | D10: Opción 1: BUSCARH | I10: =IF(ARG2_04!H10="","",IF(J10="f",IF(H10=ARG2_04!H10,"ü","û"),"")) ->  | L10: =PROPER(TEXT(DATE(YEAR(TODAY()),ROWS(L$7:L10),1),"mmmm")) -> Abril | M10: 430.23 | N10: 538.91 | O10: 329.91 | P10: 261.71 | R10: =PROPER(TEXT(DATE(YEAR(TODAY()),ROWS(R$7:R10),1),"mmmm")) -> Abril | S10: 852.41 | T10: 612.02 | U10: 790.53 | V10: 316.80 | X10: Oeste | Y10: lista02.17
B11: ="" ->  | C11: Zona | D11: =INDEX($X$7:$X$10,RANDBETWEEN(1,2)*2) -> Sur | I11: =IF(ARG2_04!H11="","",IF(J11="f",IF(H11=ARG2_04!H11,"ü","û"),"")) ->  | L11: =PROPER(TEXT(DATE(YEAR(TODAY()),ROWS(L$7:L11),1),"mmmm")) -> Mayo | M11: 658.55 | N11: 422.87 | O11: 680.23 | P11: 251.88 | R11: =PROPER(TEXT(DATE(YEAR(TODAY()),ROWS(R$7:R11),1),"mmmm")) -> Mayo | S11: 889.03 | T11: 493.29 | U11: 625.41 | V11: 515.61
B12: ="" ->  | C12: Producto | D12: =INDEX($M$6:$P$6,RANDBETWEEN(1,2)*2) -> Algodón | I12: =IF(ARG2_04!H12="","",IF(J12="f",IF(H12=ARG2_04!H12,"ü","û"),"")) ->  | L12: =PROPER(TEXT(DATE(YEAR(TODAY()),ROWS(L$7:L12),1),"mmmm")) -> Junio | M12: 280.55 | N12: 472.07 | O12: 479.95 | P12: 291.10 | R12: =PROPER(TEXT(DATE(YEAR(TODAY()),ROWS(R$7:R12),1),"mmmm")) -> Junio | S12: 361.01 | T12: 431.03 | U12: 382.64 | V12: 763.44
B13: ="" ->  | C13: Mes | D13: =INDEX($L$7:$L$18,RANDBETWEEN(1,6)*2) -> Octubre | H13: =HLOOKUP(D12,INDIRECT(VLOOKUP(D11,$X$7:$Y$10,2,0)), MATCH(D13,$L$6:$L$18,0),0) -> 334.05 | I13: =IF(ARG2_04!H13="","",IF(J13="f",IF(H13=ARG2_04!H13,"ü","û"),"")) ->  | J13: f | L13: =PROPER(TEXT(DATE(YEAR(TODAY()),ROWS(L$7:L13),1),"mmmm")) -> Julio | M13: 515.06 | N13: 290.01 | O13: 669.68 | P13: 346.51 | R13: =PROPER(TEXT(DATE(YEAR(TODAY()),ROWS(R$7:R13),1),"mmmm")) -> Julio | S13: 425.18 | T13: 337.92 | U13: 780.44 | V13: 869.64
B14: ="" ->  | C14: ="" ->  | D14: =IF(_xlfn.ISFORMULA(ARG2_04!H13),MID(_xlfn.FORMULATEXT(ARG2_04!H13),1,36),"") ->  | I14: =IF(ARG2_04!H14="","",IF(J14="f",IF(H14=ARG2_04!H14,"ü","û"),"")) ->  | L14: =PROPER(TEXT(DATE(YEAR(TODAY()),ROWS(L$7:L14),1),"mmmm")) -> Agosto | M14: 294.39 | N14: 447.83 | O14: 463.72 | P14: 444.94 | R14: =PROPER(TEXT(DATE(YEAR(TODAY()),ROWS(R$7:R14),1),"mmmm")) -> Agosto | S14: 737.81 | T14: 470.12 | U14: 353.78 | V14: 442.81
B15: ="" ->  | C15: ="" ->  | D15: =IF(_xlfn.ISFORMULA(ARG2_04!H13),MID(_xlfn.FORMULATEXT(ARG2_04!H13),37,60),"") ->  | I15: =IF(ARG2_04!H15="","",IF(J15="f",IF(H15=ARG2_04!H15,"ü","û"),"")) ->  | L15: =PROPER(TEXT(DATE(YEAR(TODAY()),ROWS(L$7:L15),1),"mmmm")) -> Setiembre | M15: 230.15 | N15: 245.92 | O15: 365.60 | P15: 582.22 | R15: =PROPER(TEXT(DATE(YEAR(TODAY()),ROWS(R$7:R15),1),"mmmm")) -> Setiembre | S15: 758.51 | T15: 565.05 | U15: 670.99 | V15: 698.15
B16: ="" ->  | C16: ="" ->  | D16: ="" ->  | I16: =IF(ARG2_04!H16="","",IF(J16="f",IF(H16=ARG2_04!H16,"ü","û"),"")) ->  | L16: =PROPER(TEXT(DATE(YEAR(TODAY()),ROWS(L$7:L16),1),"mmmm")) -> Octubre | M16: 589.42 | N16: 241.16 | O16: 335.47 | P16: 554.44 | R16: =PROPER(TEXT(DATE(YEAR(TODAY()),ROWS(R$7:R16),1),"mmmm")) -> Octubre | S16: 436.24 | T16: 534.36 | U16: 654.81 | V16: 334.05
B17: ="" ->  | C17: ="" ->  | D17: Ejercicio → | I17: =IF(ARG2_04!H17="","",IF(J17="f",IF(H17=ARG2_04!H17,"ü","û"),"")) ->  | L17: =PROPER(TEXT(DATE(YEAR(TODAY()),ROWS(L$7:L17),1),"mmmm")) -> Noviembre | M17: 399.21 | N17: 404.54 | O17: 445.36 | P17: 670.87 | R17: =PROPER(TEXT(DATE(YEAR(TODAY()),ROWS(R$7:R17),1),"mmmm")) -> Noviembre | S17: 546.74 | T17: 562.52 | U17: 365.05 | V17: 630.18
B18: ="" ->  | C18: Zona | D18: =INDEX($X$7:$X$10,RANDBETWEEN(1,2)*2-1) -> Este | I18: =IF(ARG2_04!H18="","",IF(J18="f",IF(H18=ARG2_04!H18,"ü","û"),"")) ->  | L18: =PROPER(TEXT(DATE(YEAR(TODAY()),ROWS(L$7:L18),1),"mmmm")) -> Diciembre | M18: 544.06 | N18: 244.06 | O18: 221.08 | P18: 473.89 | R18: =PROPER(TEXT(DATE(YEAR(TODAY()),ROWS(R$7:R18),1),"mmmm")) -> Diciembre | S18: 653.15 | T18: 773.57 | U18: 305.70 | V18: 715.82
B19: ="" ->  | C19: Producto | D19: =INDEX($M$6:$P$6,RANDBETWEEN(1,2)*2-1) -> Aceite | I19: =IF(ARG2_04!H19="","",IF(J19="f",IF(H19=ARG2_04!H19,"ü","û"),"")) -> 
B20: ="" ->  | C20: Mes | D20: =INDEX($L$7:$L$18,RANDBETWEEN(1,6)*2-1) -> Enero | H20: =VLOOKUP(D20,INDIRECT(VLOOKUP(D18,$X$7:$Y$10,2,0)), MATCH(D19,$L$6:$P$6,0),0) -> 378.20 | I20: =IF(ARG2_04!H20="","",IF(J20="f",IF(H20=ARG2_04!H20,"ü","û"),"")) ->  | J20: f | L20: Zona Este | M20: Fideos | N20: Harina | O20: Aceite | P20: Algodón | R20: Zona Oeste | S20: Fideos | T20: Harina | U20: Aceite | V20: Algodón
B21: ="" ->  | C21: ="" ->  | D21: =IF(_xlfn.ISFORMULA(ARG2_04!H20),MID(_xlfn.FORMULATEXT(ARG2_04!H20),1,36),"") ->  | I21: =IF(ARG2_04!H21="","",IF(J21="f",IF(H21=ARG2_04!H21,"ü","û"),"")) ->  | L21: =PROPER(TEXT(DATE(YEAR(TODAY()),ROWS(L$21:L21),1),"mmmm")) -> Enero | M21: =ROUND(RANDBETWEEN(100,400)+RAND(),2) -> 255.49 | N21: 104.26 | O21: 378.20 | P21: 159.06 | R21: =PROPER(TEXT(DATE(YEAR(TODAY()),ROWS(R$21:R21),1),"mmmm")) -> Enero | S21: =ROUND(RANDBETWEEN(500,998)+RAND(),2) -> 882.77 | T21: 548.92 | U21: 581.70 | V21: 947.39
B22: ="" ->  | C22: ="" ->  | D22: =IF(_xlfn.ISFORMULA(ARG2_04!H20),MID(_xlfn.FORMULATEXT(ARG2_04!H20),37,60),"") ->  | I22: =IF(ARG2_04!H22="","",IF(J22="f",IF(H22=ARG2_04!H22,"ü","û"),"")) ->  | L22: =PROPER(TEXT(DATE(YEAR(TODAY()),ROWS(L$21:L22),1),"mmmm")) -> Febrero | M22: 260.27 | N22: 258.59 | O22: 338.75 | P22: 385.31 | R22: =PROPER(TEXT(DATE(YEAR(TODAY()),ROWS(R$21:R22),1),"mmmm")) -> Febrero | S22: 828.03 | T22: 900.40 | U22: 971.87 | V22: 718.16
B23: ="" ->  | C23: ="" ->  | D23: ="" ->  | I23: =IF(ARG2_04!H23="","",IF(J23="f",IF(H23=ARG2_04!H23,"ü","û"),"")) ->  | L23: =PROPER(TEXT(DATE(YEAR(TODAY()),ROWS(L$21:L23),1),"mmmm")) -> Marzo | M23: 139.20 | N23: 297.41 | O23: 394.10 | P23: 398.20 | R23: =PROPER(TEXT(DATE(YEAR(TODAY()),ROWS(R$21:R23),1),"mmmm")) -> Marzo | S23: 599.99 | T23: 698.05 | U23: 995.96 | V23: 518.04
B24: ► | C24: ="" ->  | D24: BUSCANDO EN MAS DE DOS MATRICES - CORRECCION FORMULADA | I24: =IF(ARG2_04!H24="","",IF(J24="f",IF(H24=ARG2_04!H24,"ü","û"),"")) ->  | L24: =PROPER(TEXT(DATE(YEAR(TODAY()),ROWS(L$21:L24),1),"mmmm")) -> Abril | M24: 343.31 | N24: 347.05 | O24: 346.80 | P24: 301.70 | R24: =PROPER(TEXT(DATE(YEAR(TODAY()),ROWS(R$21:R24),1),"mmmm")) -> Abril | S24: 711.89 | T24: 669.74 | U24: 543.41 | V24: 717.81
B25: ="" ->  | C25: ="" ->  | D25: ="" ->  | I25: =IF(ARG2_04!H25="","",IF(J25="f",IF(H25=ARG2_04!H25,"ü","û"),"")) ->  | L25: =PROPER(TEXT(DATE(YEAR(TODAY()),ROWS(L$21:L25),1),"mmmm")) -> Mayo | M25: 286.16 | N25: 127.88 | O25: 289.03 | P25: 213.21 | R25: =PROPER(TEXT(DATE(YEAR(TODAY()),ROWS(R$21:R25),1),"mmmm")) -> Mayo | S25: 803.75 | T25: 607.49 | U25: 588.66 | V25: 900.85
B26: ="" ->  | C26: ="" ->  | D26: Opción 1: BUSCARH | I26: =IF(ARG2_04!H26="","",IF(J26="f",IF(H26=ARG2_04!H26,"ü","û"),"")) ->  | L26: =PROPER(TEXT(DATE(YEAR(TODAY()),ROWS(L$21:L26),1),"mmmm")) -> Junio | M26: 178.05 | N26: 290.29 | O26: 300.79 | P26: 201.39 | R26: =PROPER(TEXT(DATE(YEAR(TODAY()),ROWS(R$21:R26),1),"mmmm")) -> Junio | S26: 993.10 | T26: 547.75 | U26: 690.49 | V26: 941.30
B27: ="" ->  | C27: Zona | D27: ="Zona "&INDEX($X$7:$X$10,RANDBETWEEN(1,2)*2) -> Zona Sur | I27: =IF(ARG2_04!H27="","",IF(J27="f",IF(H27=ARG2_04!H27,"ü","û"),"")) ->  | L27: =PROPER(TEXT(DATE(YEAR(TODAY()),ROWS(L$21:L27),1),"mmmm")) -> Julio | M27: 219.25 | N27: 138.70 | O27: 157.42 | P27: 206.84 | R27: =PROPER(TEXT(DATE(YEAR(TODAY()),ROWS(R$21:R27),1),"mmmm")) -> Julio | S27: 779.28 | T27: 954.61 | U27: 601.98 | V27: 678.70
B28: ="" ->  | C28: Producto | D28: =INDEX($M$6:$P$6,RANDBETWEEN(1,2)*2) -> Harina | I28: =IF(ARG2_04!H28="","",IF(J28="f",IF(H28=ARG2_04!H28,"ü","û"),"")) ->  | L28: =PROPER(TEXT(DATE(YEAR(TODAY()),ROWS(L$21:L28),1),"mmmm")) -> Agosto | M28: 165.68 | N28: 132.45 | O28: 212.86 | P28: 378.47 | R28: =PROPER(TEXT(DATE(YEAR(TODAY()),ROWS(R$21:R28),1),"mmmm")) -> Agosto | S28: 982.43 | T28: 682.06 | U28: 512.31 | V28: 765.71
B29: ="" ->  | C29: Mes | D29: =INDEX($L$7:$L$18,RANDBETWEEN(1,6)*2) -> Abril | H29: =HLOOKUP(D28,INDIRECT(VLOOKUP(MID(D27,6,10),$X$7:$Y$10,2,0)), MATCH(D29,$L$6:$L$18,0),0) -> 612.02 | I29: =IF(ARG2_04!H29="","",IF(J29="f",IF(H29=ARG2_04!H29,"ü","û"),"")) ->  | J29: f | L29: =PROPER(TEXT(DATE(YEAR(TODAY()),ROWS(L$21:L29),1),"mmmm")) -> Setiembre | M29: 396.34 | N29: 297.83 | O29: 183.66 | P29: 296.41 | R29: =PROPER(TEXT(DATE(YEAR(TODAY()),ROWS(R$21:R29),1),"mmmm")) -> Setiembre | S29: 909.62 | T29: 827.64 | U29: 811.44 | V29: 513.54
B30: ="" ->  | C30: ="" ->  | D30: =IF(_xlfn.ISFORMULA(ARG2_04!H29),MID(_xlfn.FORMULATEXT(ARG2_04!H29),1,48),"") ->  | I30: =IF(ARG2_04!H30="","",IF(J30="f",IF(H30=ARG2_04!H30,"ü","û"),"")) ->  | L30: =PROPER(TEXT(DATE(YEAR(TODAY()),ROWS(L$21:L30),1),"mmmm")) -> Octubre | M30: 370.03 | N30: 387.44 | O30: 385.66 | P30: 370.22 | R30: =PROPER(TEXT(DATE(YEAR(TODAY()),ROWS(R$21:R30),1),"mmmm")) -> Octubre | S30: 601.02 | T30: 873.28 | U30: 639.76 | V30: 561.53
B31: ="" ->  | C31: ="" ->  | D31: =IF(_xlfn.ISFORMULA(ARG2_04!H29),MID(_xlfn.FORMULATEXT(ARG2_04!H29),48+1,60),"") ->  | I31: =IF(ARG2_04!H31="","",IF(J31="f",IF(H31=ARG2_04!H31,"ü","û"),"")) ->  | L31: =PROPER(TEXT(DATE(YEAR(TODAY()),ROWS(L$21:L31),1),"mmmm")) -> Noviembre | M31: 159.75 | N31: 172.82 | O31: 320.43 | P31: 250.82 | R31: =PROPER(TEXT(DATE(YEAR(TODAY()),ROWS(R$21:R31),1),"mmmm")) -> Noviembre | S31: 588.36 | T31: 655.77 | U31: 700.69 | V31: 969.99
B32: ="" ->  | C32: ="" ->  | D32: ="" ->  | I32: =IF(ARG2_04!H32="","",IF(J32="f",IF(H32=ARG2_04!H32,"ü","û"),"")) ->  | L32: =PROPER(TEXT(DATE(YEAR(TODAY()),ROWS(L$21:L32),1),"mmmm")) -> Diciembre | M32: 328.57 | N32: 176.63 | O32: 365.48 | P32: 373.25 | R32: =PROPER(TEXT(DATE(YEAR(TODAY()),ROWS(R$21:R32),1),"mmmm")) -> Diciembre | S32: 904.75 | T32: 599.15 | U32: 640.71 | V32: 910.63
B33: ="" ->  | C33: ="" ->  | D33: Ejercicio → | I33: =IF(ARG2_04!H33="","",IF(J33="f",IF(H33=ARG2_04!H33,"ü","û"),"")) -> 
B34: ="" ->  | C34: Zona | D34: ="Zona "&INDEX($X$7:$X$10,RANDBETWEEN(1,2)*2-1) -> Zona Este | I34: =IF(ARG2_04!H34="","",IF(J34="f",IF(H34=ARG2_04!H34,"ü","û"),"")) -> 
B35: ="" ->  | C35: Producto | D35: =INDEX($M$6:$P$6,RANDBETWEEN(1,2)*2-1) -> Fideos | I35: =IF(ARG2_04!H35="","",IF(J35="f",IF(H35=ARG2_04!H35,"ü","û"),"")) -> 
B36: ="" ->  | C36: Mes | D36: =INDEX($L$7:$L$18,RANDBETWEEN(1,6)*2-1) -> Setiembre | H36: =VLOOKUP(D36,INDIRECT(VLOOKUP(MID(D34,6,10),$X$7:$Y$10,2,0)), MATCH(D35,$L$6:$P$6,0),0) -> 396.34 | I36: =IF(ARG2_04!H36="","",IF(J36="f",IF(H36=ARG2_04!H36,"ü","û"),"")) ->  | J36: f
B37: ="" ->  | C37: ="" ->  | D37: =IF(_xlfn.ISFORMULA(ARG2_04!H36),MID(_xlfn.FORMULATEXT(ARG2_04!H36),1,48),"") ->  | I37: =IF(ARG2_04!H37="","",IF(J37="f",IF(H37=ARG2_04!H37,"ü","û"),"")) -> 
B38: ="" ->  | C38: ="" ->  | D38: =IF(_xlfn.ISFORMULA(ARG2_04!H36),MID(_xlfn.FORMULATEXT(ARG2_04!H36),49,60),"") ->  | I38: =IF(ARG2_04!H38="","",IF(J38="f",IF(H38=ARG2_04!H38,"ü","û"),"")) -> 

Sheet ARG2_04 (hidden)
B1: Argumento matriz buscar en
B2: MOS Expert - CPC Martín Cruz - 998401784
B6: =lista02.13 ->  | D6: MATRIZ BUSCAR EN | I6: =lista02.18 -> 
B8: ► | D8: BUSCANDO EN MAS DE DOS MATRICES - CORRECCION MANUALES | K8: =lista02.14 -> Zona Norte | L8: Fideos | M8: Harina | N8: Aceite | O8: Algodón | Q8: =lista02.15 -> Zona Sur | R8: Fideos | S8: Harina | T8: Aceite | U8: Algodón
K9: Enero | L9: 215.03 | M9: 280.34 | N9: 313.28 | O9: 246.64 | Q9: Enero | R9: 888.90 | S9: 534.33 | T9: 591.25 | U9: 323.72
D10: Opción 1: BUSCARH | K10: Febrero | L10: 526.12 | M10: 637.49 | N10: 444.43 | O10: 313.47 | Q10: Febrero | R10: 761.67 | S10: 738.66 | T10: 863.83 | U10: 621.58
C11: Zona | D11: Sur | K11: Marzo | L11: 515.25 | M11: 605.65 | N11: 307.88 | O11: 407.44 | Q11: Marzo | R11: 382.85 | S11: 838.66 | T11: 536.38 | U11: 764.61
C12: Producto | D12: Algodón | K12: Abril | L12: 430.23 | M12: 538.91 | N12: 329.91 | O12: 261.71 | Q12: Abril | R12: 852.41 | S12: 612.02 | T12: 790.53 | U12: 316.80
C13: Mes | D13: Octubre | K13: Mayo | L13: 658.55 | M13: 422.87 | N13: 680.23 | O13: 251.88 | Q13: Mayo | R13: 889.03 | S13: 493.29 | T13: 625.41 | U13: 515.61
K14: Junio | L14: 280.55 | M14: 472.07 | N14: 479.95 | O14: 291.10 | Q14: Junio | R14: 361.01 | S14: 431.03 | T14: 382.64 | U14: 763.44
K15: Julio | L15: 515.06 | M15: 290.01 | N15: 669.68 | O15: 346.51 | Q15: Julio | R15: 425.18 | S15: 337.92 | T15: 780.44 | U15: 869.64
K16: Agosto | L16: 294.39 | M16: 447.83 | N16: 463.72 | O16: 444.94 | Q16: Agosto | R16: 737.81 | S16: 470.12 | T16: 353.78 | U16: 442.81
D17: Ejercicio → | K17: Setiembre | L17: 230.15 | M17: 245.92 | N17: 365.60 | O17: 582.22 | Q17: Setiembre | R17: 758.51 | S17: 565.05 | T17: 670.99 | U17: 698.15
C18: Zona | D18: Este | K18: Octubre | L18: 589.42 | M18: 241.16 | N18: 335.47 | O18: 554.44 | Q18: Octubre | R18: 436.24 | S18: 534.36 | T18: 654.81 | U18: 334.05
C19: Producto | D19: Aceite | K19: Noviembre | L19: 399.21 | M19: 404.54 | N19: 445.36 | O19: 670.87 | Q19: Noviembre | R19: 546.74 | S19: 562.52 | T19: 365.05 | U19: 630.18
C20: Mes | D20: Enero | K20: Diciembre | L20: 544.06 | M20: 244.06 | N20: 221.08 | O20: 473.89 | Q20: Diciembre | R20: 653.15 | S20: 773.57 | T20: 305.70 | U20: 715.82
K22: =lista02.16 -> Zona Este | L22: Fideos | M22: Harina | N22: Aceite | O22: Algodón | Q22: =lista02.17 -> Zona Oeste | R22: Fideos | S22: Harina | T22: Aceite | U22: Algodón
K23: Enero | L23: 255.49 | M23: 104.26 | N23: 378.20 | O23: 159.06 | Q23: Enero | R23: 882.77 | S23: 548.92 | T23: 581.70 | U23: 947.39
B24: ► | D24: BUSCANDO EN MAS DE DOS MATRICES - CORRECCION FORMULADA | K24: Febrero | L24: 260.27 | M24: 258.59 | N24: 338.75 | O24: 385.31 | Q24: Febrero | R24: 828.03 | S24: 900.40 | T24: 971.87 | U24: 718.16
K25: Marzo | L25: 139.20 | M25: 297.41 | N25: 394.10 | O25: 398.20 | Q25: Marzo | R25: 599.99 | S25: 698.05 | T25: 995.96 | U25: 518.04
D26: Opción 1: BUSCARH | K26: Abril | L26: 343.31 | M26: 347.05 | N26: 346.80 | O26: 301.70 | Q26: Abril | R26: 711.89 | S26: 669.74 | T26: 543.41 | U26: 717.81
C27: Zona | D27: Zona Sur | K27: Mayo | L27: 286.16 | M27: 127.88 | N27: 289.03 | O27: 213.21 | Q27: Mayo | R27: 803.75 | S27: 607.49 | T27: 588.66 | U27: 900.85
C28: Producto | D28: Harina | K28: Junio | L28: 178.05 | M28: 290.29 | N28: 300.79 | O28: 201.39 | Q28: Junio | R28: 993.10 | S28: 547.75 | T28: 690.49 | U28: 941.30
C29: Mes | D29: Abril | K29: Julio | L29: 219.25 | M29: 138.70 | N29: 157.42 | O29: 206.84 | Q29: Julio | R29: 779.28 | S29: 954.61 | T29: 601.98 | U29: 678.70
K30: Agosto | L30: 165.68 | M30: 132.45 | N30: 212.86 | O30: 378.47 | Q30: Agosto | R30: 982.43 | S30: 682.06 | T30: 512.31 | U30: 765.71
K31: Setiembre | L31: 396.34 | M31: 297.83 | N31: 183.66 | O31: 296.41 | Q31: Setiembre | R31: 909.62 | S31: 827.64 | T31: 811.44 | U31: 513.54
K32: Octubre | L32: 370.03 | M32: 387.44 | N32: 385.66 | O32: 370.22 | Q32: Octubre | R32: 601.02 | S32: 873.28 | T32: 639.76 | U32: 561.53
D33: Ejercicio → | K33: Noviembre | L33: 159.75 | M33: 172.82 | N33: 320.43 | O33: 250.82 | Q33: Noviembre | R33: 588.36 | S33: 655.77 | T33: 700.69 | U33: 969.99
C34: Zona | D34: Zona Este | K34: Diciembre | L34: 328.57 | M34: 176.63 | N34: 365.48 | O34: 373.25 | Q34: Diciembre | R34: 904.75 | S34: 599.15 | T34: 640.71 | U34: 910.63
C35: Producto | D35: Fideos
C36: Mes | D36: Setiembre

Sheet DO_A2_05 (hidden)
B6: ="" ->  | C6: MATRIZ BUSCAR EN | H6: =IF(ARG2_05!G6="","",IF(I6="f",IF(G6=ARG2_05!G6,"ü","û"),"")) ->  | K6: Meses | L6: Norte | M6: Sur | N6: Este | O6: Oeste
B7: ="" ->  | C7: ="" ->  | H7: =IF(ARG2_05!G7="","",IF(I7="f",IF(G7=ARG2_05!G7,"ü","û"),"")) ->  | K7: =PROPER(TEXT(DATE(YEAR(TODAY()),ROWS(K$7:K7),1),"mmmm")) -> Enero | L7: =ROUND(RANDBETWEEN(100,600)+RAND(),2) -> 371.69 | M7: 177.72 | N7: 375.11 | O7: 216.42
B8: ► | C8: MATRIZ EN REVERSA | H8: =IF(ARG2_05!G8="","",IF(I8="f",IF(G8=ARG2_05!G8,"ü","û"),"")) ->  | K8: =PROPER(TEXT(DATE(YEAR(TODAY()),ROWS(K$7:K8),1),"mmmm")) -> Febrero | L8: 318.81 | M8: 547.32 | N8: 314.36 | O8: 453.44
B9: ="" ->  | C9: ="" ->  | H9: =IF(ARG2_05!G9="","",IF(I9="f",IF(G9=ARG2_05!G9,"ü","û"),"")) ->  | K9: =PROPER(TEXT(DATE(YEAR(TODAY()),ROWS(K$7:K9),1),"mmmm")) -> Marzo | L9: 257.77 | M9: 384.04 | N9: 401.72 | O9: 592.05
B10: ="" ->  | C10: Opción 1: BUSCARV…columna 5 | H10: =IF(ARG2_05!G10="","",IF(I10="f",IF(G10=ARG2_05!G10,"ü","û"),"")) ->  | K10: =PROPER(TEXT(DATE(YEAR(TODAY()),ROWS(K$7:K10),1),"mmmm")) -> Abril | L10: 222.52 | M10: 516.71 | N10: 512.79 | O10: 200.02
B11: ="" ->  | C11: =INDEX($K$7:$K$18,RANDBETWEEN(1,12)) -> Diciembre | G11: =VLOOKUP(C11,$K$6:$O$18,5,0) -> 119.94 | H11: =IF(ARG2_05!G11="","",IF(I11="f",IF(G11=ARG2_05!G11,"ü","û"),"")) ->  | I11: f | K11: =PROPER(TEXT(DATE(YEAR(TODAY()),ROWS(K$7:K11),1),"mmmm")) -> Mayo | L11: 457.81 | M11: 261.41 | N11: 395.94 | O11: 239.40
B12: ="" ->  | C12: =IF(_xlfn.ISFORMULA(ARG2_05!G11),_xlfn.FORMULATEXT(ARG2_05!G11),"") ->  | H12: =IF(ARG2_05!G12="","",IF(I12="f",IF(G12=ARG2_05!G12,"ü","û"),"")) ->  | K12: =PROPER(TEXT(DATE(YEAR(TODAY()),ROWS(K$7:K12),1),"mmmm")) -> Junio | L12: 132.07 | M12: 543.16 | N12: 247.94 | O12: 552.14
B13: ="" ->  | C13: ="" ->  | H13: =IF(ARG2_05!G13="","",IF(I13="f",IF(G13=ARG2_05!G13,"ü","û"),"")) ->  | K13: =PROPER(TEXT(DATE(YEAR(TODAY()),ROWS(K$7:K13),1),"mmmm")) -> Julio | L13: 190.47 | M13: 226.20 | N13: 227.73 | O13: 560.41
B14: ="" ->  | C14: Reversa → | G14: =VLOOKUP(G11, CHOOSE({2,1},$K$6:$K$18,$O$6:$O$18),2,0) -> Diciembre | H14: =IF(ARG2_05!G14="","",IF(I14="f",IF(G14=ARG2_05!G14,"ü","û"),"")) ->  | I14: f | K14: =PROPER(TEXT(DATE(YEAR(TODAY()),ROWS(K$7:K14),1),"mmmm")) -> Agosto | L14: 337.33 | M14: 585.77 | N14: 561.81 | O14: 193.64
B15: ="" ->  | C15: =IF(_xlfn.ISFORMULA(ARG2_05!G14),_xlfn.FORMULATEXT(ARG2_05!G14),"") ->  | H15: =IF(ARG2_05!G15="","",IF(I15="f",IF(G15=ARG2_05!G15,"ü","û"),"")) ->  | K15: =PROPER(TEXT(DATE(YEAR(TODAY()),ROWS(K$7:K15),1),"mmmm")) -> Setiembre | L15: 179.28 | M15: 461.89 | N15: 273.32 | O15: 117.60
B16: ="" ->  | C16: ="" ->  | H16: =IF(ARG2_05!G16="","",IF(I16="f",IF(G16=ARG2_05!G16,"ü","û"),"")) ->  | K16: =PROPER(TEXT(DATE(YEAR(TODAY()),ROWS(K$7:K16),1),"mmmm")) -> Octubre | L16: 244.68 | M16: 218.39 | N16: 139.63 | O16: 257.77
B17: ="" ->  | C17: Ejercicio → … fila 7 | H17: =IF(ARG2_05!G17="","",IF(I17="f",IF(G17=ARG2_05!G17,"ü","û"),"")) ->  | K17: =PROPER(TEXT(DATE(YEAR(TODAY()),ROWS(K$7:K17),1),"mmmm")) -> Noviembre | L17: 110.81 | M17: 560.04 | N17: 565.28 | O17: 516.70
B18: ="" ->  | C18: =INDEX($L$6:$O$6,RANDBETWEEN(1,4)) -> Oeste | G18: =HLOOKUP(C18,$K$6:$O$18,7,0) -> 552.14 | H18: =IF(ARG2_05!G18="","",IF(I18="f",IF(G18=ARG2_05!G18,"ü","û"),"")) ->  | I18: f | K18: =PROPER(TEXT(DATE(YEAR(TODAY()),ROWS(K$7:K18),1),"mmmm")) -> Diciembre | L18: 313.71 | M18: 155.79 | N18: 180.75 | O18: 119.94
B19: ="" ->  | C19: =IF(_xlfn.ISFORMULA(ARG2_05!G18),_xlfn.FORMULATEXT(ARG2_05!G18),"") ->  | H19: =IF(ARG2_05!G19="","",IF(I19="f",IF(G19=ARG2_05!G19,"ü","û"),"")) -> 
B20: ="" ->  | C20: ="" ->  | H20: =IF(ARG2_05!G20="","",IF(I20="f",IF(G20=ARG2_05!G20,"ü","û"),"")) -> 
B21: ="" ->  | C21: Reversa → | G21: =HLOOKUP(G18, CHOOSE({2;1},$K$6:$O$6,$K$12:$O$12),2,0) -> Oeste | H21: =IF(ARG2_05!G21="","",IF(I21="f",IF(G21=ARG2_05!G21,"ü","û"),"")) ->  | I21: f
B22: ="" ->  | C22: =IF(_xlfn.ISFORMULA(ARG2_05!G21),_xlfn.FORMULATEXT(ARG2_05!G21),"") ->  | H22: =IF(ARG2_05!G22="","",IF(I22="f",IF(G22=ARG2_05!G22,"ü","û"),"")) -> 

Sheet ARG2_05 (hidden)
B1: Argumento matriz buscar en
B2: MOS Expert - CPC Martín Cruz - 998401784
B6: =lista02.19 ->  | C6: MATRIZ BUSCAR EN | H6: =lista02.21 -> 
B8: ► | C8: MATRIZ EN REVERSA | J8: =lista02.20 -> Meses | K8: Norte | L8: Sur | M8: Este | N8: Oeste
J9: Enero | K9: 371.69 | L9: 177.72 | M9: 375.11 | N9: 216.42
C10: Opción 1: BUSCARV…columna 5 | J10: Febrero | K10: 318.81 | L10: 547.32 | M10: 314.36 | N10: 453.44
C11: Diciembre | J11: Marzo | K11: 257.77 | L11: 384.04 | M11: 401.72 | N11: 592.05
J12: Abril | K12: 222.52 | L12: 516.71 | M12: 512.79 | N12: 200.02
J13: Mayo | K13: 457.81 | L13: 261.41 | M13: 395.94 | N13: 239.40
C14: Reversa → | J14: Junio | K14: 132.07 | L14: 543.16 | M14: 247.94 | N14: 552.14
J15: Julio | K15: 190.47 | L15: 226.20 | M15: 227.73 | N15: 560.41
J16: Agosto | K16: 337.33 | L16: 585.77 | M16: 561.81 | N16: 193.64
C17: Ejercicio → … fila 7 | J17: Setiembre | K17: 179.28 | L17: 461.89 | M17: 273.32 | N17: 117.60
C18: Oeste | J18: Octubre | K18: 244.68 | L18: 218.39 | M18: 139.63 | N18: 257.77
J19: Noviembre | K19: 110.81 | L19: 560.04 | M19: 565.28 | N19: 516.70
J20: Diciembre | K20: 313.71 | L20: 155.79 | M20: 180.75 | N20: 119.94
C21: Reversa →

Sheet DO_A2_06 (hidden)
B6: ="" ->  | C6: MATRIZ BUSCAR EN | I6: =IF(DO_ARG2_06!H6="","",IF(J6="f",IF(H6=DO_ARG2_06!H6,"ü","û"),"")) ->  | L6: Meses | M6: Norte | N6: Sur | O6: Este | P6: Oeste
B7: ="" ->  | C7: ="" ->  | I7: =IF(DO_ARG2_06!H7="","",IF(J7="f",IF(H7=DO_ARG2_06!H7,"ü","û"),"")) ->  | L7: =PROPER(TEXT(DATE(YEAR(TODAY()),ROWS(L$7:L7),1),"mmmm")) -> Enero | M7: =ROUND(RANDBETWEEN(100,600)+RAND(),2) -> 204.38 | N7: 459.22 | O7: 363.24 | P7: 407.50
B8: ► | C8: MATRIZ EN REVERSA - EXPERTO | I8: =IF(DO_ARG2_06!H8="","",IF(J8="f",IF(H8=DO_ARG2_06!H8,"ü","û"),"")) ->  | L8: =PROPER(TEXT(DATE(YEAR(TODAY()),ROWS(L$7:L8),1),"mmmm")) -> Febrero | M8: 562.21 | N8: 385.32 | O8: 125.73 | P8: 141.48
B9: ="" ->  | C9: ="" ->  | I9: =IF(DO_ARG2_06!H9="","",IF(J9="f",IF(H9=DO_ARG2_06!H9,"ü","û"),"")) ->  | L9: =PROPER(TEXT(DATE(YEAR(TODAY()),ROWS(L$7:L9),1),"mmmm")) -> Marzo | M9: 283.82 | N9: 405.46 | O9: 382.94 | P9: 428.62
B10: ="" ->  | C10: Ejercicio → | I10: =IF(DO_ARG2_06!H10="","",IF(J10="f",IF(H10=DO_ARG2_06!H10,"ü","û"),"")) ->  | L10: =PROPER(TEXT(DATE(YEAR(TODAY()),ROWS(L$7:L10),1),"mmmm")) -> Abril | M10: 535.89 | N10: 480.00 | O10: 282.41 | P10: 528.91
B11: ="" ->  | C11: =INDEX($M$6:$P$6,RANDBETWEEN(1,4)) -> Este | I11: =IF(DO_ARG2_06!H11="","",IF(J11="f",IF(H11=DO_ARG2_06!H11,"ü","û"),"")) ->  | L11: =PROPER(TEXT(DATE(YEAR(TODAY()),ROWS(L$7:L11),1),"mmmm")) -> Mayo | M11: 519.10 | N11: 480.04 | O11: 424.97 | P11: 262.25
B12: ="" ->  | C12: =INDEX($L$7:$L$18,RANDBETWEEN(1,12)) -> Enero | H12: =VLOOKUP(C12,$L$6:$P$18,MATCH(C11,$L$6:$P$6,0),0) -> 363.24 | I12: =IF(DO_ARG2_06!H12="","",IF(J12="f",IF(H12=DO_ARG2_06!H12,"ü","û"),"")) -> ü | J12: f | L12: =PROPER(TEXT(DATE(YEAR(TODAY()),ROWS(L$7:L12),1),"mmmm")) -> Junio | M12: 584.41 | N12: 167.42 | O12: 433.55 | P12: 184.68
B13: ="" ->  | C13: =IF(_xlfn.ISFORMULA(DO_ARG2_06!H12),_xlfn.FORMULATEXT(DO_ARG2_06!H12),"") -> =BUSCARV(C12,$K$8:$O$20,COINCIDIR(C11,$K$8:$O$8,0),0) | I13: =IF(DO_ARG2_06!H13="","",IF(J13="f",IF(H13=DO_ARG2_06!H13,"ü","û"),"")) ->  | L13: =PROPER(TEXT(DATE(YEAR(TODAY()),ROWS(L$7:L13),1),"mmmm")) -> Julio | M13: 591.57 | N13: 348.39 | O13: 572.43 | P13: 324.54
B14: ="" ->  | C14: ="" ->  | I14: =IF(DO_ARG2_06!H14="","",IF(J14="f",IF(H14=DO_ARG2_06!H14,"ü","û"),"")) ->  | L14: =PROPER(TEXT(DATE(YEAR(TODAY()),ROWS(L$7:L14),1),"mmmm")) -> Agosto | M14: 416.58 | N14: 108.85 | O14: 322.29 | P14: 294.84
B15: ="" ->  | C15: Reversa 1 → | H15: =VLOOKUP(H12, CHOOSE(CHOOSE({1,2},MATCH(C11,$L$6:$P$6,0),1),$L$6:$L$18,$M$6:$M$18,$N$6:$N$18,$O$6:$O$18,$P$6:$P$18),2,0) -> Enero | I15: =IF(DO_ARG2_06!H15="","",IF(J15="f",IF(H15=DO_ARG2_06!H15,"ü","û"),"")) -> ü | J15: f | L15: =PROPER(TEXT(DATE(YEAR(TODAY()),ROWS(L$7:L15),1),"mmmm")) -> Setiembre | M15: 553.13 | N15: 277.65 | O15: 500.53 | P15: 106.77
B16: ="" ->  | C16: =IF(_xlfn.ISFORMULA(DO_ARG2_06!H15),MID(_xlfn.FORMULATEXT(DO_ARG2_06!H15),1,35),"") -> {=BUSCARV(H12, ELEGIR(ELEGIR({1,2}, | I16: =IF(DO_ARG2_06!H16="","",IF(J16="f",IF(H16=DO_ARG2_06!H16,"ü","û"),"")) ->  | L16: =PROPER(TEXT(DATE(YEAR(TODAY()),ROWS(L$7:L16),1),"mmmm")) -> Octubre | M16: 474.27 | N16: 553.74 | O16: 234.92 | P16: 587.74
B17: ="" ->  | C17: =IF(_xlfn.ISFORMULA(DO_ARG2_06!H15),MID(_xlfn.FORMULATEXT(DO_ARG2_06!H15),36,52),"") -> COINCIDIR(C11,$K$8:$O$8,0),1),$K$8:$K$20,$L$8:$L$20, | I17: =IF(DO_ARG2_06!H17="","",IF(J17="f",IF(H17=DO_ARG2_06!H17,"ü","û"),"")) ->  | L17: =PROPER(TEXT(DATE(YEAR(TODAY()),ROWS(L$7:L17),1),"mmmm")) -> Noviembre | M17: 309.58 | N17: 299.60 | O17: 102.54 | P17: 202.15
B18: ="" ->  | C18: =IF(_xlfn.ISFORMULA(DO_ARG2_06!H15),MID(_xlfn.FORMULATEXT(DO_ARG2_06!H15),88,60),"") -> $M$8:$M$20,$N$8:$N$20,$O$8:$O$20),2,0)} | I18: =IF(DO_ARG2_06!H18="","",IF(J18="f",IF(H18=DO_ARG2_06!H18,"ü","û"),"")) ->  | L18: =PROPER(TEXT(DATE(YEAR(TODAY()),ROWS(L$7:L18),1),"mmmm")) -> Diciembre | M18: 497.73 | N18: 572.89 | O18: 105.87 | P18: 503.87
B19: ="" ->  | C19: ="" ->  | I19: =IF(DO_ARG2_06!H19="","",IF(J19="f",IF(H19=DO_ARG2_06!H19,"ü","û"),"")) -> 
B20: ="" ->  | C20: Reversa 2 → | H20: =HLOOKUP(H12, CHOOSE(CHOOSE({1;2},MATCH(C12,$L$6:$L$18,0),1),$L$6:$P$6,$L$7:$P$7,$L$8:$P$8,$L$9:$P$9,$L$10:$P$10,$L$11:$P$11,$L$12:$P$12,$L$13:$P$13,$L$14:$P$14,$L$15:$P$15,$L$16:$P$16,$L$17:$P$17,$L$18:$P$18),2,0) -> Este | I20: =IF(DO_ARG2_06!H20="","",IF(J20="f",IF(H20=DO_ARG2_06!H20,"ü","û"),"")) -> ü | J20: f
B21: ="" ->  | C21: =IF(_xlfn.ISFORMULA(DO_ARG2_06!H20),MID(_xlfn.FORMULATEXT(DO_ARG2_06!H20),1,35),"") -> {=BUSCARH(H12, ELEGIR(ELEGIR({1;2}, | I21: =IF(DO_ARG2_06!H21="","",IF(J21="f",IF(H21=DO_ARG2_06!H21,"ü","û"),"")) -> 
B22: ="" ->  | C22: =IF(_xlfn.ISFORMULA(DO_ARG2_06!H20),MID(_xlfn.FORMULATEXT(DO_ARG2_06!H20),36,51),"") -> COINCIDIR(C12,$K$8:$K$20,0),1),$K$8:$O$8,$K$9:$O$9, | I22: =IF(DO_ARG2_06!H22="","",IF(J22="f",IF(H22=DO_ARG2_06!H22,"ü","û"),"")) -> 
B23: ="" ->  | C23: =IF(_xlfn.ISFORMULA(DO_ARG2_06!H20),MID(_xlfn.FORMULATEXT(DO_ARG2_06!H20),87,56),"") -> $K$10:$O$10,$K$11:$O$11,$K$12:$O$12,$K$13:$O$13,$K$14:$O | I23: =IF(DO_ARG2_06!H23="","",IF(J23="f",IF(H23=DO_ARG2_06!H23,"ü","û"),"")) -> 
B24: ="" ->  | C24: =IF(_xlfn.ISFORMULA(DO_ARG2_06!H20),MID(_xlfn.FORMULATEXT(DO_ARG2_06!H20),143,48),"") -> $14,$K$15:$O$15,$K$16:$O$16,$K$17:$O$17,$K$18:$O | I24: =IF(DO_ARG2_06!H24="","",IF(J24="f",IF(H24=DO_ARG2_06!H24,"ü","û"),"")) -> 
B25: ="" ->  | C25: =IF(_xlfn.ISFORMULA(DO_ARG2_06!H20),MID(_xlfn.FORMULATEXT(DO_ARG2_06!H20),192,48),"") -> 18,$K$19:$O$19,$K$20:$O$20),2,0)} | I25: =IF(DO_ARG2_06!H25="","",IF(J25="f",IF(H25=DO_ARG2_06!H25,"ü","û"),"")) -> 

Sheet DO_ARG2_06 (hidden)
B1: Argumento matriz buscar en
B2: MOS Expert - CPC Martín Cruz - 998401784
B6: =lista02.22 ->  | C6: MATRIZ BUSCAR EN | I6: =lista02.24 -> 
B8: ► | C8: MATRIZ EN REVERSA - EXPERTO | K8: =lista02.23 -> Meses | L8: Norte | M8: Sur | N8: Este | O8: Oeste
K9: Enero | L9: 204.38 | M9: 459.22 | N9: 363.24 | O9: 407.50
C10: Ejercicio → | K10: Febrero | L10: 562.21 | M10: 385.32 | N10: 125.73 | O10: 141.48
C11: Este | K11: Marzo | L11: 283.82 | M11: 405.46 | N11: 382.94 | O11: 428.62
C12: Enero | H12: =VLOOKUP(C12,$K$8:$O$20,MATCH(C11,$K$8:$O$8,0),0) -> 363.24 | I12: ü | K12: Abril | L12: 535.89 | M12: 480.00 | N12: 282.41 | O12: 528.91
C13: =BUSCARV(C12,$K$8:$O$20,COINCIDIR(C11,$K$8:$O$8,0),0) | K13: Mayo | L13: 519.10 | M13: 480.04 | N13: 424.97 | O13: 262.25
K14: Junio | L14: 584.41 | M14: 167.42 | N14: 433.55 | O14: 184.68
C15: Reversa 1 → | H15: =VLOOKUP(H12, CHOOSE(CHOOSE({1,2},MATCH(C11,$K$8:$O$8,0),1),$K$8:$K$20,$L$8:$L$20,$M$8:$M$20,$N$8:$N$20,$O$8:$O$20),2,0) -> Enero | I15: ü | K15: Julio | L15: 591.57 | M15: 348.39 | N15: 572.43 | O15: 324.54
C16: {=BUSCARV(H12, ELEGIR(ELEGIR({1,2}, | K16: Agosto | L16: 416.58 | M16: 108.85 | N16: 322.29 | O16: 294.84
C17: COINCIDIR(C11,$K$8:$O$8,0),1),$K$8:$K$20,$L$8:$L$20, | K17: Setiembre | L17: 553.13 | M17: 277.65 | N17: 500.53 | O17: 106.77
C18: $M$8:$M$20,$N$8:$N$20,$O$8:$O$20),2,0)} | K18: Octubre | L18: 474.27 | M18: 553.74 | N18: 234.92 | O18: 587.74
K19: Noviembre | L19: 309.58 | M19: 299.60 | N19: 102.54 | O19: 202.15
C20: Reversa 2 → | H20: =HLOOKUP(H12, CHOOSE(CHOOSE({1;2},MATCH(C12,$K$8:$K$20,0),1),$K$8:$O$8,$K$9:$O$9,$K$10:$O$10,$K$11:$O$11,$K$12:$O$12,$K$13:$O$13,$K$14:$O$14,$K$15:$O$15,$K$16:$O$16,$K$17:$O$17,$K$18:$O$18,$K$19:$O$19,$K$20:$O$20),2,0) -> Este | I20: ü | K20: Diciembre | L20: 497.73 | M20: 572.89 | N20: 105.87 | O20: 503.87
C21: {=BUSCARH(H12, ELEGIR(ELEGIR({1;2},
C22: COINCIDIR(C12,$K$8:$K$20,0),1),$K$8:$O$8,$K$9:$O$9,
C23: $K$10:$O$10,$K$11:$O$11,$K$12:$O$12,$K$13:$O$13,$K$14:$O
C24: $14,$K$15:$O$15,$K$16:$O$16,$K$17:$O$17,$K$18:$O
C25: 18,$K$19:$O$19,$K$20:$O$20),2,0)}

Sheet DO_EJER01 (hidden)
B6: ="" ->  | C6: EJERCICIOS
B7: ="" ->  | C7: ="" -> 
B8: ► | C8: MATRIZ EN REVERSA - EXPERTO | L8: Vendedor | M8: Clientes | N8: Ventas | O8: Margen | Q8: =RAND() -> 0.08617587794 | R8: Ochoa | S8: 0.1876748919 | T8: José | U8: =VLOOKUP(LARGE($S$8:$S$20,ROWS(U$8:U8)),$S$8:$T$20,2,0) -> Francisco | V8: =VLOOKUP(LARGE($Q$8:$Q$20,ROWS(V$8:V8)),$Q$8:$R$20,2,0) -> Cespedes | W8: =U8&" "&V8 -> Francisco Cespedes
L9: =U8 -> Francisco | M9: =RANDBETWEEN(5,15) -> 5 | N9: =ROUND(M9*RANDBETWEEN(80,150)+RAND(),2) -> 656 | O9: =ROUND(N9*RANDBETWEEN(25,35)%,0) -> 203 | Q9: 0.5118618347 | R9: Manco | S9: 0.3971839872 | T9: Alberto | U9: =VLOOKUP(LARGE($S$8:$S$20,ROWS(U$8:U9)),$S$8:$T$20,2,0) -> Jacob | V9: =VLOOKUP(LARGE($Q$8:$Q$20,ROWS(V$8:V9)),$Q$8:$R$20,2,0) -> Velasquez | W9: Jacob Velasquez
B10: ="" ->  | C10: ="¿Cuál es el promedio de venta por cliente del vendedor "&C12&"?" -> ¿Cuál es el promedio de venta por cliente del vendedor Miguel? | L10: Jacob | M10: 14 | N10: 1,848 | O10: 554 | Q10: 0.4486362252 | R10: Rodriguez | S10: 0.3246295245 | T10: Javier | U10: =VLOOKUP(LARGE($S$8:$S$20,ROWS(U$8:U10)),$S$8:$T$20,2,0) -> Omar | V10: =VLOOKUP(LARGE($Q$8:$Q$20,ROWS(V$8:V10)),$Q$8:$R$20,2,0) -> Quiñones | W10: Omar Quiñones
B11: ="" ->  | C11: Ejercicio → | L11: Omar | M11: 14 | N11: 1,331 | O11: 373 | Q11: 0.2035212457 | R11: Santos | S11: 0.09059573268 | T11: Jesús | U11: =VLOOKUP(LARGE($S$8:$S$20,ROWS(U$8:U11)),$S$8:$T$20,2,0) -> Roger | V11: =VLOOKUP(LARGE($Q$8:$Q$20,ROWS(V$8:V11)),$Q$8:$R$20,2,0) -> Cabello | W11: Roger Cabello
B12: ="" ->  | C12: =INDEX($L$9:$L$18,RANDBETWEEN(1,5)*2) -> Miguel | G12: =VLOOKUP(C12,$L$8:$O$18,3,0)/VLOOKUP(C12,$L$8:$O$18,2,0) -> 102.05 | L12: Roger | M12: 11 | N12: 881 | O12: 308 | Q12: 0.005873095107 | R12: Baca | S12: 0.9063333228 | T12: Jacob | U12: =VLOOKUP(LARGE($S$8:$S$20,ROWS(U$8:U12)),$S$8:$T$20,2,0) -> Fabio | V12: =VLOOKUP(LARGE($Q$8:$Q$20,ROWS(V$8:V12)),$Q$8:$R$20,2,0) -> Quispe | W12: Fabio Quispe
C13: =IF(_xlfn.ISFORMULA(DO_EJER01!G12),_xlfn.FORMULATEXT(DO_EJER01!G12),"") -> =BUSCARV(C12,$L$8:$O$18,3,0)/BUSCARV(C12,$L$8:$O$18,2,0) | L13: Fabio | M13: 12 | N13: 1,237 | O13: 346 | Q13: 0.7915696845 | R13: Velasquez | S13: 0.8149353367 | T13: Roger | U13: =VLOOKUP(LARGE($S$8:$S$20,ROWS(U$8:U13)),$S$8:$T$20,2,0) -> Miguel | V13: =VLOOKUP(LARGE($Q$8:$Q$20,ROWS(V$8:V13)),$Q$8:$R$20,2,0) -> Manco | W13: Miguel Manco
L14: Miguel | M14: 14 | N14: 1,429 | O14: 443 | Q14: 0.9940312007 | R14: Cespedes | S14: 0.3345633171 | T14: Eduardo | U14: =VLOOKUP(LARGE($S$8:$S$20,ROWS(U$8:U14)),$S$8:$T$20,2,0) -> Alberto | V14: =VLOOKUP(LARGE($Q$8:$Q$20,ROWS(V$8:V14)),$Q$8:$R$20,2,0) -> Rodriguez | W14: Alberto Rodriguez
C15: ="¿Quién vendió más "&C17&" o "&C18&"?" -> ¿Quién vendió más Jacob o Alberto? | L15: Alberto | M15: 14 | N15: 2,045 | O15: 634 | Q15: 0.3499393174 | R15: Zegarra | S15: 0.6105427049 | T15: Miguel | U15: =VLOOKUP(LARGE($S$8:$S$20,ROWS(U$8:U15)),$S$8:$T$20,2,0) -> Eduardo | V15: =VLOOKUP(LARGE($Q$8:$Q$20,ROWS(V$8:V15)),$Q$8:$R$20,2,0) -> Zegarra | W15: Eduardo Zegarra
C16: Ejercicio → | L16: Eduardo | M16: 5 | N16: 405 | O16: 113 | Q16: 0.7731854695 | R16: Quiñones | S16: 0.9071779294 | T16: Francisco | U16: =VLOOKUP(LARGE($S$8:$S$20,ROWS(U$8:U16)),$S$8:$T$20,2,0) -> Franco | V16: =VLOOKUP(LARGE($Q$8:$Q$20,ROWS(V$8:V16)),$Q$8:$R$20,2,0) -> Miranda | W16: Franco Miranda
C17: =INDEX($L$9:$L$18,RANDBETWEEN(1,5)*2) -> Jacob | L17: Franco | M17: 15 | N17: 1,381 | O17: 414 | Q17: 0.2829188763 | R17: Atoche | S17: 0.7454743048 | T17: Fabio | U17: =VLOOKUP(LARGE($S$8:$S$20,ROWS(U$8:U17)),$S$8:$T$20,2,0) -> Javier | V17: =VLOOKUP(LARGE($Q$8:$Q$20,ROWS(V$8:V17)),$Q$8:$R$20,2,0) -> Atoche | W17: Javier Atoche
C18: =INDEX($L$9:$L$18,RANDBETWEEN(1,5)*2-1) -> Alberto | G18: =IF(VLOOKUP(C17,$L$8:$O$18,3,0)>VLOOKUP(C18,$L$8:$O$18,2,0),C17,C18) -> Jacob | L18: Javier | M18: 7 | N18: 722 | O18: 202 | Q18: 0.6331897554 | R18: Quispe | S18: 0.8606839284 | T18: Omar | U18: =VLOOKUP(LARGE($S$8:$S$20,ROWS(U$8:U18)),$S$8:$T$20,2,0) -> José | V18: =VLOOKUP(LARGE($Q$8:$Q$20,ROWS(V$8:V18)),$Q$8:$R$20,2,0) -> Santos | W18: José Santos
C19: =IF(_xlfn.ISFORMULA(DO_EJER01!G18),_xlfn.FORMULATEXT(DO_EJER01!G18),"") -> =SI(BUSCARV(C17,$L$8:$O$18,3,0)>BUSCARV(C18,$L$8:$O$18,2,0),C17,C18) | Q19: 0.2910375629 | R19: Miranda | S19: 0.3280400264 | T19: Franco | U19: =VLOOKUP(LARGE($S$8:$S$20,ROWS(U$8:U19)),$S$8:$T$20,2,0) -> Jesús | V19: =VLOOKUP(LARGE($Q$8:$Q$20,ROWS(V$8:V19)),$Q$8:$R$20,2,0) -> Ochoa | W19: Jesús Ochoa
Q20: 0.6800097286 | R20: Cabello | S20: 0.08839019888 | T20: Oscar | U20: =VLOOKUP(LARGE($S$8:$S$20,ROWS(U$8:U20)),$S$8:$T$20,2,0) -> Oscar | V20: =VLOOKUP(LARGE($Q$8:$Q$20,ROWS(V$8:V20)),$Q$8:$R$20,2,0) -> Baca | W20: Oscar Baca
C21: ="¿Quién obtuvo la mejor venta?" -> ¿Quién obtuvo la mejor venta?
C22: Ejercicio → | G22: =VLOOKUP(MAX($N$9:$N$18),CHOOSE({2,1},$L$9:$L$18,$N$9:$N$18),2,0) -> Alberto
C23: =IF(_xlfn.ISFORMULA(DO_EJER01!G22),_xlfn.FORMULATEXT(DO_EJER01!G22),"") -> =BUSCARV(MAX($N$9:$N$18),ELEGIR({2,1},$L$9:$L$18,$N$9:$N$18),2,0)
C25: ="¿Quién obtuvo la 2do mejor venta?" -> ¿Quién obtuvo la 2do mejor venta?
C26: Ejercicio → | G26: =VLOOKUP(LARGE($N$9:$N$18,2),CHOOSE({2,1},$L$9:$L$18,$N$9:$N$18),2,0) -> Jacob
C27: =IF(_xlfn.ISFORMULA(DO_EJER01!G26),_xlfn.FORMULATEXT(DO_EJER01!G26),"") -> =BUSCARV(K.ESIMO.MAYOR($N$9:$N$18,2),ELEGIR({2,1},$L$9:$L$18,$N$9:$N$18),2,0)
C29: ="¿Quién obtuvo la menor margen?" -> ¿Quién obtuvo la menor margen?
C30: Ejercicio → | G30: =VLOOKUP(MIN($O$9:$O$18),CHOOSE({2,1},$L$9:$L$18,$O$9:$O$18),2,0) -> Eduardo
C31: =IF(_xlfn.ISFORMULA(DO_EJER01!G30),_xlfn.FORMULATEXT(DO_EJER01!G30),"") -> =BUSCARV(MIN($O$9:$O$18),ELEGIR({2,1},$L$9:$L$18,$O$9:$O$18),2,0)
C33: ="¿A quién le pertenece el promedio de venta más alto?" -> ¿A quién le pertenece el promedio de venta más alto?
C34: Ejercicio → | G34: =VLOOKUP(MAX($N$9:$N$18/$M$9:$M$18),CHOOSE({2,1},$L$9:$L$18,$N$9:$N$18/$M$9:$M$18),2,0) -> Alberto
C35: =IF(_xlfn.ISFORMULA(DO_EJER01!G34),_xlfn.FORMULATEXT(DO_EJER01!G34),"") -> {=BUSCARV(MAX($N$9:$N$18/$M$9:$M$18),ELEGIR({2,1},$L$9:$L$18,$N$9:$N$18/$M$9:$M$18),2,0)}
